{"text_format":"1","workbook":"xlsx","n_sheets":17,"sheets":["Auswertungsraster","Beobachtungsbogen","LP 1","LP 2","LP 3","LP 4","LP 5","LP 6","LP 7","LP 8","LP 9","LP 10","LP 11","LP 12","LP 13","LP 14","LP 15"],"not_rendered":{"charts":1,"images":0,"macros":1,"external_links":0,"defined_names":22,"comments":0,"pivot_tables":0},"unopened":[],"bounds":{"document_bytes":16777216,"sheet_cells":100000,"rows_first":2000,"rows_last":500,"rows_between":2000,"halvings":0,"cell_chars":16384,"cell_head_chars":4096},"cells_cut":0,"cells_raw":0,"read":"whole","date_system":"1900"}

{"sheet":"Auswertungsraster","index":0,"n_rows":111,"n_cols":25,"rows_kept":111,"cut":false,"hidden":false,"merged":[[1,10,1,24],[0,2,0,9],[55,0,56,0],[35,0,36,0],[34,1,34,2],[35,1,36,2],[54,1,54,2],[55,1,56,2],[42,1,42,2],[43,0,44,0],[5,1,5,2],[7,1,7,2],[1,1,1,2],[6,1,6,2],[87,10,87,24],[34,10,34,24],[35,10,35,24],[54,10,54,24],[55,10,55,24],[65,10,65,24],[42,10,42,24],[43,10,43,24],[76,10,76,24],[75,10,75,24],[66,10,66,24],[87,1,87,2],[2,1,3,2],[9,1,9,2],[66,0,67,0],[76,0,77,0],[43,1,44,2],[75,1,75,2],[66,1,67,2],[65,1,65,2],[76,1,77,2],[88,0,89,0],[88,1,89,2],[88,10,88,24],[95,1,95,2],[95,10,95,24],[96,0,97,0],[96,1,97,2],[96,10,96,24],[103,1,103,2],[103,10,103,24],[104,0,105,0],[104,1,105,2],[104,10,104,24],[4,1,4,2],[2,10,2,24],[2,3,3,3],[2,4,3,4],[2,5,3,5],[2,6,3,6],[2,7,3,7],[2,8,3,8],[2,9,3,9],[12,1,12,2],[10,1,10,2],[11,1,11,2],[8,1,8,2]]}
[null,"Auswertungsraster","Kompetenzorientierter Unterricht"]
[null,"Gesamtbewertung ",null," +++"," ++"," +"," -"," --"," ---"," ?","Auswertung"]
[null,"Bilanzierende Beurteilung Unterricht",null,{"$f":"SUM('LP 1'!C72,'LP 2'!C72,'LP 3'!C72,'LP 4'!C72,'LP 5'!C72,'LP 6'!C72,'LP 7'!C72,'LP 8'!C72,'LP 9'!C72,'LP 10'!C72,'LP 11'!C72,'LP 12'!C72,'LP 13'!C72,'LP 14'!C72,'LP 15'!C72,)","v":0},{"$f":"SUM('LP 1'!D72,'LP 2'!D72,'LP 3'!D72,'LP 4'!D72,'LP 5'!D72,'LP 6'!D72,'LP 7'!D72,'LP 8'!D72,'LP 9'!D72,'LP 10'!D72,'LP 11'!D72,'LP 12'!D72,'LP 13'!D72,'LP 14'!D72,'LP 15'!D72,)","v":0},{"$f":"SUM('LP 1'!E72,'LP 2'!E72,'LP 3'!E72,'LP 4'!E72,'LP 5'!E72,'LP 6'!E72,'LP 7'!E72,'LP 8'!E72,'LP 9'!E72,'LP 10'!E72,'LP 11'!E72,'LP 12'!E72,'LP 13'!E72,'LP 14'!E72,'LP 15'!E72,)","v":0},{"$f":"SUM('LP 1'!F72,'LP 2'!F72,'LP 3'!F72,'LP 4'!F72,'LP 5'!F72,'LP 6'!F72,'LP 7'!F72,'LP 8'!F72,'LP 9'!F72,'LP 10'!F72,'LP 11'!F72,'LP 12'!F72,'LP 13'!F72,'LP 14'!F72,'LP 15'!F72,)","v":0},{"$f":"SUM('LP 1'!G72,'LP 2'!G72,'LP 3'!G72,'LP 4'!G72,'LP 5'!G72,'LP 6'!G72,'LP 7'!G72,'LP 8'!G72,'LP 9'!G72,'LP 10'!G72,'LP 11'!G72,'LP 12'!G72,'LP 13'!G72,'LP 14'!G72,'LP 15'!G72,)","v":0},{"$f":"SUM('LP 1'!H72,'LP 2'!H72,'LP 3'!H72,'LP 4'!H72,'LP 5'!H72,'LP 6'!H72,'LP 7'!H72,'LP 8'!H72,'LP 9'!H72,'LP 10'!H72,'LP 11'!H72,'LP 12'!H72,'LP 13'!H72,'LP 14'!H72,'LP 15'!H72,)","v":0},{"$f":"SUM('LP 1'!I72,'LP 2'!I72,'LP 3'!I72,'LP 4'!I72,'LP 5'!I72,'LP 6'!I72,'LP 7'!I72,'LP 8'!I72,'LP 9'!I72,'LP 10'!I72,'LP 11'!I72,'LP 12'!I72,'LP 13'!I72,'LP 14'!I72,'LP 15'!I72,)","v":0}]
[null,null,null,null,null,null,null,null,null,null,{"$f":"'LP 1'!J72","v":0},{"$f":"'LP 2'!J72","v":0},{"$f":"'LP 3'!J72","v":0},{"$f":"'LP 4'!J72","v":0},{"$f":"'LP 5'!J72","v":0},{"$f":"'LP 6'!J72","v":0},{"$f":"'LP 7'!J72","v":0},{"$f":"'LP 8'!J72","v":0},{"$f":"'LP 9'!J72","v":0},{"$f":"'LP 10'!J72","v":0},{"$f":"'LP 11'!J72","v":0},{"$f":"'LP 12'!J72","v":0},{"$f":"'LP 13'!J72","v":0},{"$f":"'LP 14'!J72","v":0},{"$f":"'LP 15'!J72","v":0}]
[null,"Merkmale",null," +++"," ++"," +"," -"," --"," ---"," ?",{"$f":"K38","v":"LP 1"},{"$f":"L38","v":"LP 2"},"LP 3","LP 4","LP 5","LP 6","LP 7","LP 8","LP 9","LP 10","LP 11","LP 12","LP 13","LP 14",{"$f":"Y38","v":"LP 15"}]
[null,{"$f":"B36","v":"Erfahrungswelt"},null,{"$f":"D36","v":0},0,0,0,0,0,0,{"$f":"'LP 1'!J73","v":0},{"$f":"'LP 2'!J73","v":0},{"$f":"'LP 3'!J73","v":0},{"$f":"'LP 4'!J73","v":0},{"$f":"'LP 5'!J73","v":0},{"$f":"'LP 6'!J73","v":0},{"$f":"'LP 7'!J73","v":0},{"$f":"'LP 8'!J73","v":0},{"$f":"'LP 9'!J73","v":0},{"$f":"'LP 10'!J73","v":0},{"$f":"'LP 11'!J73","v":0},{"$f":"'LP 12'!J73","v":0},{"$f":"'LP 13'!J73","v":0},{"$f":"'LP 14'!J73","v":0},{"$f":"'LP 15'!J73","v":0}]
[null,{"$f":"B44","v":"Kompetenzaufbau"},null,{"$f":"D44","v":0},0,0,0,0,0,0,{"$f":"'LP 1'!J74","v":0},{"$f":"'LP 2'!J74","v":0},{"$f":"'LP 3'!J74","v":0},{"$f":"'LP 4'!J74","v":0},{"$f":"'LP 5'!J74","v":0},{"$f":"'LP 6'!J74","v":0},{"$f":"'LP 7'!J74","v":0},{"$f":"'LP 8'!J74","v":0},{"$f":"'LP 9'!J74","v":0},{"$f":"'LP 10'!J74","v":0},{"$f":"'LP 11'!J74","v":0},{"$f":"'LP 12'!J74","v":0},{"$f":"'LP 13'!J74","v":0},{"$f":"'LP 14'!J74","v":0},{"$f":"'LP 15'!J74","v":0}]
[null,{"$f":"B56","v":"Instruktion und Konstruktion"},null,{"$f":"D56","v":0},0,0,0,0,0,0,{"$f":"'LP 1'!J75","v":0},{"$f":"'LP 2'!J75","v":0},{"$f":"'LP 3'!J75","v":0},{"$f":"'LP 4'!J75","v":0},{"$f":"'LP 5'!J75","v":0},{"$f":"'LP 6'!J75","v":0},{"$f":"'LP 7'!J75","v":0},{"$f":"'LP 8'!J75","v":0},{"$f":"'LP 9'!J75","v":0},{"$f":"'LP 10'!J75","v":0},{"$f":"'LP 11'!J75","v":0},{"$f":"'LP 12'!J75","v":0},{"$f":"'LP 13'!J75","v":0},{"$f":"'LP 14'!J75","v":0},{"$f":"'LP 15'!J75","v":0}]
[null,{"$f":"B67","v":"Transparenz der Lern- und Leistungserwartungen"},null,{"$f":"D67","v":0},0,0,0,0,0,0,{"$f":"'LP 1'!J76","v":0},{"$f":"'LP 2'!J76","v":0},{"$f":"'LP 3'!J76","v":0},{"$f":"'LP 4'!J76","v":0},{"$f":"'LP 5'!J76","v":0},{"$f":"'LP 6'!J76","v":0},{"$f":"'LP 7'!J76","v":0},{"$f":"'LP 8'!J76","v":0},{"$f":"'LP 9'!J76","v":0},{"$f":"'LP 10'!J76","v":0},{"$f":"'LP 11'!J76","v":0},{"$f":"'LP 12'!J76","v":0},{"$f":"'LP 13'!J76","v":0},{"$f":"'LP 14'!J76","v":0},{"$f":"'LP 15'!J76","v":0}]
[null,{"$f":"B77","v":"Differenzierung"},null,{"$f":"D77","v":0},0,0,0,0,0,0,{"$f":"'LP 1'!J77","v":0},{"$f":"'LP 2'!J77","v":0},{"$f":"'LP 3'!J77","v":0},{"$f":"'LP 4'!J77","v":0},{"$f":"'LP 5'!J77","v":0},{"$f":"'LP 6'!J77","v":0},{"$f":"'LP 7'!J77","v":0},{"$f":"'LP 8'!J77","v":0},{"$f":"'LP 9'!J77","v":0},{"$f":"'LP 10'!J77","v":0},{"$f":"'LP 11'!J77","v":0},{"$f":"'LP 12'!J77","v":0},{"$f":"'LP 13'!J77","v":0},{"$f":"'LP 14'!J77","v":0},{"$f":"'LP 15'!J77","v":0}]
[null,{"$f":"B89","v":"Erfolgserlebnisse"},null,{"$f":"D89","v":0},0,0,0,0,0,0,{"$f":"'LP 1'!J78","v":0},{"$f":"'LP 2'!J78","v":0},{"$f":"'LP 3'!J78","v":0},{"$f":"'LP 4'!J78","v":0},{"$f":"'LP 5'!J78","v":0},{"$f":"'LP 6'!J78","v":0},{"$f":"'LP 7'!J78","v":0},{"$f":"'LP 8'!J78","v":0},{"$f":"'LP 9'!J78","v":0},{"$f":"'LP 10'!J78","v":0},{"$f":"'LP 11'!J78","v":0},{"$f":"'LP 12'!J78","v":0},{"$f":"'LP 13'!J78","v":0},{"$f":"'LP 14'!J78","v":0},{"$f":"'LP 15'!J78","v":0}]
[null,{"$f":"B97","v":"Feedback"},null,{"$f":"D97","v":0},0,0,0,0,0,0,{"$f":"'LP 1'!J79","v":0},{"$f":"'LP 2'!J79","v":0},{"$f":"'LP 3'!J79","v":0},{"$f":"'LP 4'!J79","v":0},{"$f":"'LP 5'!J79","v":0},{"$f":"'LP 6'!J79","v":0},{"$f":"'LP 7'!J79","v":0},{"$f":"'LP 8'!J79","v":0},{"$f":"'LP 9'!J79","v":0},{"$f":"'LP 10'!J79","v":0},{"$f":"'LP 11'!J79","v":0},{"$f":"'LP 12'!J79","v":0},{"$f":"'LP 13'!J79","v":0},{"$f":"'LP 14'!J79","v":0},{"$f":"'LP 15'!J79","v":0}]
[null,{"$f":"B105","v":"Reflexion"},null,{"$f":"D105","v":0},0,0,0,0,0,0,{"$f":"'LP 1'!J80","v":0},{"$f":"'LP 2'!J80","v":0},{"$f":"'LP 3'!J80","v":0},{"$f":"'LP 4'!J80","v":0},{"$f":"'LP 5'!J80","v":0},{"$f":"'LP 6'!J80","v":0},{"$f":"'LP 7'!J80","v":0},{"$f":"'LP 8'!J80","v":0},{"$f":"'LP 9'!J80","v":0},{"$f":"'LP 10'!J80","v":0},{"$f":"'LP 11'!J80","v":0},{"$f":"'LP 12'!J80","v":0},{"$f":"'LP 13'!J80","v":0},{"$f":"'LP 14'!J80","v":0},{"$f":"'LP 15'!J80","v":0}]
[]
[]
[]
[]
[]
[]
[]
[]
[]
[]
[]
[]
[]
[]
[]
[]
[]
[]
[]
[]
[]
["Kartenset «Kompetenzprofil für\nLehrpersonen»","Merkmal",null," +++"," ++"," +"," -"," --"," ---"," ?","Auswertung"]
["Karten 5, 8, 11, 12","Erfahrungswelt",null,{"$f":"SUM('LP 1'!C3,'LP 2'!C3,'LP 3'!C3,'LP 4'!C3,'LP 5'!C3,'LP 6'!C3,'LP 7'!C3,'LP 8'!C3,'LP 9'!C3,'LP 10'!C3,'LP 11'!C3,'LP 12'!C3,'LP 13'!C3,'LP 14'!C3,'LP 15'!C3,)","v":0},{"$f":"SUM('LP 1'!D3,'LP 2'!D3,'LP 3'!D3,'LP 4'!D3,'LP 5'!D3,'LP 6'!D3,'LP 7'!D3,'LP 8'!D3,'LP 9'!D3,'LP 10'!D3,'LP 11'!D3,'LP 12'!D3,'LP 13'!D3,'LP 14'!D3,'LP 15'!D3,)","v":0},{"$f":"SUM('LP 1'!E3,'LP 2'!E3,'LP 3'!E3,'LP 4'!E3,'LP 5'!E3,'LP 6'!E3,'LP 7'!E3,'LP 8'!E3,'LP 9'!E3,'LP 10'!E3,'LP 11'!E3,'LP 12'!E3,'LP 13'!E3,'LP 14'!E3,'LP 15'!E3,)","v":0},{"$f":"SUM('LP 1'!F3,'LP 2'!F3,'LP 3'!F3,'LP 4'!F3,'LP 5'!F3,'LP 6'!F3,'LP 7'!F3,'LP 8'!F3,'LP 9'!F3,'LP 10'!F3,'LP 11'!F3,'LP 12'!F3,'LP 13'!F3,'LP 14'!F3,'LP 15'!F3,)","v":0},{"$f":"SUM('LP 1'!G3,'LP 2'!G3,'LP 3'!G3,'LP 4'!G3,'LP 5'!G3,'LP 6'!G3,'LP 7'!G3,'LP 8'!G3,'LP 9'!G3,'LP 10'!G3,'LP 11'!G3,'LP 12'!G3,'LP 13'!G3,'LP 14'!G3,'LP 15'!G3,)","v":0},{"$f":"SUM('LP 1'!H3,'LP 2'!H3,'LP 3'!H3,'LP 4'!H3,'LP 5'!H3,'LP 6'!H3,'LP 7'!H3,'LP 8'!H3,'LP 9'!H3,'LP 10'!H3,'LP 11'!H3,'LP 12'!H3,'LP 13'!H3,'LP 14'!H3,'LP 15'!H3,)","v":0},{"$f":"SUM('LP 1'!I3,'LP 2'!I3,'LP 3'!I3,'LP 4'!I3,'LP 5'!I3,'LP 6'!I3,'LP 7'!I3,'LP 8'!I3,'LP 9'!I3,'LP 10'!I3,'LP 11'!I3,'LP 12'!I3,'LP 13'!I3,'LP 14'!I3,'LP 15'!I3,)","v":0}]
[null,null,null,null,null,null,null,null,null,null,{"$f":"'LP 1'!J3","v":0},{"$f":"'LP 2'!J3","v":0},{"$f":"'LP 3'!J3","v":0},{"$f":"'LP 4'!J3","v":0},{"$f":"'LP 5'!J3","v":0},{"$f":"'LP 6'!J3","v":0},{"$f":"'LP 7'!J3","v":0},{"$f":"'LP 8'!J3","v":0},{"$f":"'LP 9'!J3","v":0},{"$f":"'LP 10'!J3","v":0},{"$f":"'LP 11'!J3","v":0},{"$f":"'LP 12'!J3","v":0},{"$f":"'LP 13'!J3","v":0},{"$f":"'LP 14'!J3","v":0},{"$f":"'LP 15'!J3","v":0}]
[null,null,"Indikatoren","ja","teils","nein","?",null,null,null,{"$f":"'LP 1'!A1","v":"LP 1"},{"$f":"'LP 2'!A1","v":"LP 2"},{"$f":"'LP 3'!A1","v":"LP 3"},{"$f":"'LP 4'!A1","v":"LP 4"},{"$f":"'LP 5'!A1","v":"LP 5"},{"$f":"'LP 6'!A1","v":"LP 6"},{"$f":"'LP 7'!A1","v":"LP 7"},{"$f":"'LP 8'!A1","v":"LP 8"},{"$f":"'LP 9'!A1","v":"LP 9"},{"$f":"'LP 10'!A1","v":"LP 10"},{"$f":"'LP 11'!A1","v":"LP 11"},{"$f":"'LP 12'!A1","v":"LP 12"},{"$f":"'LP 13'!A1","v":"LP 13"},{"$f":"'LP 14'!A1","v":"LP 14"},{"$f":"'LP 15'!A1","v":"LP 15"}]
[null,"Die Lehrperson","bindet gehaltvolle Aufgaben/Fragen/Problem-stellungen in den Unterricht ein, die für die Schülerinnen und Schüler bedeutsam sind.",{"$f":"SUM('LP 1'!C5,'LP 2'!C5,'LP 3'!C5,'LP 4'!C5,'LP 5'!C5,'LP 6'!C5,'LP 7'!C5,'LP 8'!C5,'LP 9'!C5,'LP 10'!C5,'LP 11'!C5,'LP 12'!C5,'LP 13'!C5,'LP 14'!C5,'LP 15'!C5,)","v":0},{"$f":"SUM('LP 1'!D5,'LP 2'!D5,'LP 3'!D5,'LP 4'!D5,'LP 5'!D5,'LP 6'!D5,'LP 7'!D5,'LP 8'!D5,'LP 9'!D5,'LP 10'!D5,'LP 11'!D5,'LP 12'!D5,'LP 13'!D5,'LP 14'!D5,'LP 15'!D5,)","v":0},{"$f":"SUM('LP 1'!E5,'LP 2'!E5,'LP 3'!E5,'LP 4'!E5,'LP 5'!E5,'LP 6'!E5,'LP 7'!E5,'LP 8'!E5,'LP 9'!E5,'LP 10'!E5,'LP 11'!E5,'LP 12'!E5,'LP 13'!E5,'LP 14'!E5,'LP 15'!E5,)","v":0},{"$f":"SUM('LP 1'!F5,'LP 2'!F5,'LP 3'!F5,'LP 4'!F5,'LP 5'!F5,'LP 6'!F5,'LP 7'!F5,'LP 8'!F5,'LP 9'!F5,'LP 10'!F5,'LP 11'!F5,'LP 12'!F5,'LP 13'!F5,'LP 14'!F5,'LP 15'!F5,)","v":0},null,null,null,{"$f":"'LP 1'!J5","v":0},{"$f":"'LP 2'!J5","v":0},{"$f":"'LP 3'!J5","v":0},{"$f":"'LP 4'!J5","v":0},{"$f":"'LP 5'!J5","v":0},{"$f":"'LP 6'!J5","v":0},{"$f":"'LP 7'!J5","v":0},{"$f":"'LP 8'!J5","v":0},{"$f":"'LP 9'!J5","v":0},{"$f":"'LP 10'!J5","v":0},{"$f":"'LP 11'!J5","v":0},{"$f":"'LP 12'!J5","v":0},{"$f":"'LP 13'!J5","v":0},{"$f":"'LP 14'!J5","v":0},{"$f":"'LP 15'!J5","v":0}]
[null,null,"regt mit Aufgabenstellungen oder präsentierten Kernideen an, zentrale Kenntnisse, Fertigkeiten, Zusammenhänge und Haltungen des Fachs zu entdecken.",{"$f":"SUM('LP 1'!C6,'LP 2'!C6,'LP 3'!C6,'LP 4'!C6,'LP 5'!C6,'LP 6'!C6,'LP 7'!C6,'LP 8'!C6,'LP 9'!C6,'LP 10'!C6,'LP 11'!C6,'LP 12'!C6,'LP 13'!C6,'LP 14'!C6,'LP 15'!C6,)","v":0},{"$f":"SUM('LP 1'!D6,'LP 2'!D6,'LP 3'!D6,'LP 4'!D6,'LP 5'!D6,'LP 6'!D6,'LP 7'!D6,'LP 8'!D6,'LP 9'!D6,'LP 10'!D6,'LP 11'!D6,'LP 12'!D6,'LP 13'!D6,'LP 14'!D6,'LP 15'!D6,)","v":0},{"$f":"SUM('LP 1'!E6,'LP 2'!E6,'LP 3'!E6,'LP 4'!E6,'LP 5'!E6,'LP 6'!E6,'LP 7'!E6,'LP 8'!E6,'LP 9'!E6,'LP 10'!E6,'LP 11'!E6,'LP 12'!E6,'LP 13'!E6,'LP 14'!E6,'LP 15'!E6,)","v":0},{"$f":"SUM('LP 1'!F6,'LP 2'!F6,'LP 3'!F6,'LP 4'!F6,'LP 5'!F6,'LP 6'!F6,'LP 7'!F6,'LP 8'!F6,'LP 9'!F6,'LP 10'!F6,'LP 11'!F6,'LP 12'!F6,'LP 13'!F6,'LP 14'!F6,'LP 15'!F6,)","v":0},null,null,null,{"$f":"'LP 1'!J6","v":0},{"$f":"'LP 2'!J6","v":0},{"$f":"'LP 3'!J6","v":0},{"$f":"'LP 4'!J6","v":0},{"$f":"'LP 5'!J6","v":0},{"$f":"'LP 6'!J6","v":0},{"$f":"'LP 7'!J6","v":0},{"$f":"'LP 8'!J6","v":0},{"$f":"'LP 9'!J6","v":0},{"$f":"'LP 10'!J6","v":0},{"$f":"'LP 11'!J6","v":0},{"$f":"'LP 12'!J6","v":0},{"$f":"'LP 13'!J6","v":0},{"$f":"'LP 14'!J6","v":0},{"$f":"'LP 15'!J6","v":0}]
[null,null,"schafft im Unterricht einen Bezug zur (ausserschulischen) Lebenswelt der Schülerinnen und Schüler.",{"$f":"SUM('LP 1'!C7,'LP 2'!C7,'LP 3'!C7,'LP 4'!C7,'LP 5'!C7,'LP 6'!C7,'LP 7'!C7,'LP 8'!C7,'LP 9'!C7,'LP 10'!C7,'LP 11'!C7,'LP 12'!C7,'LP 13'!C7,'LP 14'!C7,'LP 15'!C7,)","v":0},{"$f":"SUM('LP 1'!D7,'LP 2'!D7,'LP 3'!D7,'LP 4'!D7,'LP 5'!D7,'LP 6'!D7,'LP 7'!D7,'LP 8'!D7,'LP 9'!D7,'LP 10'!D7,'LP 11'!D7,'LP 12'!D7,'LP 13'!D7,'LP 14'!D7,'LP 15'!D7,)","v":0},{"$f":"SUM('LP 1'!E7,'LP 2'!E7,'LP 3'!E7,'LP 4'!E7,'LP 5'!E7,'LP 6'!E7,'LP 7'!E7,'LP 8'!E7,'LP 9'!E7,'LP 10'!E7,'LP 11'!E7,'LP 12'!E7,'LP 13'!E7,'LP 14'!E7,'LP 15'!E7,)","v":0},{"$f":"SUM('LP 1'!F7,'LP 2'!F7,'LP 3'!F7,'LP 4'!F7,'LP 5'!F7,'LP 6'!F7,'LP 7'!F7,'LP 8'!F7,'LP 9'!F7,'LP 10'!F7,'LP 11'!F7,'LP 12'!F7,'LP 13'!F7,'LP 14'!F7,'LP 15'!F7,)","v":0},null,null,null,{"$f":"'LP 1'!J7","v":0},{"$f":"'LP 2'!J7","v":0},{"$f":"'LP 3'!J7","v":0},{"$f":"'LP 4'!J7","v":0},{"$f":"'LP 5'!J7","v":0},{"$f":"'LP 6'!J7","v":0},{"$f":"'LP 7'!J7","v":0},{"$f":"'LP 8'!J7","v":0},{"$f":"'LP 9'!J7","v":0},{"$f":"'LP 10'!J7","v":0},{"$f":"'LP 11'!J7","v":0},{"$f":"'LP 12'!J7","v":0},{"$f":"'LP 13'!J7","v":0},{"$f":"'LP 14'!J7","v":0},{"$f":"'LP 15'!J7","v":0}]
[null,null,"kann die Schülerinnen und Schüler für die\nAufgaben/Fragen/Problemstellungen motivieren.",{"$f":"SUM('LP 1'!C8,'LP 2'!C8,'LP 3'!C8,'LP 4'!C8,'LP 5'!C8,'LP 6'!C8,'LP 7'!C8,'LP 8'!C8,'LP 9'!C8,'LP 10'!C8,'LP 11'!C8,'LP 12'!C8,'LP 13'!C8,'LP 14'!C8,'LP 15'!C8,)","v":0},{"$f":"SUM('LP 1'!D8,'LP 2'!D8,'LP 3'!D8,'LP 4'!D8,'LP 5'!D8,'LP 6'!D8,'LP 7'!D8,'LP 8'!D8,'LP 9'!D8,'LP 10'!D8,'LP 11'!D8,'LP 12'!D8,'LP 13'!D8,'LP 14'!D8,'LP 15'!D8,)","v":0},{"$f":"SUM('LP 1'!E8,'LP 2'!E8,'LP 3'!E8,'LP 4'!E8,'LP 5'!E8,'LP 6'!E8,'LP 7'!E8,'LP 8'!E8,'LP 9'!E8,'LP 10'!E8,'LP 11'!E8,'LP 12'!E8,'LP 13'!E8,'LP 14'!E8,'LP 15'!E8,)","v":0},{"$f":"SUM('LP 1'!F8,'LP 2'!F8,'LP 3'!F8,'LP 4'!F8,'LP 5'!F8,'LP 6'!F8,'LP 7'!F8,'LP 8'!F8,'LP 9'!F8,'LP 10'!F8,'LP 11'!F8,'LP 12'!F8,'LP 13'!F8,'LP 14'!F8,'LP 15'!F8,)","v":0},null,null,null,{"$f":"'LP 1'!J8","v":0},{"$f":"'LP 2'!J8","v":0},{"$f":"'LP 3'!J8","v":0},{"$f":"'LP 4'!J8","v":0},{"$f":"'LP 5'!J8","v":0},{"$f":"'LP 6'!J8","v":0},{"$f":"'LP 7'!J8","v":0},{"$f":"'LP 8'!J8","v":0},{"$f":"'LP 9'!J8","v":0},{"$f":"'LP 10'!J8","v":0},{"$f":"'LP 11'!J8","v":0},{"$f":"'LP 12'!J8","v":0},{"$f":"'LP 13'!J8","v":0},{"$f":"'LP 14'!J8","v":0},{"$f":"'LP 15'!J8","v":0}]
["Kartenset «Kompetenzprofil für\nLehrpersonen»","Merkmal",null," +++"," ++"," +"," -"," --"," ---"," ?","Auswertung"]
["Karten 1, 3, 6, 7, 8, 9, 11, 12, 23, 31","Kompetenzaufbau",null,{"$f":"SUM('LP 1'!C10,'LP 2'!C10,'LP 3'!C10,'LP 4'!C10,'LP 5'!C10,'LP 6'!C10,'LP 7'!C10,'LP 8'!C10,'LP 9'!C10,'LP 10'!C10,'LP 11'!C10,'LP 12'!C10,'LP 13'!C10,'LP 14'!C10,'LP 15'!C10,)","v":0},{"$f":"SUM('LP 1'!D10,'LP 2'!D10,'LP 3'!D10,'LP 4'!D10,'LP 5'!D10,'LP 6'!D10,'LP 7'!D10,'LP 8'!D10,'LP 9'!D10,'LP 10'!D10,'LP 11'!D10,'LP 12'!D10,'LP 13'!D10,'LP 14'!D10,'LP 15'!D10,)","v":0},{"$f":"SUM('LP 1'!E10,'LP 2'!E10,'LP 3'!E10,'LP 4'!E10,'LP 5'!E10,'LP 6'!E10,'LP 7'!E10,'LP 8'!E10,'LP 9'!E10,'LP 10'!E10,'LP 11'!E10,'LP 12'!E10,'LP 13'!E10,'LP 14'!E10,'LP 15'!E10,)","v":0},{"$f":"SUM('LP 1'!F10,'LP 2'!F10,'LP 3'!F10,'LP 4'!F10,'LP 5'!F10,'LP 6'!F10,'LP 7'!F10,'LP 8'!F10,'LP 9'!F10,'LP 10'!F10,'LP 11'!F10,'LP 12'!F10,'LP 13'!F10,'LP 14'!F10,'LP 15'!F10,)","v":0},{"$f":"SUM('LP 1'!G10,'LP 2'!G10,'LP 3'!G10,'LP 4'!G10,'LP 5'!G10,'LP 6'!G10,'LP 7'!G10,'LP 8'!G10,'LP 9'!G10,'LP 10'!G10,'LP 11'!G10,'LP 12'!G10,'LP 13'!G10,'LP 14'!G10,'LP 15'!G10,)","v":0},{"$f":"SUM('LP 1'!H10,'LP 2'!H10,'LP 3'!H10,'LP 4'!H10,'LP 5'!H10,'LP 6'!H10,'LP 7'!H10,'LP 8'!H10,'LP 9'!H10,'LP 10'!H10,'LP 11'!H10,'LP 12'!H10,'LP 13'!H10,'LP 14'!H10,'LP 15'!H10,)","v":0},{"$f":"SUM('LP 1'!I10,'LP 2'!I10,'LP 3'!I10,'LP 4'!I10,'LP 5'!I10,'LP 6'!I10,'LP 7'!I10,'LP 8'!I10,'LP 9'!I10,'LP 10'!I10,'LP 11'!I10,'LP 12'!I10,'LP 13'!I10,'LP 14'!I10,'LP 15'!I10,)","v":0}]
[null,null,null,null,null,null,null,null,null,null,{"$f":"'LP 1'!J10","v":0},{"$f":"'LP 2'!J10","v":0},{"$f":"'LP 3'!J10","v":0},{"$f":"'LP 4'!J10","v":0},{"$f":"'LP 5'!J10","v":0},{"$f":"'LP 6'!J10","v":0},{"$f":"'LP 7'!J10","v":0},{"$f":"'LP 8'!J10","v":0},{"$f":"'LP 9'!J10","v":0},{"$f":"'LP 10'!J10","v":0},{"$f":"'LP 11'!J10","v":0},{"$f":"'LP 12'!J10","v":0},{"$f":"'LP 13'!J10","v":0},{"$f":"'LP 14'!J10","v":0},{"$f":"'LP 15'!J10","v":0}]
[null,null,"Indikatoren","ja","teils","nein","?",null,null,null,{"$f":"K38","v":"LP 1"},"LP 2","LP 3","LP 4","LP 5","LP 6","LP 7","LP 8","LP 9","LP 10","LP 11","LP 12","LP 13","LP 14","LP 15"]
[null,"Die Lehrperson","knüpft im Unterricht an das Vorwissen der Schülerinnen und Schüler an.",{"$f":"SUM('LP 1'!C12,'LP 2'!C12,'LP 3'!C12,'LP 4'!C12,'LP 5'!C12,'LP 6'!C12,'LP 7'!C12,'LP 8'!C12,'LP 9'!C12,'LP 10'!C12,'LP 11'!C12,'LP 12'!C12,'LP 13'!C12,'LP 14'!C12,'LP 15'!C12,)","v":0},{"$f":"SUM('LP 1'!D12,'LP 2'!D12,'LP 3'!D12,'LP 4'!D12,'LP 5'!D12,'LP 6'!D12,'LP 7'!D12,'LP 8'!D12,'LP 9'!D12,'LP 10'!D12,'LP 11'!D12,'LP 12'!D12,'LP 13'!D12,'LP 14'!D12,'LP 15'!D12,)","v":0},{"$f":"SUM('LP 1'!E12,'LP 2'!E12,'LP 3'!E12,'LP 4'!E12,'LP 5'!E12,'LP 6'!E12,'LP 7'!E12,'LP 8'!E12,'LP 9'!E12,'LP 10'!E12,'LP 11'!E12,'LP 12'!E12,'LP 13'!E12,'LP 14'!E12,'LP 15'!E12,)","v":0},{"$f":"SUM('LP 1'!F12,'LP 2'!F12,'LP 3'!F12,'LP 4'!F12,'LP 5'!F12,'LP 6'!F12,'LP 7'!F12,'LP 8'!F12,'LP 9'!F12,'LP 10'!F12,'LP 11'!F12,'LP 12'!F12,'LP 13'!F12,'LP 14'!F12,'LP 15'!F12,)","v":0},null,null,null,{"$f":"'LP 1'!J12","v":0},{"$f":"'LP 2'!J12","v":0},{"$f":"'LP 3'!J12","v":0},{"$f":"'LP 4'!J12","v":0},{"$f":"'LP 5'!J12","v":0},{"$f":"'LP 6'!J12","v":0},{"$f":"'LP 7'!J12","v":0},{"$f":"'LP 8'!J12","v":0},{"$f":"'LP 9'!J12","v":0},{"$f":"'LP 10'!J12","v":0},{"$f":"'LP 11'!J12","v":0},{"$f":"'LP 12'!J12","v":0},{"$f":"'LP 13'!J12","v":0},{"$f":"'LP 14'!J12","v":0},{"$f":"'LP 15'!J12","v":0}]
[null,null,"schafft herausfordernde Problemstellungen, die Schülerinnen und Schüler zum Denken und Handeln anregen.",{"$f":"SUM('LP 1'!C13,'LP 2'!C13,'LP 3'!C13,'LP 4'!C13,'LP 5'!C13,'LP 6'!C13,'LP 7'!C13,'LP 8'!C13,'LP 9'!C13,'LP 10'!C13,'LP 11'!C13,'LP 12'!C13,'LP 13'!C13,'LP 14'!C13,'LP 15'!C13,)","v":0},{"$f":"SUM('LP 1'!D13,'LP 2'!D13,'LP 3'!D13,'LP 4'!D13,'LP 5'!D13,'LP 6'!D13,'LP 7'!D13,'LP 8'!D13,'LP 9'!D13,'LP 10'!D13,'LP 11'!D13,'LP 12'!D13,'LP 13'!D13,'LP 14'!D13,'LP 15'!D13,)","v":0},{"$f":"SUM('LP 1'!E13,'LP 2'!E13,'LP 3'!E13,'LP 4'!E13,'LP 5'!E13,'LP 6'!E13,'LP 7'!E13,'LP 8'!E13,'LP 9'!E13,'LP 10'!E13,'LP 11'!E13,'LP 12'!E13,'LP 13'!E13,'LP 14'!E13,'LP 15'!E13,)","v":0},{"$f":"SUM('LP 1'!F13,'LP 2'!F13,'LP 3'!F13,'LP 4'!F13,'LP 5'!F13,'LP 6'!F13,'LP 7'!F13,'LP 8'!F13,'LP 9'!F13,'LP 10'!F13,'LP 11'!F13,'LP 12'!F13,'LP 13'!F13,'LP 14'!F13,'LP 15'!F13,)","v":0},null,null,null,{"$f":"'LP 1'!J13","v":0},{"$f":"'LP 2'!J13","v":0},{"$f":"'LP 3'!J13","v":0},{"$f":"'LP 4'!J13","v":0},{"$f":"'LP 5'!J13","v":0},{"$f":"'LP 6'!J13","v":0},{"$f":"'LP 7'!J13","v":0},{"$f":"'LP 8'!J13","v":0},{"$f":"'LP 9'!J13","v":0},{"$f":"'LP 10'!J13","v":0},{"$f":"'LP 11'!J13","v":0},{"$f":"'LP 12'!J13","v":0},{"$f":"'LP 13'!J13","v":0},{"$f":"'LP 14'!J13","v":0},{"$f":"'LP 15'!J13","v":0}]
[null,null,"sorgt dafür, dass an fachlichen Inhalten personale, soziale und methodische Kompetenzen erworben werden (überfachliche Kompetenzen).",{"$f":"SUM('LP 1'!C14,'LP 2'!C14,'LP 3'!C14,'LP 4'!C14,'LP 5'!C14,'LP 6'!C14,'LP 7'!C14,'LP 8'!C14,'LP 9'!C14,'LP 10'!C14,'LP 11'!C14,'LP 12'!C14,'LP 13'!C14,'LP 14'!C14,'LP 15'!C14,)","v":0},{"$f":"SUM('LP 1'!D14,'LP 2'!D14,'LP 3'!D14,'LP 4'!D14,'LP 5'!D14,'LP 6'!D14,'LP 7'!D14,'LP 8'!D14,'LP 9'!D14,'LP 10'!D14,'LP 11'!D14,'LP 12'!D14,'LP 13'!D14,'LP 14'!D14,'LP 15'!D14,)","v":0},{"$f":"SUM('LP 1'!E14,'LP 2'!E14,'LP 3'!E14,'LP 4'!E14,'LP 5'!E14,'LP 6'!E14,'LP 7'!E14,'LP 8'!E14,'LP 9'!E14,'LP 10'!E14,'LP 11'!E14,'LP 12'!E14,'LP 13'!E14,'LP 14'!E14,'LP 15'!E14,)","v":0},{"$f":"SUM('LP 1'!F14,'LP 2'!F14,'LP 3'!F14,'LP 4'!F14,'LP 5'!F14,'LP 6'!F14,'LP 7'!F14,'LP 8'!F14,'LP 9'!F14,'LP 10'!F14,'LP 11'!F14,'LP 12'!F14,'LP 13'!F14,'LP 14'!F14,'LP 15'!F14,)","v":0},null,null,null,{"$f":"'LP 1'!J14","v":0},{"$f":"'LP 2'!J14","v":0},{"$f":"'LP 3'!J14","v":0},{"$f":"'LP 4'!J14","v":0},{"$f":"'LP 5'!J14","v":0},{"$f":"'LP 6'!J14","v":0},{"$f":"'LP 7'!J14","v":0},{"$f":"'LP 8'!J14","v":0},{"$f":"'LP 9'!J14","v":0},{"$f":"'LP 10'!J14","v":0},{"$f":"'LP 11'!J14","v":0},{"$f":"'LP 12'!J14","v":0},{"$f":"'LP 13'!J14","v":0},{"$f":"'LP 14'!J14","v":0},{"$f":"'LP 15'!J14","v":0}]
[null,null,"klärt beim Aufbau von neuem Wissen Fragestellungen und Irritationen der Schülerinnen und Schüler.",{"$f":"SUM('LP 1'!C15,'LP 2'!C15,'LP 3'!C15,'LP 4'!C15,'LP 5'!C15,'LP 6'!C15,'LP 7'!C15,'LP 8'!C15,'LP 9'!C15,'LP 10'!C15,'LP 11'!C15,'LP 12'!C15,'LP 13'!C15,'LP 14'!C15,'LP 15'!C15,)","v":0},{"$f":"SUM('LP 1'!D15,'LP 2'!D15,'LP 3'!D15,'LP 4'!D15,'LP 5'!D15,'LP 6'!D15,'LP 7'!D15,'LP 8'!D15,'LP 9'!D15,'LP 10'!D15,'LP 11'!D15,'LP 12'!D15,'LP 13'!D15,'LP 14'!D15,'LP 15'!D15,)","v":0},{"$f":"SUM('LP 1'!E15,'LP 2'!E15,'LP 3'!E15,'LP 4'!E15,'LP 5'!E15,'LP 6'!E15,'LP 7'!E15,'LP 8'!E15,'LP 9'!E15,'LP 10'!E15,'LP 11'!E15,'LP 12'!E15,'LP 13'!E15,'LP 14'!E15,'LP 15'!E15,)","v":0},{"$f":"SUM('LP 1'!F15,'LP 2'!F15,'LP 3'!F15,'LP 4'!F15,'LP 5'!F15,'LP 6'!F15,'LP 7'!F15,'LP 8'!F15,'LP 9'!F15,'LP 10'!F15,'LP 11'!F15,'LP 12'!F15,'LP 13'!F15,'LP 14'!F15,'LP 15'!F15,)","v":0},null,null,null,{"$f":"'LP 1'!J15","v":0},{"$f":"'LP 2'!J15","v":0},{"$f":"'LP 3'!J15","v":0},{"$f":"'LP 4'!J15","v":0},{"$f":"'LP 5'!J15","v":0},{"$f":"'LP 6'!J15","v":0},{"$f":"'LP 7'!J15","v":0},{"$f":"'LP 8'!J15","v":0},{"$f":"'LP 9'!J15","v":0},{"$f":"'LP 10'!J15","v":0},{"$f":"'LP 11'!J15","v":0},{"$f":"'LP 12'!J15","v":0},{"$f":"'LP 13'!J15","v":0},{"$f":"'LP 14'!J15","v":0},{"$f":"'LP 15'!J15","v":0}]
[null,null,"sorgt für mehrfache und gezielte Übungsphasen mithilfe vielgestaltiger Übungsaufgaben.",{"$f":"SUM('LP 1'!C16,'LP 2'!C16,'LP 3'!C16,'LP 4'!C16,'LP 5'!C16,'LP 6'!C16,'LP 7'!C16,'LP 8'!C16,'LP 9'!C16,'LP 10'!C16,'LP 11'!C16,'LP 12'!C16,'LP 13'!C16,'LP 14'!C16,'LP 15'!C16,)","v":0},{"$f":"SUM('LP 1'!D16,'LP 2'!D16,'LP 3'!D16,'LP 4'!D16,'LP 5'!D16,'LP 6'!D16,'LP 7'!D16,'LP 8'!D16,'LP 9'!D16,'LP 10'!D16,'LP 11'!D16,'LP 12'!D16,'LP 13'!D16,'LP 14'!D16,'LP 15'!D16,)","v":0},{"$f":"SUM('LP 1'!E16,'LP 2'!E16,'LP 3'!E16,'LP 4'!E16,'LP 5'!E16,'LP 6'!E16,'LP 7'!E16,'LP 8'!E16,'LP 9'!E16,'LP 10'!E16,'LP 11'!E16,'LP 12'!E16,'LP 13'!E16,'LP 14'!E16,'LP 15'!E16,)","v":0},{"$f":"SUM('LP 1'!F16,'LP 2'!F16,'LP 3'!F16,'LP 4'!F16,'LP 5'!F16,'LP 6'!F16,'LP 7'!F16,'LP 8'!F16,'LP 9'!F16,'LP 10'!F16,'LP 11'!F16,'LP 12'!F16,'LP 13'!F16,'LP 14'!F16,'LP 15'!F16,)","v":0},null,null,null,{"$f":"'LP 1'!J16","v":0},{"$f":"'LP 2'!J16","v":0},{"$f":"'LP 3'!J16","v":0},{"$f":"'LP 4'!J16","v":0},{"$f":"'LP 5'!J16","v":0},{"$f":"'LP 6'!J16","v":0},{"$f":"'LP 7'!J16","v":0},{"$f":"'LP 8'!J16","v":0},{"$f":"'LP 9'!J16","v":0},{"$f":"'LP 10'!J16","v":0},{"$f":"'LP 11'!J16","v":0},{"$f":"'LP 12'!J16","v":0},{"$f":"'LP 13'!J16","v":0},{"$f":"'LP 14'!J16","v":0},{"$f":"'LP 15'!J16","v":0}]
[null,null,"schafft im Unterricht Gelegenheiten, erworbenes Wissen, bereits gelernte Prozeduren und Methoden auf neue Situationen anzuwenden (Anwendungs-/\nTransferaufgaben).",{"$f":"SUM('LP 1'!C17,'LP 2'!C17,'LP 3'!C17,'LP 4'!C17,'LP 5'!C17,'LP 6'!C17,'LP 7'!C17,'LP 8'!C17,'LP 9'!C17,'LP 10'!C17,'LP 11'!C17,'LP 12'!C17,'LP 13'!C17,'LP 14'!C17,'LP 15'!C17,)","v":0},{"$f":"SUM('LP 1'!D17,'LP 2'!D17,'LP 3'!D17,'LP 4'!D17,'LP 5'!D17,'LP 6'!D17,'LP 7'!D17,'LP 8'!D17,'LP 9'!D17,'LP 10'!D17,'LP 11'!D17,'LP 12'!D17,'LP 13'!D17,'LP 14'!D17,'LP 15'!D17,)","v":0},{"$f":"SUM('LP 1'!E17,'LP 2'!E17,'LP 3'!E17,'LP 4'!E17,'LP 5'!E17,'LP 6'!E17,'LP 7'!E17,'LP 8'!E17,'LP 9'!E17,'LP 10'!E17,'LP 11'!E17,'LP 12'!E17,'LP 13'!E17,'LP 14'!E17,'LP 15'!E17,)","v":0},{"$f":"SUM('LP 1'!F17,'LP 2'!F17,'LP 3'!F17,'LP 4'!F17,'LP 5'!F17,'LP 6'!F17,'LP 7'!F17,'LP 8'!F17,'LP 9'!F17,'LP 10'!F17,'LP 11'!F17,'LP 12'!F17,'LP 13'!F17,'LP 14'!F17,'LP 15'!F17,)","v":0},null,null,null,{"$f":"'LP 1'!J17","v":0},{"$f":"'LP 2'!J17","v":0},{"$f":"'LP 3'!J17","v":0},{"$f":"'LP 4'!J17","v":0},{"$f":"'LP 5'!J17","v":0},{"$f":"'LP 6'!J17","v":0},{"$f":"'LP 7'!J17","v":0},{"$f":"'LP 8'!J17","v":0},{"$f":"'LP 9'!J17","v":0},{"$f":"'LP 10'!J17","v":0},{"$f":"'LP 11'!J17","v":0},{"$f":"'LP 12'!J17","v":0},{"$f":"'LP 13'!J17","v":0},{"$f":"'LP 14'!J17","v":0},{"$f":"'LP 15'!J17","v":0}]
[null,null,"verfügt über Instrumente, den Kompetenzaufbau der Schülerinnen und Schüler zu dokumentieren.",{"$f":"SUM('LP 1'!C18,'LP 2'!C18,'LP 3'!C18,'LP 4'!C18,'LP 5'!C18,'LP 6'!C18,'LP 7'!C18,'LP 8'!C18,'LP 9'!C18,'LP 10'!C18,'LP 11'!C18,'LP 12'!C18,'LP 13'!C18,'LP 14'!C18,'LP 15'!C18,)","v":0},{"$f":"SUM('LP 1'!D18,'LP 2'!D18,'LP 3'!D18,'LP 4'!D18,'LP 5'!D18,'LP 6'!D18,'LP 7'!D18,'LP 8'!D18,'LP 9'!D18,'LP 10'!D18,'LP 11'!D18,'LP 12'!D18,'LP 13'!D18,'LP 14'!D18,'LP 15'!D18,)","v":0},{"$f":"SUM('LP 1'!E18,'LP 2'!E18,'LP 3'!E18,'LP 4'!E18,'LP 5'!E18,'LP 6'!E18,'LP 7'!E18,'LP 8'!E18,'LP 9'!E18,'LP 10'!E18,'LP 11'!E18,'LP 12'!E18,'LP 13'!E18,'LP 14'!E18,'LP 15'!E18,)","v":0},{"$f":"SUM('LP 1'!F18,'LP 2'!F18,'LP 3'!F18,'LP 4'!F18,'LP 5'!F18,'LP 6'!F18,'LP 7'!F18,'LP 8'!F18,'LP 9'!F18,'LP 10'!F18,'LP 11'!F18,'LP 12'!F18,'LP 13'!F18,'LP 14'!F18,'LP 15'!F18,)","v":0},null,null,null,{"$f":"'LP 1'!J18","v":0},{"$f":"'LP 2'!J18","v":0},{"$f":"'LP 3'!J18","v":0},{"$f":"'LP 4'!J18","v":0},{"$f":"'LP 5'!J18","v":0},{"$f":"'LP 6'!J18","v":0},{"$f":"'LP 7'!J18","v":0},{"$f":"'LP 8'!J18","v":0},{"$f":"'LP 9'!J18","v":0},{"$f":"'LP 10'!J18","v":0},{"$f":"'LP 11'!J18","v":0},{"$f":"'LP 12'!J18","v":0},{"$f":"'LP 13'!J18","v":0},{"$f":"'LP 14'!J18","v":0},{"$f":"'LP 15'!J18","v":0}]
[null,null,"leitet die Schülerinnen und Schüler an, den eigenen Lernweg systematisch festzuhalten.",{"$f":"SUM('LP 1'!C19,'LP 2'!C19,'LP 3'!C19,'LP 4'!C19,'LP 5'!C19,'LP 6'!C19,'LP 7'!C19,'LP 8'!C19,'LP 9'!C19,'LP 10'!C19,'LP 11'!C19,'LP 12'!C19,'LP 13'!C19,'LP 14'!C19,'LP 15'!C19,)","v":0},{"$f":"SUM('LP 1'!D19,'LP 2'!D19,'LP 3'!D19,'LP 4'!D19,'LP 5'!D19,'LP 6'!D19,'LP 7'!D19,'LP 8'!D19,'LP 9'!D19,'LP 10'!D19,'LP 11'!D19,'LP 12'!D19,'LP 13'!D19,'LP 14'!D19,'LP 15'!D19,)","v":0},{"$f":"SUM('LP 1'!E19,'LP 2'!E19,'LP 3'!E19,'LP 4'!E19,'LP 5'!E19,'LP 6'!E19,'LP 7'!E19,'LP 8'!E19,'LP 9'!E19,'LP 10'!E19,'LP 11'!E19,'LP 12'!E19,'LP 13'!E19,'LP 14'!E19,'LP 15'!E19,)","v":0},{"$f":"SUM('LP 1'!F19,'LP 2'!F19,'LP 3'!F19,'LP 4'!F19,'LP 5'!F19,'LP 6'!F19,'LP 7'!F19,'LP 8'!F19,'LP 9'!F19,'LP 10'!F19,'LP 11'!F19,'LP 12'!F19,'LP 13'!F19,'LP 14'!F19,'LP 15'!F19,)","v":0},null,null,null,{"$f":"'LP 1'!J19","v":0},{"$f":"'LP 2'!J19","v":0},{"$f":"'LP 3'!J19","v":0},{"$f":"'LP 4'!J19","v":0},{"$f":"'LP 5'!J19","v":0},{"$f":"'LP 6'!J19","v":0},{"$f":"'LP 7'!J19","v":0},{"$f":"'LP 8'!J19","v":0},{"$f":"'LP 9'!J19","v":0},{"$f":"'LP 10'!J19","v":0},{"$f":"'LP 11'!J19","v":0},{"$f":"'LP 12'!J19","v":0},{"$f":"'LP 13'!J19","v":0},{"$f":"'LP 14'!J19","v":0},{"$f":"'LP 15'!J19","v":0}]
["Kartenset «Kompetenzprofil für\nLehrpersonen»","Merkmal",null," +++"," ++"," +"," -"," --"," ---"," ?","Auswertung"]
["Karten 22, 24","Instruktion und Konstruktion",null,{"$f":"SUM('LP 1'!C21,'LP 2'!C21,'LP 3'!C21,'LP 4'!C21,'LP 5'!C21,'LP 6'!C21,'LP 7'!C21,'LP 8'!C21,'LP 9'!C21,'LP 10'!C21,'LP 11'!C21,'LP 12'!C21,'LP 13'!C21,'LP 14'!C21,'LP 15'!C21,)","v":0},{"$f":"SUM('LP 1'!D21,'LP 2'!D21,'LP 3'!D21,'LP 4'!D21,'LP 5'!D21,'LP 6'!D21,'LP 7'!D21,'LP 8'!D21,'LP 9'!D21,'LP 10'!D21,'LP 11'!D21,'LP 12'!D21,'LP 13'!D21,'LP 14'!D21,'LP 15'!D21,)","v":0},{"$f":"SUM('LP 1'!E21,'LP 2'!E21,'LP 3'!E21,'LP 4'!E21,'LP 5'!E21,'LP 6'!E21,'LP 7'!E21,'LP 8'!E21,'LP 9'!E21,'LP 10'!E21,'LP 11'!E21,'LP 12'!E21,'LP 13'!E21,'LP 14'!E21,'LP 15'!E21,)","v":0},{"$f":"SUM('LP 1'!F21,'LP 2'!F21,'LP 3'!F21,'LP 4'!F21,'LP 5'!F21,'LP 6'!F21,'LP 7'!F21,'LP 8'!F21,'LP 9'!F21,'LP 10'!F21,'LP 11'!F21,'LP 12'!F21,'LP 13'!F21,'LP 14'!F21,'LP 15'!F21,)","v":0},{"$f":"SUM('LP 1'!G21,'LP 2'!G21,'LP 3'!G21,'LP 4'!G21,'LP 5'!G21,'LP 6'!G21,'LP 7'!G21,'LP 8'!G21,'LP 9'!G21,'LP 10'!G21,'LP 11'!G21,'LP 12'!G21,'LP 13'!G21,'LP 14'!G21,'LP 15'!G21,)","v":0},{"$f":"SUM('LP 1'!H21,'LP 2'!H21,'LP 3'!H21,'LP 4'!H21,'LP 5'!H21,'LP 6'!H21,'LP 7'!H21,'LP 8'!H21,'LP 9'!H21,'LP 10'!H21,'LP 11'!H21,'LP 12'!H21,'LP 13'!H21,'LP 14'!H21,'LP 15'!H21,)","v":0},{"$f":"SUM('LP 1'!I21,'LP 2'!I21,'LP 3'!I21,'LP 4'!I21,'LP 5'!I21,'LP 6'!I21,'LP 7'!I21,'LP 8'!I21,'LP 9'!I21,'LP 10'!I21,'LP 11'!I21,'LP 12'!I21,'LP 13'!I21,'LP 14'!I21,'LP 15'!I21,)","v":0}]
[null,null,null,null,null,null,null,null,null,null,{"$f":"'LP 1'!J21","v":0},{"$f":"'LP 2'!J21","v":0},{"$f":"'LP 3'!J21","v":0},{"$f":"'LP 4'!J21","v":0},{"$f":"'LP 5'!J21","v":0},{"$f":"'LP 6'!J21","v":0},{"$f":"'LP 7'!J21","v":0},{"$f":"'LP 8'!J21","v":0},{"$f":"'LP 9'!J21","v":0},{"$f":"'LP 10'!J21","v":0},{"$f":"'LP 11'!J21","v":0},{"$f":"'LP 12'!J21","v":0},{"$f":"'LP 13'!J21","v":0},{"$f":"'LP 14'!J21","v":0},{"$f":"'LP 15'!J21","v":0}]
[null,null,"Indikatoren","ja","teils","nein","?",null,null,null,{"$f":"K38","v":"LP 1"},"LP 2","LP 3","LP 4","LP 5","LP 6","LP 7","LP 8","LP 9","LP 10","LP 11","LP 12","LP 13","LP 14","LP 15"]
[null,"Die Lehrperson","setzt Phasen von Instruktion und Konstruktion zielführend ein.",{"$f":"SUM('LP 1'!C23,'LP 2'!C23,'LP 3'!C23,'LP 4'!C23,'LP 5'!C23,'LP 6'!C23,'LP 7'!C23,'LP 8'!C23,'LP 9'!C23,'LP 10'!C23,'LP 11'!C23,'LP 12'!C23,'LP 13'!C23,'LP 14'!C23,'LP 15'!C23,)","v":0},{"$f":"SUM('LP 1'!D23,'LP 2'!D23,'LP 3'!D23,'LP 4'!D23,'LP 5'!D23,'LP 6'!D23,'LP 7'!D23,'LP 8'!D23,'LP 9'!D23,'LP 10'!D23,'LP 11'!D23,'LP 12'!D23,'LP 13'!D23,'LP 14'!D23,'LP 15'!D23,)","v":0},{"$f":"SUM('LP 1'!E23,'LP 2'!E23,'LP 3'!E23,'LP 4'!E23,'LP 5'!E23,'LP 6'!E23,'LP 7'!E23,'LP 8'!E23,'LP 9'!E23,'LP 10'!E23,'LP 11'!E23,'LP 12'!E23,'LP 13'!E23,'LP 14'!E23,'LP 15'!E23,)","v":0},{"$f":"SUM('LP 1'!F23,'LP 2'!F23,'LP 3'!F23,'LP 4'!F23,'LP 5'!F23,'LP 6'!F23,'LP 7'!F23,'LP 8'!F23,'LP 9'!F23,'LP 10'!F23,'LP 11'!F23,'LP 12'!F23,'LP 13'!F23,'LP 14'!F23,'LP 15'!F23,)","v":0},null,null,null,{"$f":"'LP 1'!J23","v":0},{"$f":"'LP 2'!J23","v":0},{"$f":"'LP 3'!J23","v":0},{"$f":"'LP 4'!J23","v":0},{"$f":"'LP 5'!J23","v":0},{"$f":"'LP 6'!J23","v":0},{"$f":"'LP 7'!J23","v":0},{"$f":"'LP 8'!J23","v":0},{"$f":"'LP 9'!J23","v":0},{"$f":"'LP 10'!J23","v":0},{"$f":"'LP 11'!J23","v":0},{"$f":"'LP 12'!J23","v":0},{"$f":"'LP 13'!J23","v":0},{"$f":"'LP 14'!J23","v":0},{"$f":"'LP 15'!J23","v":0}]
[null,null,"sorgt dafür, dass sich Instruktion und Konstruktion aufeinander beziehen.",{"$f":"SUM('LP 1'!C24,'LP 2'!C24,'LP 3'!C24,'LP 4'!C24,'LP 5'!C24,'LP 6'!C24,'LP 7'!C24,'LP 8'!C24,'LP 9'!C24,'LP 10'!C24,'LP 11'!C24,'LP 12'!C24,'LP 13'!C24,'LP 14'!C24,'LP 15'!C24,)","v":0},{"$f":"SUM('LP 1'!D24,'LP 2'!D24,'LP 3'!D24,'LP 4'!D24,'LP 5'!D24,'LP 6'!D24,'LP 7'!D24,'LP 8'!D24,'LP 9'!D24,'LP 10'!D24,'LP 11'!D24,'LP 12'!D24,'LP 13'!D24,'LP 14'!D24,'LP 15'!D24,)","v":0},{"$f":"SUM('LP 1'!E24,'LP 2'!E24,'LP 3'!E24,'LP 4'!E24,'LP 5'!E24,'LP 6'!E24,'LP 7'!E24,'LP 8'!E24,'LP 9'!E24,'LP 10'!E24,'LP 11'!E24,'LP 12'!E24,'LP 13'!E24,'LP 14'!E24,'LP 15'!E24,)","v":0},{"$f":"SUM('LP 1'!F24,'LP 2'!F24,'LP 3'!F24,'LP 4'!F24,'LP 5'!F24,'LP 6'!F24,'LP 7'!F24,'LP 8'!F24,'LP 9'!F24,'LP 10'!F24,'LP 11'!F24,'LP 12'!F24,'LP 13'!F24,'LP 14'!F24,'LP 15'!F24,)","v":0},null,null,null,{"$f":"'LP 1'!J24","v":0},{"$f":"'LP 2'!J24","v":0},{"$f":"'LP 3'!J24","v":0},{"$f":"'LP 4'!J24","v":0},{"$f":"'LP 5'!J24","v":0},{"$f":"'LP 6'!J24","v":0},{"$f":"'LP 7'!J24","v":0},{"$f":"'LP 8'!J24","v":0},{"$f":"'LP 9'!J24","v":0},{"$f":"'LP 10'!J24","v":0},{"$f":"'LP 11'!J24","v":0},{"$f":"'LP 12'!J24","v":0},{"$f":"'LP 13'!J24","v":0},{"$f":"'LP 14'!J24","v":0},{"$f":"'LP 15'!J24","v":0}]
[null,null,"schafft Situationen, die den Lerndialog unter\nSchülerinnen und Schülern anregen und lassen Raum für das Lernen von und miteinander.",{"$f":"SUM('LP 1'!C25,'LP 2'!C25,'LP 3'!C25,'LP 4'!C25,'LP 5'!C25,'LP 6'!C25,'LP 7'!C25,'LP 8'!C25,'LP 9'!C25,'LP 10'!C25,'LP 11'!C25,'LP 12'!C25,'LP 13'!C25,'LP 14'!C25,'LP 15'!C25,)","v":0},{"$f":"SUM('LP 1'!D25,'LP 2'!D25,'LP 3'!D25,'LP 4'!D25,'LP 5'!D25,'LP 6'!D25,'LP 7'!D25,'LP 8'!D25,'LP 9'!D25,'LP 10'!D25,'LP 11'!D25,'LP 12'!D25,'LP 13'!D25,'LP 14'!D25,'LP 15'!D25,)","v":0},{"$f":"SUM('LP 1'!E25,'LP 2'!E25,'LP 3'!E25,'LP 4'!E25,'LP 5'!E25,'LP 6'!E25,'LP 7'!E25,'LP 8'!E25,'LP 9'!E25,'LP 10'!E25,'LP 11'!E25,'LP 12'!E25,'LP 13'!E25,'LP 14'!E25,'LP 15'!E25,)","v":0},{"$f":"SUM('LP 1'!F25,'LP 2'!F25,'LP 3'!F25,'LP 4'!F25,'LP 5'!F25,'LP 6'!F25,'LP 7'!F25,'LP 8'!F25,'LP 9'!F25,'LP 10'!F25,'LP 11'!F25,'LP 12'!F25,'LP 13'!F25,'LP 14'!F25,'LP 15'!F25,)","v":0},null,null,null,{"$f":"'LP 1'!J25","v":0},{"$f":"'LP 2'!J25","v":0},{"$f":"'LP 3'!J25","v":0},{"$f":"'LP 4'!J25","v":0},{"$f":"'LP 5'!J25","v":0},{"$f":"'LP 6'!J25","v":0},{"$f":"'LP 7'!J25","v":0},{"$f":"'LP 8'!J25","v":0},{"$f":"'LP 9'!J25","v":0},{"$f":"'LP 10'!J25","v":0},{"$f":"'LP 11'!J25","v":0},{"$f":"'LP 12'!J25","v":0},{"$f":"'LP 13'!J25","v":0},{"$f":"'LP 14'!J25","v":0},{"$f":"'LP 15'!J25","v":0}]
[null,null,"gibt den Schülerinnen und Schülern die Möglichkeit, Lern- und Verstehensprozesse individuell zu besprechen.",{"$f":"SUM('LP 1'!C26,'LP 2'!C26,'LP 3'!C26,'LP 4'!C26,'LP 5'!C26,'LP 6'!C26,'LP 7'!C26,'LP 8'!C26,'LP 9'!C26,'LP 10'!C26,'LP 11'!C26,'LP 12'!C26,'LP 13'!C26,'LP 14'!C26,'LP 15'!C26,)","v":0},{"$f":"SUM('LP 1'!D26,'LP 2'!D26,'LP 3'!D26,'LP 4'!D26,'LP 5'!D26,'LP 6'!D26,'LP 7'!D26,'LP 8'!D26,'LP 9'!D26,'LP 10'!D26,'LP 11'!D26,'LP 12'!D26,'LP 13'!D26,'LP 14'!D26,'LP 15'!D26,)","v":0},{"$f":"SUM('LP 1'!E26,'LP 2'!E26,'LP 3'!E26,'LP 4'!E26,'LP 5'!E26,'LP 6'!E26,'LP 7'!E26,'LP 8'!E26,'LP 9'!E26,'LP 10'!E26,'LP 11'!E26,'LP 12'!E26,'LP 13'!E26,'LP 14'!E26,'LP 15'!E26,)","v":0},{"$f":"SUM('LP 1'!F26,'LP 2'!F26,'LP 3'!F26,'LP 4'!F26,'LP 5'!F26,'LP 6'!F26,'LP 7'!F26,'LP 8'!F26,'LP 9'!F26,'LP 10'!F26,'LP 11'!F26,'LP 12'!F26,'LP 13'!F26,'LP 14'!F26,'LP 15'!F26,)","v":0},null,null,null,{"$f":"'LP 1'!J26","v":0},{"$f":"'LP 2'!J26","v":0},{"$f":"'LP 3'!J26","v":0},{"$f":"'LP 4'!J26","v":0},{"$f":"'LP 5'!J26","v":0},{"$f":"'LP 6'!J26","v":0},{"$f":"'LP 7'!J26","v":0},{"$f":"'LP 8'!J26","v":0},{"$f":"'LP 9'!J26","v":0},{"$f":"'LP 10'!J26","v":0},{"$f":"'LP 11'!J26","v":0},{"$f":"'LP 12'!J26","v":0},{"$f":"'LP 13'!J26","v":0},{"$f":"'LP 14'!J26","v":0},{"$f":"'LP 15'!J26","v":0}]
[null,null,"leitet die Schülerinnen und Schüler zu weiterführenden Überlegungen an.",{"$f":"SUM('LP 1'!C27,'LP 2'!C27,'LP 3'!C27,'LP 4'!C27,'LP 5'!C27,'LP 6'!C27,'LP 7'!C27,'LP 8'!C27,'LP 9'!C27,'LP 10'!C27,'LP 11'!C27,'LP 12'!C27,'LP 13'!C27,'LP 14'!C27,'LP 15'!C27,)","v":0},{"$f":"SUM('LP 1'!D27,'LP 2'!D27,'LP 3'!D27,'LP 4'!D27,'LP 5'!D27,'LP 6'!D27,'LP 7'!D27,'LP 8'!D27,'LP 9'!D27,'LP 10'!D27,'LP 11'!D27,'LP 12'!D27,'LP 13'!D27,'LP 14'!D27,'LP 15'!D27,)","v":0},{"$f":"SUM('LP 1'!E27,'LP 2'!E27,'LP 3'!E27,'LP 4'!E27,'LP 5'!E27,'LP 6'!E27,'LP 7'!E27,'LP 8'!E27,'LP 9'!E27,'LP 10'!E27,'LP 11'!E27,'LP 12'!E27,'LP 13'!E27,'LP 14'!E27,'LP 15'!E27,)","v":0},{"$f":"SUM('LP 1'!F27,'LP 2'!F27,'LP 3'!F27,'LP 4'!F27,'LP 5'!F27,'LP 6'!F27,'LP 7'!F27,'LP 8'!F27,'LP 9'!F27,'LP 10'!F27,'LP 11'!F27,'LP 12'!F27,'LP 13'!F27,'LP 14'!F27,'LP 15'!F27,)","v":0},null,null,null,{"$f":"'LP 1'!J27","v":0},{"$f":"'LP 2'!J27","v":0},{"$f":"'LP 3'!J27","v":0},{"$f":"'LP 4'!J27","v":0},{"$f":"'LP 5'!J27","v":0},{"$f":"'LP 6'!J27","v":0},{"$f":"'LP 7'!J27","v":0},{"$f":"'LP 8'!J27","v":0},{"$f":"'LP 9'!J27","v":0},{"$f":"'LP 10'!J27","v":0},{"$f":"'LP 11'!J27","v":0},{"$f":"'LP 12'!J27","v":0},{"$f":"'LP 13'!J27","v":0},{"$f":"'LP 14'!J27","v":0},{"$f":"'LP 15'!J27","v":0}]
[null,null,"unterstützt das Verstehen der Schülerinnen und Schüler.",{"$f":"SUM('LP 1'!C28,'LP 2'!C28,'LP 3'!C28,'LP 4'!C28,'LP 5'!C28,'LP 6'!C28,'LP 7'!C28,'LP 8'!C28,'LP 9'!C28,'LP 10'!C28,'LP 11'!C28,'LP 12'!C28,'LP 13'!C28,'LP 14'!C28,'LP 15'!C28,)","v":0},{"$f":"SUM('LP 1'!D28,'LP 2'!D28,'LP 3'!D28,'LP 4'!D28,'LP 5'!D28,'LP 6'!D28,'LP 7'!D28,'LP 8'!D28,'LP 9'!D28,'LP 10'!D28,'LP 11'!D28,'LP 12'!D28,'LP 13'!D28,'LP 14'!D28,'LP 15'!D28,)","v":0},{"$f":"SUM('LP 1'!E28,'LP 2'!E28,'LP 3'!E28,'LP 4'!E28,'LP 5'!E28,'LP 6'!E28,'LP 7'!E28,'LP 8'!E28,'LP 9'!E28,'LP 10'!E28,'LP 11'!E28,'LP 12'!E28,'LP 13'!E28,'LP 14'!E28,'LP 15'!E28,)","v":0},{"$f":"SUM('LP 1'!F28,'LP 2'!F28,'LP 3'!F28,'LP 4'!F28,'LP 5'!F28,'LP 6'!F28,'LP 7'!F28,'LP 8'!F28,'LP 9'!F28,'LP 10'!F28,'LP 11'!F28,'LP 12'!F28,'LP 13'!F28,'LP 14'!F28,'LP 15'!F28,)","v":0},null,null,null,{"$f":"'LP 1'!J28","v":0},{"$f":"'LP 2'!J28","v":0},{"$f":"'LP 3'!J28","v":0},{"$f":"'LP 4'!J28","v":0},{"$f":"'LP 5'!J28","v":0},{"$f":"'LP 6'!J28","v":0},{"$f":"'LP 7'!J28","v":0},{"$f":"'LP 8'!J28","v":0},{"$f":"'LP 9'!J28","v":0},{"$f":"'LP 10'!J28","v":0},{"$f":"'LP 11'!J28","v":0},{"$f":"'LP 12'!J28","v":0},{"$f":"'LP 13'!J28","v":0},{"$f":"'LP 14'!J28","v":0},{"$f":"'LP 15'!J28","v":0}]
[null,null,"nutzt Klassenarbeitsphasen zur Systematisierung und Zusammenfassung des erarbeiteten Wissens und Könnens.",{"$f":"SUM('LP 1'!C29,'LP 2'!C29,'LP 3'!C29,'LP 4'!C29,'LP 5'!C29,'LP 6'!C29,'LP 7'!C29,'LP 8'!C29,'LP 9'!C29,'LP 10'!C29,'LP 11'!C29,'LP 12'!C29,'LP 13'!C29,'LP 14'!C29,'LP 15'!C29,)","v":0},{"$f":"SUM('LP 1'!D29,'LP 2'!D29,'LP 3'!D29,'LP 4'!D29,'LP 5'!D29,'LP 6'!D29,'LP 7'!D29,'LP 8'!D29,'LP 9'!D29,'LP 10'!D29,'LP 11'!D29,'LP 12'!D29,'LP 13'!D29,'LP 14'!D29,'LP 15'!D29,)","v":0},{"$f":"SUM('LP 1'!E29,'LP 2'!E29,'LP 3'!E29,'LP 4'!E29,'LP 5'!E29,'LP 6'!E29,'LP 7'!E29,'LP 8'!E29,'LP 9'!E29,'LP 10'!E29,'LP 11'!E29,'LP 12'!E29,'LP 13'!E29,'LP 14'!E29,'LP 15'!E29,)","v":0},{"$f":"SUM('LP 1'!F29,'LP 2'!F29,'LP 3'!F29,'LP 4'!F29,'LP 5'!F29,'LP 6'!F29,'LP 7'!F29,'LP 8'!F29,'LP 9'!F29,'LP 10'!F29,'LP 11'!F29,'LP 12'!F29,'LP 13'!F29,'LP 14'!F29,'LP 15'!F29,)","v":0},null,null,null,{"$f":"'LP 1'!J29","v":0},{"$f":"'LP 2'!J29","v":0},{"$f":"'LP 3'!J29","v":0},{"$f":"'LP 4'!J29","v":0},{"$f":"'LP 5'!J29","v":0},{"$f":"'LP 6'!J29","v":0},{"$f":"'LP 7'!J29","v":0},{"$f":"'LP 8'!J29","v":0},{"$f":"'LP 9'!J29","v":0},{"$f":"'LP 10'!J29","v":0},{"$f":"'LP 11'!J29","v":0},{"$f":"'LP 12'!J29","v":0},{"$f":"'LP 13'!J29","v":0},{"$f":"'LP 14'!J29","v":0},{"$f":"'LP 15'!J29","v":0}]
["Kartenset «Kompetenzprofil für\nLehrpersonen»","Merkmal",null," +++"," ++"," +"," -"," --"," ---"," ?","Auswertung"]
["Karten 2, 16, 29","Transparenz der Lern- und Leistungserwartungen",null,{"$f":"SUM('LP 1'!C31,'LP 2'!C31,'LP 3'!C31,'LP 4'!C31,'LP 5'!C31,'LP 6'!C31,'LP 7'!C31,'LP 8'!C31,'LP 9'!C31,'LP 10'!C31,'LP 11'!C31,'LP 12'!C31,'LP 13'!C31,'LP 14'!C31,'LP 15'!C31,)","v":0},{"$f":"SUM('LP 1'!D31,'LP 2'!D31,'LP 3'!D31,'LP 4'!D31,'LP 5'!D31,'LP 6'!D31,'LP 7'!D31,'LP 8'!D31,'LP 9'!D31,'LP 10'!D31,'LP 11'!D31,'LP 12'!D31,'LP 13'!D31,'LP 14'!D31,'LP 15'!D31,)","v":0},{"$f":"SUM('LP 1'!E31,'LP 2'!E31,'LP 3'!E31,'LP 4'!E31,'LP 5'!E31,'LP 6'!E31,'LP 7'!E31,'LP 8'!E31,'LP 9'!E31,'LP 10'!E31,'LP 11'!E31,'LP 12'!E31,'LP 13'!E31,'LP 14'!E31,'LP 15'!E31,)","v":0},{"$f":"SUM('LP 1'!F31,'LP 2'!F31,'LP 3'!F31,'LP 4'!F31,'LP 5'!F31,'LP 6'!F31,'LP 7'!F31,'LP 8'!F31,'LP 9'!F31,'LP 10'!F31,'LP 11'!F31,'LP 12'!F31,'LP 13'!F31,'LP 14'!F31,'LP 15'!F31,)","v":0},{"$f":"SUM('LP 1'!G31,'LP 2'!G31,'LP 3'!G31,'LP 4'!G31,'LP 5'!G31,'LP 6'!G31,'LP 7'!G31,'LP 8'!G31,'LP 9'!G31,'LP 10'!G31,'LP 11'!G31,'LP 12'!G31,'LP 13'!G31,'LP 14'!G31,'LP 15'!G31,)","v":0},{"$f":"SUM('LP 1'!H31,'LP 2'!H31,'LP 3'!H31,'LP 4'!H31,'LP 5'!H31,'LP 6'!H31,'LP 7'!H31,'LP 8'!H31,'LP 9'!H31,'LP 10'!H31,'LP 11'!H31,'LP 12'!H31,'LP 13'!H31,'LP 14'!H31,'LP 15'!H31,)","v":0},{"$f":"SUM('LP 1'!I31,'LP 2'!I31,'LP 3'!I31,'LP 4'!I31,'LP 5'!I31,'LP 6'!I31,'LP 7'!I31,'LP 8'!I31,'LP 9'!I31,'LP 10'!I31,'LP 11'!I31,'LP 12'!I31,'LP 13'!I31,'LP 14'!I31,'LP 15'!I31,)","v":0}]
[null,null,null,null,null,null,null,null,null,null,{"$f":"'LP 1'!J31","v":0},{"$f":"'LP 2'!J31","v":0},{"$f":"'LP 3'!J31","v":0},{"$f":"'LP 4'!J31","v":0},{"$f":"'LP 5'!J31","v":0},{"$f":"'LP 6'!J31","v":0},{"$f":"'LP 7'!J31","v":0},{"$f":"'LP 8'!J31","v":0},{"$f":"'LP 9'!J31","v":0},{"$f":"'LP 10'!J31","v":0},{"$f":"'LP 11'!J31","v":0},{"$f":"'LP 12'!J31","v":0},{"$f":"'LP 13'!J31","v":0},{"$f":"'LP 14'!J31","v":0},{"$f":"'LP 15'!J31","v":0}]
[null,null,"Indikatoren","ja","teils","nein","?",null,null,null,{"$f":"K38","v":"LP 1"},"LP 2","LP 3","LP 4","LP 5","LP 6","LP 7","LP 8","LP 9","LP 10","LP 11","LP 12","LP 13","LP 14","LP 15"]
[null,"Die Lehrperson","orientiert sich bei der Formulierung von Lernzielen an den Kompetenzbeschreibungen des Lehrplans.",{"$f":"SUM('LP 1'!C33,'LP 2'!C33,'LP 3'!C33,'LP 4'!C33,'LP 5'!C33,'LP 6'!C33,'LP 7'!C33,'LP 8'!C33,'LP 9'!C33,'LP 10'!C33,'LP 11'!C33,'LP 12'!C33,'LP 13'!C33,'LP 14'!C33,'LP 15'!C33,)","v":0},{"$f":"SUM('LP 1'!D33,'LP 2'!D33,'LP 3'!D33,'LP 4'!D33,'LP 5'!D33,'LP 6'!D33,'LP 7'!D33,'LP 8'!D33,'LP 9'!D33,'LP 10'!D33,'LP 11'!D33,'LP 12'!D33,'LP 13'!D33,'LP 14'!D33,'LP 15'!D33,)","v":0},{"$f":"SUM('LP 1'!E33,'LP 2'!E33,'LP 3'!E33,'LP 4'!E33,'LP 5'!E33,'LP 6'!E33,'LP 7'!E33,'LP 8'!E33,'LP 9'!E33,'LP 10'!E33,'LP 11'!E33,'LP 12'!E33,'LP 13'!E33,'LP 14'!E33,'LP 15'!E33,)","v":0},{"$f":"SUM('LP 1'!F33,'LP 2'!F33,'LP 3'!F33,'LP 4'!F33,'LP 5'!F33,'LP 6'!F33,'LP 7'!F33,'LP 8'!F33,'LP 9'!F33,'LP 10'!F33,'LP 11'!F33,'LP 12'!F33,'LP 13'!F33,'LP 14'!F33,'LP 15'!F33,)","v":0},null,null,null,{"$f":"'LP 1'!J33","v":0},{"$f":"'LP 2'!J33","v":0},{"$f":"'LP 3'!J33","v":0},{"$f":"'LP 4'!J33","v":0},{"$f":"'LP 5'!J33","v":0},{"$f":"'LP 6'!J33","v":0},{"$f":"'LP 7'!J33","v":0},{"$f":"'LP 8'!J33","v":0},{"$f":"'LP 9'!J33","v":0},{"$f":"'LP 10'!J33","v":0},{"$f":"'LP 11'!J33","v":0},{"$f":"'LP 12'!J33","v":0},{"$f":"'LP 13'!J33","v":0},{"$f":"'LP 14'!J33","v":0},{"$f":"'LP 15'!J33","v":0}]
[null,null,"definiert «smarte» Lernziele (stimmig, messbar, attraktiv, realistisch, terminiert).",{"$f":"SUM('LP 1'!C34,'LP 2'!C34,'LP 3'!C34,'LP 4'!C34,'LP 5'!C34,'LP 6'!C34,'LP 7'!C34,'LP 8'!C34,'LP 9'!C34,'LP 10'!C34,'LP 11'!C34,'LP 12'!C34,'LP 13'!C34,'LP 14'!C34,'LP 15'!C34,)","v":0},{"$f":"SUM('LP 1'!D34,'LP 2'!D34,'LP 3'!D34,'LP 4'!D34,'LP 5'!D34,'LP 6'!D34,'LP 7'!D34,'LP 8'!D34,'LP 9'!D34,'LP 10'!D34,'LP 11'!D34,'LP 12'!D34,'LP 13'!D34,'LP 14'!D34,'LP 15'!D34,)","v":0},{"$f":"SUM('LP 1'!E34,'LP 2'!E34,'LP 3'!E34,'LP 4'!E34,'LP 5'!E34,'LP 6'!E34,'LP 7'!E34,'LP 8'!E34,'LP 9'!E34,'LP 10'!E34,'LP 11'!E34,'LP 12'!E34,'LP 13'!E34,'LP 14'!E34,'LP 15'!E34,)","v":0},{"$f":"SUM('LP 1'!F34,'LP 2'!F34,'LP 3'!F34,'LP 4'!F34,'LP 5'!F34,'LP 6'!F34,'LP 7'!F34,'LP 8'!F34,'LP 9'!F34,'LP 10'!F34,'LP 11'!F34,'LP 12'!F34,'LP 13'!F34,'LP 14'!F34,'LP 15'!F34,)","v":0},null,null,null,{"$f":"'LP 1'!J34","v":0},{"$f":"'LP 2'!J34","v":0},{"$f":"'LP 3'!J34","v":0},{"$f":"'LP 4'!J34","v":0},{"$f":"'LP 5'!J34","v":0},{"$f":"'LP 6'!J34","v":0},{"$f":"'LP 7'!J34","v":0},{"$f":"'LP 8'!J34","v":0},{"$f":"'LP 9'!J34","v":0},{"$f":"'LP 10'!J34","v":0},{"$f":"'LP 11'!J34","v":0},{"$f":"'LP 12'!J34","v":0},{"$f":"'LP 13'!J34","v":0},{"$f":"'LP 14'!J34","v":0},{"$f":"'LP 15'!J34","v":0}]
[null,null,"gibt den Schülerinnen und Schülern die Kompetenz-/Lernziele rechtzeitig, schriftlich und verständlich bekannt.",{"$f":"SUM('LP 1'!C35,'LP 2'!C35,'LP 3'!C35,'LP 4'!C35,'LP 5'!C35,'LP 6'!C35,'LP 7'!C35,'LP 8'!C35,'LP 9'!C35,'LP 10'!C35,'LP 11'!C35,'LP 12'!C35,'LP 13'!C35,'LP 14'!C35,'LP 15'!C35,)","v":0},{"$f":"SUM('LP 1'!D35,'LP 2'!D35,'LP 3'!D35,'LP 4'!D35,'LP 5'!D35,'LP 6'!D35,'LP 7'!D35,'LP 8'!D35,'LP 9'!D35,'LP 10'!D35,'LP 11'!D35,'LP 12'!D35,'LP 13'!D35,'LP 14'!D35,'LP 15'!D35,)","v":0},{"$f":"SUM('LP 1'!E35,'LP 2'!E35,'LP 3'!E35,'LP 4'!E35,'LP 5'!E35,'LP 6'!E35,'LP 7'!E35,'LP 8'!E35,'LP 9'!E35,'LP 10'!E35,'LP 11'!E35,'LP 12'!E35,'LP 13'!E35,'LP 14'!E35,'LP 15'!E35,)","v":0},{"$f":"SUM('LP 1'!F35,'LP 2'!F35,'LP 3'!F35,'LP 4'!F35,'LP 5'!F35,'LP 6'!F35,'LP 7'!F35,'LP 8'!F35,'LP 9'!F35,'LP 10'!F35,'LP 11'!F35,'LP 12'!F35,'LP 13'!F35,'LP 14'!F35,'LP 15'!F35,)","v":0},null,null,null,{"$f":"'LP 1'!J35","v":0},{"$f":"'LP 2'!J35","v":0},{"$f":"'LP 3'!J35","v":0},{"$f":"'LP 4'!J35","v":0},{"$f":"'LP 5'!J35","v":0},{"$f":"'LP 6'!J35","v":0},{"$f":"'LP 7'!J35","v":0},{"$f":"'LP 8'!J35","v":0},{"$f":"'LP 9'!J35","v":0},{"$f":"'LP 10'!J35","v":0},{"$f":"'LP 11'!J35","v":0},{"$f":"'LP 12'!J35","v":0},{"$f":"'LP 13'!J35","v":0},{"$f":"'LP 14'!J35","v":0},{"$f":"'LP 15'!J35","v":0}]
[null,null,"schafft während dem Lernprozess systematisch Bezüge sowohl zu den Kompetenzzielen als auch zu den Lernzielen einzelner Etappen.",{"$f":"SUM('LP 1'!C36,'LP 2'!C36,'LP 3'!C36,'LP 4'!C36,'LP 5'!C36,'LP 6'!C36,'LP 7'!C36,'LP 8'!C36,'LP 9'!C36,'LP 10'!C36,'LP 11'!C36,'LP 12'!C36,'LP 13'!C36,'LP 14'!C36,'LP 15'!C36,)","v":0},{"$f":"SUM('LP 1'!D36,'LP 2'!D36,'LP 3'!D36,'LP 4'!D36,'LP 5'!D36,'LP 6'!D36,'LP 7'!D36,'LP 8'!D36,'LP 9'!D36,'LP 10'!D36,'LP 11'!D36,'LP 12'!D36,'LP 13'!D36,'LP 14'!D36,'LP 15'!D36,)","v":0},{"$f":"SUM('LP 1'!E36,'LP 2'!E36,'LP 3'!E36,'LP 4'!E36,'LP 5'!E36,'LP 6'!E36,'LP 7'!E36,'LP 8'!E36,'LP 9'!E36,'LP 10'!E36,'LP 11'!E36,'LP 12'!E36,'LP 13'!E36,'LP 14'!E36,'LP 15'!E36,)","v":0},{"$f":"SUM('LP 1'!F36,'LP 2'!F36,'LP 3'!F36,'LP 4'!F36,'LP 5'!F36,'LP 6'!F36,'LP 7'!F36,'LP 8'!F36,'LP 9'!F36,'LP 10'!F36,'LP 11'!F36,'LP 12'!F36,'LP 13'!F36,'LP 14'!F36,'LP 15'!F36,)","v":0},null,null,null,{"$f":"'LP 1'!J36","v":0},{"$f":"'LP 2'!J36","v":0},{"$f":"'LP 3'!J36","v":0},{"$f":"'LP 4'!J36","v":0},{"$f":"'LP 5'!J36","v":0},{"$f":"'LP 6'!J36","v":0},{"$f":"'LP 7'!J36","v":0},{"$f":"'LP 8'!J36","v":0},{"$f":"'LP 9'!J36","v":0},{"$f":"'LP 10'!J36","v":0},{"$f":"'LP 11'!J36","v":0},{"$f":"'LP 12'!J36","v":0},{"$f":"'LP 13'!J36","v":0},{"$f":"'LP 14'!J36","v":0},{"$f":"'LP 15'!J36","v":0}]
[null,null,"formuliert gegenüber den einzelnen Schülerinnen und Schülern individuell angepasste Lernziele.",{"$f":"SUM('LP 1'!C37,'LP 2'!C37,'LP 3'!C37,'LP 4'!C37,'LP 5'!C37,'LP 6'!C37,'LP 7'!C37,'LP 8'!C37,'LP 9'!C37,'LP 10'!C37,'LP 11'!C37,'LP 12'!C37,'LP 13'!C37,'LP 14'!C37,'LP 15'!C37,)","v":0},{"$f":"SUM('LP 1'!D37,'LP 2'!D37,'LP 3'!D37,'LP 4'!D37,'LP 5'!D37,'LP 6'!D37,'LP 7'!D37,'LP 8'!D37,'LP 9'!D37,'LP 10'!D37,'LP 11'!D37,'LP 12'!D37,'LP 13'!D37,'LP 14'!D37,'LP 15'!D37,)","v":0},{"$f":"SUM('LP 1'!E37,'LP 2'!E37,'LP 3'!E37,'LP 4'!E37,'LP 5'!E37,'LP 6'!E37,'LP 7'!E37,'LP 8'!E37,'LP 9'!E37,'LP 10'!E37,'LP 11'!E37,'LP 12'!E37,'LP 13'!E37,'LP 14'!E37,'LP 15'!E37,)","v":0},{"$f":"SUM('LP 1'!F37,'LP 2'!F37,'LP 3'!F37,'LP 4'!F37,'LP 5'!F37,'LP 6'!F37,'LP 7'!F37,'LP 8'!F37,'LP 9'!F37,'LP 10'!F37,'LP 11'!F37,'LP 12'!F37,'LP 13'!F37,'LP 14'!F37,'LP 15'!F37,)","v":0},null,null,null,{"$f":"'LP 1'!J37","v":0},{"$f":"'LP 2'!J37","v":0},{"$f":"'LP 3'!J37","v":0},{"$f":"'LP 4'!J37","v":0},{"$f":"'LP 5'!J37","v":0},{"$f":"'LP 6'!J37","v":0},{"$f":"'LP 7'!J37","v":0},{"$f":"'LP 8'!J37","v":0},{"$f":"'LP 9'!J37","v":0},{"$f":"'LP 10'!J37","v":0},{"$f":"'LP 11'!J37","v":0},{"$f":"'LP 12'!J37","v":0},{"$f":"'LP 13'!J37","v":0},{"$f":"'LP 14'!J37","v":0},{"$f":"'LP 15'!J37","v":0}]
[null,null,"schafft Gelegenheiten, dass Schülerinnen und Schüler eigene Lernprozesse anhand gemeinsam entwickelter Indikatoren überprüfen können.",{"$f":"SUM('LP 1'!C38,'LP 2'!C38,'LP 3'!C38,'LP 4'!C38,'LP 5'!C38,'LP 6'!C38,'LP 7'!C38,'LP 8'!C38,'LP 9'!C38,'LP 10'!C38,'LP 11'!C38,'LP 12'!C38,'LP 13'!C38,'LP 14'!C38,'LP 15'!C38,)","v":0},{"$f":"SUM('LP 1'!D38,'LP 2'!D38,'LP 3'!D38,'LP 4'!D38,'LP 5'!D38,'LP 6'!D38,'LP 7'!D38,'LP 8'!D38,'LP 9'!D38,'LP 10'!D38,'LP 11'!D38,'LP 12'!D38,'LP 13'!D38,'LP 14'!D38,'LP 15'!D38,)","v":0},{"$f":"SUM('LP 1'!E38,'LP 2'!E38,'LP 3'!E38,'LP 4'!E38,'LP 5'!E38,'LP 6'!E38,'LP 7'!E38,'LP 8'!E38,'LP 9'!E38,'LP 10'!E38,'LP 11'!E38,'LP 12'!E38,'LP 13'!E38,'LP 14'!E38,'LP 15'!E38,)","v":0},{"$f":"SUM('LP 1'!F38,'LP 2'!F38,'LP 3'!F38,'LP 4'!F38,'LP 5'!F38,'LP 6'!F38,'LP 7'!F38,'LP 8'!F38,'LP 9'!F38,'LP 10'!F38,'LP 11'!F38,'LP 12'!F38,'LP 13'!F38,'LP 14'!F38,'LP 15'!F38,)","v":0},null,null,null,{"$f":"'LP 1'!J38","v":0},{"$f":"'LP 2'!J38","v":0},{"$f":"'LP 3'!J38","v":0},{"$f":"'LP 4'!J38","v":0},{"$f":"'LP 5'!J38","v":0},{"$f":"'LP 6'!J38","v":0},{"$f":"'LP 7'!J38","v":0},{"$f":"'LP 8'!J38","v":0},{"$f":"'LP 9'!J38","v":0},{"$f":"'LP 10'!J38","v":0},{"$f":"'LP 11'!J38","v":0},{"$f":"'LP 12'!J38","v":0},{"$f":"'LP 13'!J38","v":0},{"$f":"'LP 14'!J38","v":0},{"$f":"'LP 15'!J38","v":0}]
["Kartenset «Kompetenzprofil für\nLehrpersonen»","Merkmal",null," +++"," ++"," +"," -"," --"," ---"," ?","Auswertung"]
["Karten 4, 10, 13, 14, 15, 18, 21, 26, 27, 28","Differenzierung",null,{"$f":"SUM('LP 1'!C40,'LP 2'!C40,'LP 3'!C40,'LP 4'!C40,'LP 5'!C40,'LP 6'!C40,'LP 7'!C40,'LP 8'!C40,'LP 9'!C40,'LP 10'!C40,'LP 11'!C40,'LP 12'!C40,'LP 13'!C40,'LP 14'!C40,'LP 15'!C40,)","v":0},{"$f":"SUM('LP 1'!D40,'LP 2'!D40,'LP 3'!D40,'LP 4'!D40,'LP 5'!D40,'LP 6'!D40,'LP 7'!D40,'LP 8'!D40,'LP 9'!D40,'LP 10'!D40,'LP 11'!D40,'LP 12'!D40,'LP 13'!D40,'LP 14'!D40,'LP 15'!D40,)","v":0},{"$f":"SUM('LP 1'!E40,'LP 2'!E40,'LP 3'!E40,'LP 4'!E40,'LP 5'!E40,'LP 6'!E40,'LP 7'!E40,'LP 8'!E40,'LP 9'!E40,'LP 10'!E40,'LP 11'!E40,'LP 12'!E40,'LP 13'!E40,'LP 14'!E40,'LP 15'!E40,)","v":0},{"$f":"SUM('LP 1'!F40,'LP 2'!F40,'LP 3'!F40,'LP 4'!F40,'LP 5'!F40,'LP 6'!F40,'LP 7'!F40,'LP 8'!F40,'LP 9'!F40,'LP 10'!F40,'LP 11'!F40,'LP 12'!F40,'LP 13'!F40,'LP 14'!F40,'LP 15'!F40,)","v":0},{"$f":"SUM('LP 1'!G40,'LP 2'!G40,'LP 3'!G40,'LP 4'!G40,'LP 5'!G40,'LP 6'!G40,'LP 7'!G40,'LP 8'!G40,'LP 9'!G40,'LP 10'!G40,'LP 11'!G40,'LP 12'!G40,'LP 13'!G40,'LP 14'!G40,'LP 15'!G40,)","v":0},{"$f":"SUM('LP 1'!H40,'LP 2'!H40,'LP 3'!H40,'LP 4'!H40,'LP 5'!H40,'LP 6'!H40,'LP 7'!H40,'LP 8'!H40,'LP 9'!H40,'LP 10'!H40,'LP 11'!H40,'LP 12'!H40,'LP 13'!H40,'LP 14'!H40,'LP 15'!H40,)","v":0},{"$f":"SUM('LP 1'!I40,'LP 2'!I40,'LP 3'!I40,'LP 4'!I40,'LP 5'!I40,'LP 6'!I40,'LP 7'!I40,'LP 8'!I40,'LP 9'!I40,'LP 10'!I40,'LP 11'!I40,'LP 12'!I40,'LP 13'!I40,'LP 14'!I40,'LP 15'!I40,)","v":0}]
[null,null,null,null,null,null,null,null,null,null,{"$f":"'LP 1'!J40","v":0},{"$f":"'LP 2'!J40","v":0},{"$f":"'LP 3'!J40","v":0},{"$f":"'LP 4'!J40","v":0},{"$f":"'LP 5'!J40","v":0},{"$f":"'LP 6'!J40","v":0},{"$f":"'LP 7'!J40","v":0},{"$f":"'LP 8'!J40","v":0},{"$f":"'LP 9'!J40","v":0},{"$f":"'LP 10'!J40","v":0},{"$f":"'LP 11'!J40","v":0},{"$f":"'LP 12'!J40","v":0},{"$f":"'LP 13'!J40","v":0},{"$f":"'LP 14'!J40","v":0},{"$f":"'LP 15'!J40","v":0}]
[null,null,"Indikatoren","ja","teils","nein","?",null,null,null,{"$f":"K38","v":"LP 1"},"LP 2","LP 3","LP 4","LP 5","LP 6","LP 7","LP 8","LP 9","LP 10","LP 11","LP 12","LP 13","LP 14","LP 15"]
[null,"Die Lehrperson","gestaltet den Unterricht so, dass die Schülerinnen und Schüler weder unter- noch überfordert sind.",{"$f":"SUM('LP 1'!C42,'LP 2'!C42,'LP 3'!C42,'LP 4'!C42,'LP 5'!C42,'LP 6'!C42,'LP 7'!C42,'LP 8'!C42,'LP 9'!C42,'LP 10'!C42,'LP 11'!C42,'LP 12'!C42,'LP 13'!C42,'LP 14'!C42,'LP 15'!C42,)","v":0},{"$f":"SUM('LP 1'!D42,'LP 2'!D42,'LP 3'!D42,'LP 4'!D42,'LP 5'!D42,'LP 6'!D42,'LP 7'!D42,'LP 8'!D42,'LP 9'!D42,'LP 10'!D42,'LP 11'!D42,'LP 12'!D42,'LP 13'!D42,'LP 14'!D42,'LP 15'!D42,)","v":0},{"$f":"SUM('LP 1'!E42,'LP 2'!E42,'LP 3'!E42,'LP 4'!E42,'LP 5'!E42,'LP 6'!E42,'LP 7'!E42,'LP 8'!E42,'LP 9'!E42,'LP 10'!E42,'LP 11'!E42,'LP 12'!E42,'LP 13'!E42,'LP 14'!E42,'LP 15'!E42,)","v":0},{"$f":"SUM('LP 1'!F42,'LP 2'!F42,'LP 3'!F42,'LP 4'!F42,'LP 5'!F42,'LP 6'!F42,'LP 7'!F42,'LP 8'!F42,'LP 9'!F42,'LP 10'!F42,'LP 11'!F42,'LP 12'!F42,'LP 13'!F42,'LP 14'!F42,'LP 15'!F42,)","v":0},null,null,null,{"$f":"'LP 1'!J42","v":0},{"$f":"'LP 2'!J42","v":0},{"$f":"'LP 3'!J42","v":0},{"$f":"'LP 4'!J42","v":0},{"$f":"'LP 5'!J42","v":0},{"$f":"'LP 6'!J42","v":0},{"$f":"'LP 7'!J42","v":0},{"$f":"'LP 8'!J42","v":0},{"$f":"'LP 9'!J42","v":0},{"$f":"'LP 10'!J42","v":0},{"$f":"'LP 11'!J42","v":0},{"$f":"'LP 12'!J42","v":0},{"$f":"'LP 13'!J42","v":0},{"$f":"'LP 14'!J42","v":0},{"$f":"'LP 15'!J42","v":0}]
[null,null,"stellt ein vielfältiges Lernangebot bereit, das sich auf eine Analyse des Lernstands der Schülerinnen und Schüler stützt.",{"$f":"SUM('LP 1'!C43,'LP 2'!C43,'LP 3'!C43,'LP 4'!C43,'LP 5'!C43,'LP 6'!C43,'LP 7'!C43,'LP 8'!C43,'LP 9'!C43,'LP 10'!C43,'LP 11'!C43,'LP 12'!C43,'LP 13'!C43,'LP 14'!C43,'LP 15'!C43,)","v":0},{"$f":"SUM('LP 1'!D43,'LP 2'!D43,'LP 3'!D43,'LP 4'!D43,'LP 5'!D43,'LP 6'!D43,'LP 7'!D43,'LP 8'!D43,'LP 9'!D43,'LP 10'!D43,'LP 11'!D43,'LP 12'!D43,'LP 13'!D43,'LP 14'!D43,'LP 15'!D43,)","v":0},{"$f":"SUM('LP 1'!E43,'LP 2'!E43,'LP 3'!E43,'LP 4'!E43,'LP 5'!E43,'LP 6'!E43,'LP 7'!E43,'LP 8'!E43,'LP 9'!E43,'LP 10'!E43,'LP 11'!E43,'LP 12'!E43,'LP 13'!E43,'LP 14'!E43,'LP 15'!E43,)","v":0},{"$f":"SUM('LP 1'!F43,'LP 2'!F43,'LP 3'!F43,'LP 4'!F43,'LP 5'!F43,'LP 6'!F43,'LP 7'!F43,'LP 8'!F43,'LP 9'!F43,'LP 10'!F43,'LP 11'!F43,'LP 12'!F43,'LP 13'!F43,'LP 14'!F43,'LP 15'!F43,)","v":0},null,null,null,{"$f":"'LP 1'!J43","v":0},{"$f":"'LP 2'!J43","v":0},{"$f":"'LP 3'!J43","v":0},{"$f":"'LP 4'!J43","v":0},{"$f":"'LP 5'!J43","v":0},{"$f":"'LP 6'!J43","v":0},{"$f":"'LP 7'!J43","v":0},{"$f":"'LP 8'!J43","v":0},{"$f":"'LP 9'!J43","v":0},{"$f":"'LP 10'!J43","v":0},{"$f":"'LP 11'!J43","v":0},{"$f":"'LP 12'!J43","v":0},{"$f":"'LP 13'!J43","v":0},{"$f":"'LP 14'!J43","v":0},{"$f":"'LP 15'!J43","v":0}]
[null,null,"reagiert auf die unterschiedlichen Lernvoraussetzungen der Schülerinnen und Schüler mit gezielten Massnahmen (z.B. Methodendifferenzierung, Tempodifferenzierung und Differenzierung der Anschauungsmittel).",{"$f":"SUM('LP 1'!C44,'LP 2'!C44,'LP 3'!C44,'LP 4'!C44,'LP 5'!C44,'LP 6'!C44,'LP 7'!C44,'LP 8'!C44,'LP 9'!C44,'LP 10'!C44,'LP 11'!C44,'LP 12'!C44,'LP 13'!C44,'LP 14'!C44,'LP 15'!C44,)","v":0},{"$f":"SUM('LP 1'!D44,'LP 2'!D44,'LP 3'!D44,'LP 4'!D44,'LP 5'!D44,'LP 6'!D44,'LP 7'!D44,'LP 8'!D44,'LP 9'!D44,'LP 10'!D44,'LP 11'!D44,'LP 12'!D44,'LP 13'!D44,'LP 14'!D44,'LP 15'!D44,)","v":0},{"$f":"SUM('LP 1'!E44,'LP 2'!E44,'LP 3'!E44,'LP 4'!E44,'LP 5'!E44,'LP 6'!E44,'LP 7'!E44,'LP 8'!E44,'LP 9'!E44,'LP 10'!E44,'LP 11'!E44,'LP 12'!E44,'LP 13'!E44,'LP 14'!E44,'LP 15'!E44,)","v":0},{"$f":"SUM('LP 1'!F44,'LP 2'!F44,'LP 3'!F44,'LP 4'!F44,'LP 5'!F44,'LP 6'!F44,'LP 7'!F44,'LP 8'!F44,'LP 9'!F44,'LP 10'!F44,'LP 11'!F44,'LP 12'!F44,'LP 13'!F44,'LP 14'!F44,'LP 15'!F44,)","v":0},null,null,null,{"$f":"'LP 1'!J44","v":0},{"$f":"'LP 2'!J44","v":0},{"$f":"'LP 3'!J44","v":0},{"$f":"'LP 4'!J44","v":0},{"$f":"'LP 5'!J44","v":0},{"$f":"'LP 6'!J44","v":0},{"$f":"'LP 7'!J44","v":0},{"$f":"'LP 8'!J44","v":0},{"$f":"'LP 9'!J44","v":0},{"$f":"'LP 10'!J44","v":0},{"$f":"'LP 11'!J44","v":0},{"$f":"'LP 12'!J44","v":0},{"$f":"'LP 13'!J44","v":0},{"$f":"'LP 14'!J44","v":0},{"$f":"'LP 15'!J44","v":0}]
[null,null,"gestaltet Lernumgebungen/Aufgaben so, dass auf unterschiedlichen Anforderungsniveaus gearbeitet werden kann (Niveaudifferenzierung).",{"$f":"SUM('LP 1'!C45,'LP 2'!C45,'LP 3'!C45,'LP 4'!C45,'LP 5'!C45,'LP 6'!C45,'LP 7'!C45,'LP 8'!C45,'LP 9'!C45,'LP 10'!C45,'LP 11'!C45,'LP 12'!C45,'LP 13'!C45,'LP 14'!C45,'LP 15'!C45,)","v":0},{"$f":"SUM('LP 1'!D45,'LP 2'!D45,'LP 3'!D45,'LP 4'!D45,'LP 5'!D45,'LP 6'!D45,'LP 7'!D45,'LP 8'!D45,'LP 9'!D45,'LP 10'!D45,'LP 11'!D45,'LP 12'!D45,'LP 13'!D45,'LP 14'!D45,'LP 15'!D45,)","v":0},{"$f":"SUM('LP 1'!E45,'LP 2'!E45,'LP 3'!E45,'LP 4'!E45,'LP 5'!E45,'LP 6'!E45,'LP 7'!E45,'LP 8'!E45,'LP 9'!E45,'LP 10'!E45,'LP 11'!E45,'LP 12'!E45,'LP 13'!E45,'LP 14'!E45,'LP 15'!E45,)","v":0},{"$f":"SUM('LP 1'!F45,'LP 2'!F45,'LP 3'!F45,'LP 4'!F45,'LP 5'!F45,'LP 6'!F45,'LP 7'!F45,'LP 8'!F45,'LP 9'!F45,'LP 10'!F45,'LP 11'!F45,'LP 12'!F45,'LP 13'!F45,'LP 14'!F45,'LP 15'!F45,)","v":0},null,null,null,{"$f":"'LP 1'!J45","v":0},{"$f":"'LP 2'!J45","v":0},{"$f":"'LP 3'!J45","v":0},{"$f":"'LP 4'!J45","v":0},{"$f":"'LP 5'!J45","v":0},{"$f":"'LP 6'!J45","v":0},{"$f":"'LP 7'!J45","v":0},{"$f":"'LP 8'!J45","v":0},{"$f":"'LP 9'!J45","v":0},{"$f":"'LP 10'!J45","v":0},{"$f":"'LP 11'!J45","v":0},{"$f":"'LP 12'!J45","v":0},{"$f":"'LP 13'!J45","v":0},{"$f":"'LP 14'!J45","v":0},{"$f":"'LP 15'!J45","v":0}]
[null,null,"schafft Möglichkeiten für Schülerinnen und Schüler zur inhaltlichen Mitbestimmung (Inhaltsdifferenzierung).",{"$f":"SUM('LP 1'!C46,'LP 2'!C46,'LP 3'!C46,'LP 4'!C46,'LP 5'!C46,'LP 6'!C46,'LP 7'!C46,'LP 8'!C46,'LP 9'!C46,'LP 10'!C46,'LP 11'!C46,'LP 12'!C46,'LP 13'!C46,'LP 14'!C46,'LP 15'!C46,)","v":0},{"$f":"SUM('LP 1'!D46,'LP 2'!D46,'LP 3'!D46,'LP 4'!D46,'LP 5'!D46,'LP 6'!D46,'LP 7'!D46,'LP 8'!D46,'LP 9'!D46,'LP 10'!D46,'LP 11'!D46,'LP 12'!D46,'LP 13'!D46,'LP 14'!D46,'LP 15'!D46,)","v":0},{"$f":"SUM('LP 1'!E46,'LP 2'!E46,'LP 3'!E46,'LP 4'!E46,'LP 5'!E46,'LP 6'!E46,'LP 7'!E46,'LP 8'!E46,'LP 9'!E46,'LP 10'!E46,'LP 11'!E46,'LP 12'!E46,'LP 13'!E46,'LP 14'!E46,'LP 15'!E46,)","v":0},{"$f":"SUM('LP 1'!F46,'LP 2'!F46,'LP 3'!F46,'LP 4'!F46,'LP 5'!F46,'LP 6'!F46,'LP 7'!F46,'LP 8'!F46,'LP 9'!F46,'LP 10'!F46,'LP 11'!F46,'LP 12'!F46,'LP 13'!F46,'LP 14'!F46,'LP 15'!F46,)","v":0},null,null,null,{"$f":"'LP 1'!J46","v":0},{"$f":"'LP 2'!J46","v":0},{"$f":"'LP 3'!J46","v":0},{"$f":"'LP 4'!J46","v":0},{"$f":"'LP 5'!J46","v":0},{"$f":"'LP 6'!J46","v":0},{"$f":"'LP 7'!J46","v":0},{"$f":"'LP 8'!J46","v":0},{"$f":"'LP 9'!J46","v":0},{"$f":"'LP 10'!J46","v":0},{"$f":"'LP 11'!J46","v":0},{"$f":"'LP 12'!J46","v":0},{"$f":"'LP 13'!J46","v":0},{"$f":"'LP 14'!J46","v":0},{"$f":"'LP 15'!J46","v":0}]
[null,null,"stellt bewusst enge, halboffene oder offene Aufgaben, je nach Stand im Lernprozess beziehungsweise in Bezug zum Kompetenzaufbau.",{"$f":"SUM('LP 1'!C47,'LP 2'!C47,'LP 3'!C47,'LP 4'!C47,'LP 5'!C47,'LP 6'!C47,'LP 7'!C47,'LP 8'!C47,'LP 9'!C47,'LP 10'!C47,'LP 11'!C47,'LP 12'!C47,'LP 13'!C47,'LP 14'!C47,'LP 15'!C47,)","v":0},{"$f":"SUM('LP 1'!D47,'LP 2'!D47,'LP 3'!D47,'LP 4'!D47,'LP 5'!D47,'LP 6'!D47,'LP 7'!D47,'LP 8'!D47,'LP 9'!D47,'LP 10'!D47,'LP 11'!D47,'LP 12'!D47,'LP 13'!D47,'LP 14'!D47,'LP 15'!D47,)","v":0},{"$f":"SUM('LP 1'!E47,'LP 2'!E47,'LP 3'!E47,'LP 4'!E47,'LP 5'!E47,'LP 6'!E47,'LP 7'!E47,'LP 8'!E47,'LP 9'!E47,'LP 10'!E47,'LP 11'!E47,'LP 12'!E47,'LP 13'!E47,'LP 14'!E47,'LP 15'!E47,)","v":0},{"$f":"SUM('LP 1'!F47,'LP 2'!F47,'LP 3'!F47,'LP 4'!F47,'LP 5'!F47,'LP 6'!F47,'LP 7'!F47,'LP 8'!F47,'LP 9'!F47,'LP 10'!F47,'LP 11'!F47,'LP 12'!F47,'LP 13'!F47,'LP 14'!F47,'LP 15'!F47,)","v":0},null,null,null,{"$f":"'LP 1'!J47","v":0},{"$f":"'LP 2'!J47","v":0},{"$f":"'LP 3'!J47","v":0},{"$f":"'LP 4'!J47","v":0},{"$f":"'LP 5'!J47","v":0},{"$f":"'LP 6'!J47","v":0},{"$f":"'LP 7'!J47","v":0},{"$f":"'LP 8'!J47","v":0},{"$f":"'LP 9'!J47","v":0},{"$f":"'LP 10'!J47","v":0},{"$f":"'LP 11'!J47","v":0},{"$f":"'LP 12'!J47","v":0},{"$f":"'LP 13'!J47","v":0},{"$f":"'LP 14'!J47","v":0},{"$f":"'LP 15'!J47","v":0}]
[null,null,"übergibt den Schülerinnen und Schülern aufgrund ihrer Voraussetzungen Eigenverantwortung für ihre Lernziele, Lernprozesse und Lernprodukte.",{"$f":"SUM('LP 1'!C48,'LP 2'!C48,'LP 3'!C48,'LP 4'!C48,'LP 5'!C48,'LP 6'!C48,'LP 7'!C48,'LP 8'!C48,'LP 9'!C48,'LP 10'!C48,'LP 11'!C48,'LP 12'!C48,'LP 13'!C48,'LP 14'!C48,'LP 15'!C48,)","v":0},{"$f":"SUM('LP 1'!D48,'LP 2'!D48,'LP 3'!D48,'LP 4'!D48,'LP 5'!D48,'LP 6'!D48,'LP 7'!D48,'LP 8'!D48,'LP 9'!D48,'LP 10'!D48,'LP 11'!D48,'LP 12'!D48,'LP 13'!D48,'LP 14'!D48,'LP 15'!D48,)","v":0},{"$f":"SUM('LP 1'!E48,'LP 2'!E48,'LP 3'!E48,'LP 4'!E48,'LP 5'!E48,'LP 6'!E48,'LP 7'!E48,'LP 8'!E48,'LP 9'!E48,'LP 10'!E48,'LP 11'!E48,'LP 12'!E48,'LP 13'!E48,'LP 14'!E48,'LP 15'!E48,)","v":0},{"$f":"SUM('LP 1'!F48,'LP 2'!F48,'LP 3'!F48,'LP 4'!F48,'LP 5'!F48,'LP 6'!F48,'LP 7'!F48,'LP 8'!F48,'LP 9'!F48,'LP 10'!F48,'LP 11'!F48,'LP 12'!F48,'LP 13'!F48,'LP 14'!F48,'LP 15'!F48,)","v":0},null,null,null,{"$f":"'LP 1'!J48","v":0},{"$f":"'LP 2'!J48","v":0},{"$f":"'LP 3'!J48","v":0},{"$f":"'LP 4'!J48","v":0},{"$f":"'LP 5'!J48","v":0},{"$f":"'LP 6'!J48","v":0},{"$f":"'LP 7'!J48","v":0},{"$f":"'LP 8'!J48","v":0},{"$f":"'LP 9'!J48","v":0},{"$f":"'LP 10'!J48","v":0},{"$f":"'LP 11'!J48","v":0},{"$f":"'LP 12'!J48","v":0},{"$f":"'LP 13'!J48","v":0},{"$f":"'LP 14'!J48","v":0},{"$f":"'LP 15'!J48","v":0}]
[null,null,"gibt den Schülerinnen und Schülern individuelle und situative Unterstützung aufgrund gezielter Beobachtungen.",{"$f":"SUM('LP 1'!C49,'LP 2'!C49,'LP 3'!C49,'LP 4'!C49,'LP 5'!C49,'LP 6'!C49,'LP 7'!C49,'LP 8'!C49,'LP 9'!C49,'LP 10'!C49,'LP 11'!C49,'LP 12'!C49,'LP 13'!C49,'LP 14'!C49,'LP 15'!C49,)","v":0},{"$f":"SUM('LP 1'!D49,'LP 2'!D49,'LP 3'!D49,'LP 4'!D49,'LP 5'!D49,'LP 6'!D49,'LP 7'!D49,'LP 8'!D49,'LP 9'!D49,'LP 10'!D49,'LP 11'!D49,'LP 12'!D49,'LP 13'!D49,'LP 14'!D49,'LP 15'!D49,)","v":0},{"$f":"SUM('LP 1'!E49,'LP 2'!E49,'LP 3'!E49,'LP 4'!E49,'LP 5'!E49,'LP 6'!E49,'LP 7'!E49,'LP 8'!E49,'LP 9'!E49,'LP 10'!E49,'LP 11'!E49,'LP 12'!E49,'LP 13'!E49,'LP 14'!E49,'LP 15'!E49,)","v":0},{"$f":"SUM('LP 1'!F49,'LP 2'!F49,'LP 3'!F49,'LP 4'!F49,'LP 5'!F49,'LP 6'!F49,'LP 7'!F49,'LP 8'!F49,'LP 9'!F49,'LP 10'!F49,'LP 11'!F49,'LP 12'!F49,'LP 13'!F49,'LP 14'!F49,'LP 15'!F49,)","v":0},null,null,null,{"$f":"'LP 1'!J49","v":0},{"$f":"'LP 2'!J49","v":0},{"$f":"'LP 3'!J49","v":0},{"$f":"'LP 4'!J49","v":0},{"$f":"'LP 5'!J49","v":0},{"$f":"'LP 6'!J49","v":0},{"$f":"'LP 7'!J49","v":0},{"$f":"'LP 8'!J49","v":0},{"$f":"'LP 9'!J49","v":0},{"$f":"'LP 10'!J49","v":0},{"$f":"'LP 11'!J49","v":0},{"$f":"'LP 12'!J49","v":0},{"$f":"'LP 13'!J49","v":0},{"$f":"'LP 14'!J49","v":0},{"$f":"'LP 15'!J49","v":0}]
["Kartenset «Kompetenzprofil für\nLehrpersonen»","Merkmal",null," +++"," ++"," +"," -"," --"," ---"," ?","Auswertung"]
["Karten 2, 4, 18, 23, 26, 31","Erfolgserlebnisse",null,{"$f":"SUM('LP 1'!C51,'LP 2'!C51,'LP 3'!C51,'LP 4'!C51,'LP 5'!C51,'LP 6'!C51,'LP 7'!C51,'LP 8'!C51,'LP 9'!C51,'LP 10'!C51,'LP 11'!C51,'LP 12'!C51,'LP 13'!C51,'LP 14'!C51,'LP 15'!C51,)","v":0},{"$f":"SUM('LP 1'!D51,'LP 2'!D51,'LP 3'!D51,'LP 4'!D51,'LP 5'!D51,'LP 6'!D51,'LP 7'!D51,'LP 8'!D51,'LP 9'!D51,'LP 10'!D51,'LP 11'!D51,'LP 12'!D51,'LP 13'!D51,'LP 14'!D51,'LP 15'!D51,)","v":0},{"$f":"SUM('LP 1'!E51,'LP 2'!E51,'LP 3'!E51,'LP 4'!E51,'LP 5'!E51,'LP 6'!E51,'LP 7'!E51,'LP 8'!E51,'LP 9'!E51,'LP 10'!E51,'LP 11'!E51,'LP 12'!E51,'LP 13'!E51,'LP 14'!E51,'LP 15'!E51,)","v":0},{"$f":"SUM('LP 1'!F51,'LP 2'!F51,'LP 3'!F51,'LP 4'!F51,'LP 5'!F51,'LP 6'!F51,'LP 7'!F51,'LP 8'!F51,'LP 9'!F51,'LP 10'!F51,'LP 11'!F51,'LP 12'!F51,'LP 13'!F51,'LP 14'!F51,'LP 15'!F51,)","v":0},{"$f":"SUM('LP 1'!G51,'LP 2'!G51,'LP 3'!G51,'LP 4'!G51,'LP 5'!G51,'LP 6'!G51,'LP 7'!G51,'LP 8'!G51,'LP 9'!G51,'LP 10'!G51,'LP 11'!G51,'LP 12'!G51,'LP 13'!G51,'LP 14'!G51,'LP 15'!G51,)","v":0},{"$f":"SUM('LP 1'!H51,'LP 2'!H51,'LP 3'!H51,'LP 4'!H51,'LP 5'!H51,'LP 6'!H51,'LP 7'!H51,'LP 8'!H51,'LP 9'!H51,'LP 10'!H51,'LP 11'!H51,'LP 12'!H51,'LP 13'!H51,'LP 14'!H51,'LP 15'!H51,)","v":0},{"$f":"SUM('LP 1'!I51,'LP 2'!I51,'LP 3'!I51,'LP 4'!I51,'LP 5'!I51,'LP 6'!I51,'LP 7'!I51,'LP 8'!I51,'LP 9'!I51,'LP 10'!I51,'LP 11'!I51,'LP 12'!I51,'LP 13'!I51,'LP 14'!I51,'LP 15'!I51,)","v":0}]
[null,null,null,null,null,null,null,null,null,null,{"$f":"'LP 1'!J51","v":0},{"$f":"'LP 2'!J51","v":0},{"$f":"'LP 3'!J51","v":0},{"$f":"'LP 4'!J51","v":0},{"$f":"'LP 5'!J51","v":0},{"$f":"'LP 6'!J51","v":0},{"$f":"'LP 7'!J51","v":0},{"$f":"'LP 8'!J51","v":0},{"$f":"'LP 9'!J51","v":0},{"$f":"'LP 10'!J51","v":0},{"$f":"'LP 11'!J51","v":0},{"$f":"'LP 12'!J51","v":0},{"$f":"'LP 13'!J51","v":0},{"$f":"'LP 14'!J51","v":0},{"$f":"'LP 15'!J51","v":0}]
[null,null,"Indikatoren","ja","teils","nein","?",null,null,null,{"$f":"K38","v":"LP 1"},"LP 2","LP 3","LP 4","LP 5","LP 6","LP 7","LP 8","LP 9","LP 10","LP 11","LP 12","LP 13","LP 14","LP 15"]
[null,"Die Lehrperson","gestaltet den Unterricht so, dass Schülerinnen und Schüler Erfolgserlebnisse erfahren.",{"$f":"SUM('LP 1'!C53,'LP 2'!C53,'LP 3'!C53,'LP 4'!C53,'LP 5'!C53,'LP 6'!C53,'LP 7'!C53,'LP 8'!C53,'LP 9'!C53,'LP 10'!C53,'LP 11'!C53,'LP 12'!C53,'LP 13'!C53,'LP 14'!C53,'LP 15'!C53,)","v":0},{"$f":"SUM('LP 1'!D53,'LP 2'!D53,'LP 3'!D53,'LP 4'!D53,'LP 5'!D53,'LP 6'!D53,'LP 7'!D53,'LP 8'!D53,'LP 9'!D53,'LP 10'!D53,'LP 11'!D53,'LP 12'!D53,'LP 13'!D53,'LP 14'!D53,'LP 15'!D53,)","v":0},{"$f":"SUM('LP 1'!E53,'LP 2'!E53,'LP 3'!E53,'LP 4'!E53,'LP 5'!E53,'LP 6'!E53,'LP 7'!E53,'LP 8'!E53,'LP 9'!E53,'LP 10'!E53,'LP 11'!E53,'LP 12'!E53,'LP 13'!E53,'LP 14'!E53,'LP 15'!E53,)","v":0},{"$f":"SUM('LP 1'!F53,'LP 2'!F53,'LP 3'!F53,'LP 4'!F53,'LP 5'!F53,'LP 6'!F53,'LP 7'!F53,'LP 8'!F53,'LP 9'!F53,'LP 10'!F53,'LP 11'!F53,'LP 12'!F53,'LP 13'!F53,'LP 14'!F53,'LP 15'!F53,)","v":0},null,null,null,{"$f":"'LP 1'!J53","v":0},{"$f":"'LP 2'!J53","v":0},{"$f":"'LP 3'!J53","v":0},{"$f":"'LP 4'!J53","v":0},{"$f":"'LP 5'!J53","v":0},{"$f":"'LP 6'!J53","v":0},{"$f":"'LP 7'!J53","v":0},{"$f":"'LP 8'!J53","v":0},{"$f":"'LP 9'!J53","v":0},{"$f":"'LP 10'!J53","v":0},{"$f":"'LP 11'!J53","v":0},{"$f":"'LP 12'!J53","v":0},{"$f":"'LP 13'!J53","v":0},{"$f":"'LP 14'!J53","v":0},{"$f":"'LP 15'!J53","v":0}]
[null,null,"macht Lernerfolge den Schülerinnen und Schülern gegenüber sichtbar.",{"$f":"SUM('LP 1'!C54,'LP 2'!C54,'LP 3'!C54,'LP 4'!C54,'LP 5'!C54,'LP 6'!C54,'LP 7'!C54,'LP 8'!C54,'LP 9'!C54,'LP 10'!C54,'LP 11'!C54,'LP 12'!C54,'LP 13'!C54,'LP 14'!C54,'LP 15'!C54,)","v":0},{"$f":"SUM('LP 1'!D54,'LP 2'!D54,'LP 3'!D54,'LP 4'!D54,'LP 5'!D54,'LP 6'!D54,'LP 7'!D54,'LP 8'!D54,'LP 9'!D54,'LP 10'!D54,'LP 11'!D54,'LP 12'!D54,'LP 13'!D54,'LP 14'!D54,'LP 15'!D54,)","v":0},{"$f":"SUM('LP 1'!E54,'LP 2'!E54,'LP 3'!E54,'LP 4'!E54,'LP 5'!E54,'LP 6'!E54,'LP 7'!E54,'LP 8'!E54,'LP 9'!E54,'LP 10'!E54,'LP 11'!E54,'LP 12'!E54,'LP 13'!E54,'LP 14'!E54,'LP 15'!E54,)","v":0},{"$f":"SUM('LP 1'!F54,'LP 2'!F54,'LP 3'!F54,'LP 4'!F54,'LP 5'!F54,'LP 6'!F54,'LP 7'!F54,'LP 8'!F54,'LP 9'!F54,'LP 10'!F54,'LP 11'!F54,'LP 12'!F54,'LP 13'!F54,'LP 14'!F54,'LP 15'!F54,)","v":0},null,null,null,{"$f":"'LP 1'!J54","v":0},{"$f":"'LP 2'!J54","v":0},{"$f":"'LP 3'!J54","v":0},{"$f":"'LP 4'!J54","v":0},{"$f":"'LP 5'!J54","v":0},{"$f":"'LP 6'!J54","v":0},{"$f":"'LP 7'!J54","v":0},{"$f":"'LP 8'!J54","v":0},{"$f":"'LP 9'!J54","v":0},{"$f":"'LP 10'!J54","v":0},{"$f":"'LP 11'!J54","v":0},{"$f":"'LP 12'!J54","v":0},{"$f":"'LP 13'!J54","v":0},{"$f":"'LP 14'!J54","v":0},{"$f":"'LP 15'!J54","v":0}]
[null,null,"schafft im Unterricht Gelegenheiten, in denen Schülerinnen und Schüler das Gelernte zeigen können.",{"$f":"SUM('LP 1'!C55,'LP 2'!C55,'LP 3'!C55,'LP 4'!C55,'LP 5'!C55,'LP 6'!C55,'LP 7'!C55,'LP 8'!C55,'LP 9'!C55,'LP 10'!C55,'LP 11'!C55,'LP 12'!C55,'LP 13'!C55,'LP 14'!C55,'LP 15'!C55,)","v":0},{"$f":"SUM('LP 1'!D55,'LP 2'!D55,'LP 3'!D55,'LP 4'!D55,'LP 5'!D55,'LP 6'!D55,'LP 7'!D55,'LP 8'!D55,'LP 9'!D55,'LP 10'!D55,'LP 11'!D55,'LP 12'!D55,'LP 13'!D55,'LP 14'!D55,'LP 15'!D55,)","v":0},{"$f":"SUM('LP 1'!E55,'LP 2'!E55,'LP 3'!E55,'LP 4'!E55,'LP 5'!E55,'LP 6'!E55,'LP 7'!E55,'LP 8'!E55,'LP 9'!E55,'LP 10'!E55,'LP 11'!E55,'LP 12'!E55,'LP 13'!E55,'LP 14'!E55,'LP 15'!E55,)","v":0},{"$f":"SUM('LP 1'!F55,'LP 2'!F55,'LP 3'!F55,'LP 4'!F55,'LP 5'!F55,'LP 6'!F55,'LP 7'!F55,'LP 8'!F55,'LP 9'!F55,'LP 10'!F55,'LP 11'!F55,'LP 12'!F55,'LP 13'!F55,'LP 14'!F55,'LP 15'!F55,)","v":0},null,null,null,{"$f":"'LP 1'!J55","v":0},{"$f":"'LP 2'!J55","v":0},{"$f":"'LP 3'!J55","v":0},{"$f":"'LP 4'!J55","v":0},{"$f":"'LP 5'!J55","v":0},{"$f":"'LP 6'!J55","v":0},{"$f":"'LP 7'!J55","v":0},{"$f":"'LP 8'!J55","v":0},{"$f":"'LP 9'!J55","v":0},{"$f":"'LP 10'!J55","v":0},{"$f":"'LP 11'!J55","v":0},{"$f":"'LP 12'!J55","v":0},{"$f":"'LP 13'!J55","v":0},{"$f":"'LP 14'!J55","v":0},{"$f":"'LP 15'!J55","v":0}]
[null,null,"sorgt für die Würdigung von Lernerfolgen der Schülerinnen und Schüler.",{"$f":"SUM('LP 1'!C56,'LP 2'!C56,'LP 3'!C56,'LP 4'!C56,'LP 5'!C56,'LP 6'!C56,'LP 7'!C56,'LP 8'!C56,'LP 9'!C56,'LP 10'!C56,'LP 11'!C56,'LP 12'!C56,'LP 13'!C56,'LP 14'!C56,'LP 15'!C56,)","v":0},{"$f":"SUM('LP 1'!D56,'LP 2'!D56,'LP 3'!D56,'LP 4'!D56,'LP 5'!D56,'LP 6'!D56,'LP 7'!D56,'LP 8'!D56,'LP 9'!D56,'LP 10'!D56,'LP 11'!D56,'LP 12'!D56,'LP 13'!D56,'LP 14'!D56,'LP 15'!D56,)","v":0},{"$f":"SUM('LP 1'!E56,'LP 2'!E56,'LP 3'!E56,'LP 4'!E56,'LP 5'!E56,'LP 6'!E56,'LP 7'!E56,'LP 8'!E56,'LP 9'!E56,'LP 10'!E56,'LP 11'!E56,'LP 12'!E56,'LP 13'!E56,'LP 14'!E56,'LP 15'!E56,)","v":0},{"$f":"SUM('LP 1'!F56,'LP 2'!F56,'LP 3'!F56,'LP 4'!F56,'LP 5'!F56,'LP 6'!F56,'LP 7'!F56,'LP 8'!F56,'LP 9'!F56,'LP 10'!F56,'LP 11'!F56,'LP 12'!F56,'LP 13'!F56,'LP 14'!F56,'LP 15'!F56,)","v":0},null,null,null,{"$f":"'LP 1'!J56","v":0},{"$f":"'LP 2'!J56","v":0},{"$f":"'LP 3'!J56","v":0},{"$f":"'LP 4'!J56","v":0},{"$f":"'LP 5'!J56","v":0},{"$f":"'LP 6'!J56","v":0},{"$f":"'LP 7'!J56","v":0},{"$f":"'LP 8'!J56","v":0},{"$f":"'LP 9'!J56","v":0},{"$f":"'LP 10'!J56","v":0},{"$f":"'LP 11'!J56","v":0},{"$f":"'LP 12'!J56","v":0},{"$f":"'LP 13'!J56","v":0},{"$f":"'LP 14'!J56","v":0},{"$f":"'LP 15'!J56","v":0}]
["Kartenset «Kompetenzprofil für\nLehrpersonen»","Merkmal",null," +++"," ++"," +"," -"," --"," ---"," ?","Auswertung"]
["Karten 19, 25, 30","Feedback",null,{"$f":"SUM('LP 1'!C58,'LP 2'!C58,'LP 3'!C58,'LP 4'!C58,'LP 5'!C58,'LP 6'!C58,'LP 7'!C58,'LP 8'!C58,'LP 9'!C58,'LP 10'!C58,'LP 11'!C58,'LP 12'!C58,'LP 13'!C58,'LP 14'!C58,'LP 15'!C58,)","v":0},{"$f":"SUM('LP 1'!D58,'LP 2'!D58,'LP 3'!D58,'LP 4'!D58,'LP 5'!D58,'LP 6'!D58,'LP 7'!D58,'LP 8'!D58,'LP 9'!D58,'LP 10'!D58,'LP 11'!D58,'LP 12'!D58,'LP 13'!D58,'LP 14'!D58,'LP 15'!D58,)","v":0},{"$f":"SUM('LP 1'!E58,'LP 2'!E58,'LP 3'!E58,'LP 4'!E58,'LP 5'!E58,'LP 6'!E58,'LP 7'!E58,'LP 8'!E58,'LP 9'!E58,'LP 10'!E58,'LP 11'!E58,'LP 12'!E58,'LP 13'!E58,'LP 14'!E58,'LP 15'!E58,)","v":0},{"$f":"SUM('LP 1'!F58,'LP 2'!F58,'LP 3'!F58,'LP 4'!F58,'LP 5'!F58,'LP 6'!F58,'LP 7'!F58,'LP 8'!F58,'LP 9'!F58,'LP 10'!F58,'LP 11'!F58,'LP 12'!F58,'LP 13'!F58,'LP 14'!F58,'LP 15'!F58,)","v":0},{"$f":"SUM('LP 1'!G58,'LP 2'!G58,'LP 3'!G58,'LP 4'!G58,'LP 5'!G58,'LP 6'!G58,'LP 7'!G58,'LP 8'!G58,'LP 9'!G58,'LP 10'!G58,'LP 11'!G58,'LP 12'!G58,'LP 13'!G58,'LP 14'!G58,'LP 15'!G58,)","v":0},{"$f":"SUM('LP 1'!H58,'LP 2'!H58,'LP 3'!H58,'LP 4'!H58,'LP 5'!H58,'LP 6'!H58,'LP 7'!H58,'LP 8'!H58,'LP 9'!H58,'LP 10'!H58,'LP 11'!H58,'LP 12'!H58,'LP 13'!H58,'LP 14'!H58,'LP 15'!H58,)","v":0},{"$f":"SUM('LP 1'!I58,'LP 2'!I58,'LP 3'!I58,'LP 4'!I58,'LP 5'!I58,'LP 6'!I58,'LP 7'!I58,'LP 8'!I58,'LP 9'!I58,'LP 10'!I58,'LP 11'!I58,'LP 12'!I58,'LP 13'!I58,'LP 14'!I58,'LP 15'!I58,)","v":0}]
[null,null,null,null,null,null,null,null,null,null,{"$f":"'LP 1'!J58","v":0},{"$f":"'LP 2'!J58","v":0},{"$f":"'LP 3'!J58","v":0},{"$f":"'LP 4'!J58","v":0},{"$f":"'LP 5'!J58","v":0},{"$f":"'LP 6'!J58","v":0},{"$f":"'LP 7'!J58","v":0},{"$f":"'LP 8'!J58","v":0},{"$f":"'LP 9'!J58","v":0},{"$f":"'LP 10'!J58","v":0},{"$f":"'LP 11'!J58","v":0},{"$f":"'LP 12'!J58","v":0},{"$f":"'LP 13'!J58","v":0},{"$f":"'LP 14'!J58","v":0},{"$f":"'LP 15'!J58","v":0}]
[null,null,"Indikatoren","ja","teils","nein","?",null,null,null,{"$f":"K38","v":"LP 1"},"LP 2","LP 3","LP 4","LP 5","LP 6","LP 7","LP 8","LP 9","LP 10","LP 11","LP 12","LP 13","LP 14","LP 15"]
[null,"Die Lehrperson","formuliert wertschätzende, aufbauende sowie ziel- bzw. kriterienorientierte Rückmeldungen.",{"$f":"SUM('LP 1'!C60,'LP 2'!C60,'LP 3'!C60,'LP 4'!C60,'LP 5'!C60,'LP 6'!C60,'LP 7'!C60,'LP 8'!C60,'LP 9'!C60,'LP 10'!C60,'LP 11'!C60,'LP 12'!C60,'LP 13'!C60,'LP 14'!C60,'LP 15'!C60,)","v":0},{"$f":"SUM('LP 1'!D60,'LP 2'!D60,'LP 3'!D60,'LP 4'!D60,'LP 5'!D60,'LP 6'!D60,'LP 7'!D60,'LP 8'!D60,'LP 9'!D60,'LP 10'!D60,'LP 11'!D60,'LP 12'!D60,'LP 13'!D60,'LP 14'!D60,'LP 15'!D60,)","v":0},{"$f":"SUM('LP 1'!E60,'LP 2'!E60,'LP 3'!E60,'LP 4'!E60,'LP 5'!E60,'LP 6'!E60,'LP 7'!E60,'LP 8'!E60,'LP 9'!E60,'LP 10'!E60,'LP 11'!E60,'LP 12'!E60,'LP 13'!E60,'LP 14'!E60,'LP 15'!E60,)","v":0},{"$f":"SUM('LP 1'!F60,'LP 2'!F60,'LP 3'!F60,'LP 4'!F60,'LP 5'!F60,'LP 6'!F60,'LP 7'!F60,'LP 8'!F60,'LP 9'!F60,'LP 10'!F60,'LP 11'!F60,'LP 12'!F60,'LP 13'!F60,'LP 14'!F60,'LP 15'!F60,)","v":0},null,null,null,{"$f":"'LP 1'!J60","v":0},{"$f":"'LP 2'!J60","v":0},{"$f":"'LP 3'!J60","v":0},{"$f":"'LP 4'!J60","v":0},{"$f":"'LP 5'!J60","v":0},{"$f":"'LP 6'!J60","v":0},{"$f":"'LP 7'!J60","v":0},{"$f":"'LP 8'!J60","v":0},{"$f":"'LP 9'!J60","v":0},{"$f":"'LP 10'!J60","v":0},{"$f":"'LP 11'!J60","v":0},{"$f":"'LP 12'!J60","v":0},{"$f":"'LP 13'!J60","v":0},{"$f":"'LP 14'!J60","v":0},{"$f":"'LP 15'!J60","v":0}]
[null,null,"gibt den Schülerinnen und Schülern ein individuelles Feedback zum Lernprozess und/oder Lernprodukt aufgrund von Beobachtungen und/oder formativen Beurteilungsformen.",{"$f":"SUM('LP 1'!C61,'LP 2'!C61,'LP 3'!C61,'LP 4'!C61,'LP 5'!C61,'LP 6'!C61,'LP 7'!C61,'LP 8'!C61,'LP 9'!C61,'LP 10'!C61,'LP 11'!C61,'LP 12'!C61,'LP 13'!C61,'LP 14'!C61,'LP 15'!C61,)","v":0},{"$f":"SUM('LP 1'!D61,'LP 2'!D61,'LP 3'!D61,'LP 4'!D61,'LP 5'!D61,'LP 6'!D61,'LP 7'!D61,'LP 8'!D61,'LP 9'!D61,'LP 10'!D61,'LP 11'!D61,'LP 12'!D61,'LP 13'!D61,'LP 14'!D61,'LP 15'!D61,)","v":0},{"$f":"SUM('LP 1'!E61,'LP 2'!E61,'LP 3'!E61,'LP 4'!E61,'LP 5'!E61,'LP 6'!E61,'LP 7'!E61,'LP 8'!E61,'LP 9'!E61,'LP 10'!E61,'LP 11'!E61,'LP 12'!E61,'LP 13'!E61,'LP 14'!E61,'LP 15'!E61,)","v":0},{"$f":"SUM('LP 1'!F61,'LP 2'!F61,'LP 3'!F61,'LP 4'!F61,'LP 5'!F61,'LP 6'!F61,'LP 7'!F61,'LP 8'!F61,'LP 9'!F61,'LP 10'!F61,'LP 11'!F61,'LP 12'!F61,'LP 13'!F61,'LP 14'!F61,'LP 15'!F61,)","v":0},null,null,null,{"$f":"'LP 1'!J61","v":0},{"$f":"'LP 2'!J61","v":0},{"$f":"'LP 3'!J61","v":0},{"$f":"'LP 4'!J61","v":0},{"$f":"'LP 5'!J61","v":0},{"$f":"'LP 6'!J61","v":0},{"$f":"'LP 7'!J61","v":0},{"$f":"'LP 8'!J61","v":0},{"$f":"'LP 9'!J61","v":0},{"$f":"'LP 10'!J61","v":0},{"$f":"'LP 11'!J61","v":0},{"$f":"'LP 12'!J61","v":0},{"$f":"'LP 13'!J61","v":0},{"$f":"'LP 14'!J61","v":0},{"$f":"'LP 15'!J61","v":0}]
[null,null,"gestaltet den Unterricht so, dass sich die Schülerinnen und Schüler gegenseitig konstruktive Rückmeldungen geben können (Peerfeedback).",{"$f":"SUM('LP 1'!C62,'LP 2'!C62,'LP 3'!C62,'LP 4'!C62,'LP 5'!C62,'LP 6'!C62,'LP 7'!C62,'LP 8'!C62,'LP 9'!C62,'LP 10'!C62,'LP 11'!C62,'LP 12'!C62,'LP 13'!C62,'LP 14'!C62,'LP 15'!C62,)","v":0},{"$f":"SUM('LP 1'!D62,'LP 2'!D62,'LP 3'!D62,'LP 4'!D62,'LP 5'!D62,'LP 6'!D62,'LP 7'!D62,'LP 8'!D62,'LP 9'!D62,'LP 10'!D62,'LP 11'!D62,'LP 12'!D62,'LP 13'!D62,'LP 14'!D62,'LP 15'!D62,)","v":0},{"$f":"SUM('LP 1'!E62,'LP 2'!E62,'LP 3'!E62,'LP 4'!E62,'LP 5'!E62,'LP 6'!E62,'LP 7'!E62,'LP 8'!E62,'LP 9'!E62,'LP 10'!E62,'LP 11'!E62,'LP 12'!E62,'LP 13'!E62,'LP 14'!E62,'LP 15'!E62,)","v":0},{"$f":"SUM('LP 1'!F62,'LP 2'!F62,'LP 3'!F62,'LP 4'!F62,'LP 5'!F62,'LP 6'!F62,'LP 7'!F62,'LP 8'!F62,'LP 9'!F62,'LP 10'!F62,'LP 11'!F62,'LP 12'!F62,'LP 13'!F62,'LP 14'!F62,'LP 15'!F62,)","v":0},null,null,null,{"$f":"'LP 1'!J62","v":0},{"$f":"'LP 2'!J62","v":0},{"$f":"'LP 3'!J62","v":0},{"$f":"'LP 4'!J62","v":0},{"$f":"'LP 5'!J62","v":0},{"$f":"'LP 6'!J62","v":0},{"$f":"'LP 7'!J62","v":0},{"$f":"'LP 8'!J62","v":0},{"$f":"'LP 9'!J62","v":0},{"$f":"'LP 10'!J62","v":0},{"$f":"'LP 11'!J62","v":0},{"$f":"'LP 12'!J62","v":0},{"$f":"'LP 13'!J62","v":0},{"$f":"'LP 14'!J62","v":0},{"$f":"'LP 15'!J62","v":0}]
[null,null,"holt von den Schülerinnen und Schülern Feedback über das Lernen ein und nutzt dieses für die Weiterentwicklung des Unterrichts.",{"$f":"SUM('LP 1'!C63,'LP 2'!C63,'LP 3'!C63,'LP 4'!C63,'LP 5'!C63,'LP 6'!C63,'LP 7'!C63,'LP 8'!C63,'LP 9'!C63,'LP 10'!C63,'LP 11'!C63,'LP 12'!C63,'LP 13'!C63,'LP 14'!C63,'LP 15'!C63,)","v":0},{"$f":"SUM('LP 1'!D63,'LP 2'!D63,'LP 3'!D63,'LP 4'!D63,'LP 5'!D63,'LP 6'!D63,'LP 7'!D63,'LP 8'!D63,'LP 9'!D63,'LP 10'!D63,'LP 11'!D63,'LP 12'!D63,'LP 13'!D63,'LP 14'!D63,'LP 15'!D63,)","v":0},{"$f":"SUM('LP 1'!E63,'LP 2'!E63,'LP 3'!E63,'LP 4'!E63,'LP 5'!E63,'LP 6'!E63,'LP 7'!E63,'LP 8'!E63,'LP 9'!E63,'LP 10'!E63,'LP 11'!E63,'LP 12'!E63,'LP 13'!E63,'LP 14'!E63,'LP 15'!E63,)","v":0},{"$f":"SUM('LP 1'!F63,'LP 2'!F63,'LP 3'!F63,'LP 4'!F63,'LP 5'!F63,'LP 6'!F63,'LP 7'!F63,'LP 8'!F63,'LP 9'!F63,'LP 10'!F63,'LP 11'!F63,'LP 12'!F63,'LP 13'!F63,'LP 14'!F63,'LP 15'!F63,)","v":0},null,null,null,{"$f":"'LP 1'!J63","v":0},{"$f":"'LP 2'!J63","v":0},{"$f":"'LP 3'!J63","v":0},{"$f":"'LP 4'!J63","v":0},{"$f":"'LP 5'!J63","v":0},{"$f":"'LP 6'!J63","v":0},{"$f":"'LP 7'!J63","v":0},{"$f":"'LP 8'!J63","v":0},{"$f":"'LP 9'!J63","v":0},{"$f":"'LP 10'!J63","v":0},{"$f":"'LP 11'!J63","v":0},{"$f":"'LP 12'!J63","v":0},{"$f":"'LP 13'!J63","v":0},{"$f":"'LP 14'!J63","v":0},{"$f":"'LP 15'!J63","v":0}]
["Kartenset «Kompetenzprofil für\nLehrpersonen»","Merkmal",null," +++"," ++"," +"," -"," --"," ---"," ?","Auswertung"]
["Karten 17, 20","Reflexion",null,{"$f":"SUM('LP 1'!C65,'LP 2'!C65,'LP 3'!C65,'LP 4'!C65,'LP 5'!C65,'LP 6'!C65,'LP 7'!C65,'LP 8'!C65,'LP 9'!C65,'LP 10'!C65,'LP 11'!C65,'LP 12'!C65,'LP 13'!C65,'LP 14'!C65,'LP 15'!C65,)","v":0},{"$f":"SUM('LP 1'!D65,'LP 2'!D65,'LP 3'!D65,'LP 4'!D65,'LP 5'!D65,'LP 6'!D65,'LP 7'!D65,'LP 8'!D65,'LP 9'!D65,'LP 10'!D65,'LP 11'!D65,'LP 12'!D65,'LP 13'!D65,'LP 14'!D65,'LP 15'!D65,)","v":0},{"$f":"SUM('LP 1'!E65,'LP 2'!E65,'LP 3'!E65,'LP 4'!E65,'LP 5'!E65,'LP 6'!E65,'LP 7'!E65,'LP 8'!E65,'LP 9'!E65,'LP 10'!E65,'LP 11'!E65,'LP 12'!E65,'LP 13'!E65,'LP 14'!E65,'LP 15'!E65,)","v":0},{"$f":"SUM('LP 1'!F65,'LP 2'!F65,'LP 3'!F65,'LP 4'!F65,'LP 5'!F65,'LP 6'!F65,'LP 7'!F65,'LP 8'!F65,'LP 9'!F65,'LP 10'!F65,'LP 11'!F65,'LP 12'!F65,'LP 13'!F65,'LP 14'!F65,'LP 15'!F65,)","v":0},{"$f":"SUM('LP 1'!G65,'LP 2'!G65,'LP 3'!G65,'LP 4'!G65,'LP 5'!G65,'LP 6'!G65,'LP 7'!G65,'LP 8'!G65,'LP 9'!G65,'LP 10'!G65,'LP 11'!G65,'LP 12'!G65,'LP 13'!G65,'LP 14'!G65,'LP 15'!G65,)","v":0},{"$f":"SUM('LP 1'!H65,'LP 2'!H65,'LP 3'!H65,'LP 4'!H65,'LP 5'!H65,'LP 6'!H65,'LP 7'!H65,'LP 8'!H65,'LP 9'!H65,'LP 10'!H65,'LP 11'!H65,'LP 12'!H65,'LP 13'!H65,'LP 14'!H65,'LP 15'!H65,)","v":0},{"$f":"SUM('LP 1'!I65,'LP 2'!I65,'LP 3'!I65,'LP 4'!I65,'LP 5'!I65,'LP 6'!I65,'LP 7'!I65,'LP 8'!I65,'LP 9'!I65,'LP 10'!I65,'LP 11'!I65,'LP 12'!I65,'LP 13'!I65,'LP 14'!I65,'LP 15'!I65,)","v":0}]
[null,null,null,null,null,null,null,null,null,null,{"$f":"'LP 1'!J65","v":0},{"$f":"'LP 2'!J65","v":0},{"$f":"'LP 3'!J65","v":0},{"$f":"'LP 4'!J65","v":0},{"$f":"'LP 5'!J65","v":0},{"$f":"'LP 6'!J65","v":0},{"$f":"'LP 7'!J65","v":0},{"$f":"'LP 8'!J65","v":0},{"$f":"'LP 9'!J65","v":0},{"$f":"'LP 10'!J65","v":0},{"$f":"'LP 11'!J65","v":0},{"$f":"'LP 12'!J65","v":0},{"$f":"'LP 13'!J65","v":0},{"$f":"'LP 14'!J65","v":0},{"$f":"'LP 15'!J65","v":0}]
[null,null,"Indikatoren","ja","teils","nein","?",null,null,null,{"$f":"K46","v":"LP 1"},"LP 2","LP 3","LP 4","LP 5","LP 6","LP 7","LP 8","LP 9","LP 10","LP 11","LP 12","LP 13","LP 14","LP 15"]
[null,"Die Lehrperson","schafft Gelegenheiten, Sachzusammenhänge zu reflektieren.",{"$f":"SUM('LP 1'!C67,'LP 2'!C67,'LP 3'!C67,'LP 4'!C67,'LP 5'!C67,'LP 6'!C67,'LP 7'!C67,'LP 8'!C67,'LP 9'!C67,'LP 10'!C67,'LP 11'!C67,'LP 12'!C67,'LP 13'!C67,'LP 14'!C67,'LP 15'!C67,)","v":0},{"$f":"SUM('LP 1'!D67,'LP 2'!D67,'LP 3'!D67,'LP 4'!D67,'LP 5'!D67,'LP 6'!D67,'LP 7'!D67,'LP 8'!D67,'LP 9'!D67,'LP 10'!D67,'LP 11'!D67,'LP 12'!D67,'LP 13'!D67,'LP 14'!D67,'LP 15'!D67,)","v":0},{"$f":"SUM('LP 1'!E67,'LP 2'!E67,'LP 3'!E67,'LP 4'!E67,'LP 5'!E67,'LP 6'!E67,'LP 7'!E67,'LP 8'!E67,'LP 9'!E67,'LP 10'!E67,'LP 11'!E67,'LP 12'!E67,'LP 13'!E67,'LP 14'!E67,'LP 15'!E67,)","v":0},{"$f":"SUM('LP 1'!F67,'LP 2'!F67,'LP 3'!F67,'LP 4'!F67,'LP 5'!F67,'LP 6'!F67,'LP 7'!F67,'LP 8'!F67,'LP 9'!F67,'LP 10'!F67,'LP 11'!F67,'LP 12'!F67,'LP 13'!F67,'LP 14'!F67,'LP 15'!F67,)","v":0},null,null,null,{"$f":"'LP 1'!J67","v":0},{"$f":"'LP 2'!J67","v":0},{"$f":"'LP 3'!J67","v":0},{"$f":"'LP 4'!J67","v":0},{"$f":"'LP 5'!J67","v":0},{"$f":"'LP 6'!J67","v":0},{"$f":"'LP 7'!J67","v":0},{"$f":"'LP 8'!J67","v":0},{"$f":"'LP 9'!J67","v":0},{"$f":"'LP 10'!J67","v":0},{"$f":"'LP 11'!J67","v":0},{"$f":"'LP 12'!J67","v":0},{"$f":"'LP 13'!J67","v":0},{"$f":"'LP 14'!J67","v":0},{"$f":"'LP 15'!J67","v":0}]
[null,null,"regt mit differenzierten Fragestellungen zur Reflexion und Dokumentation des eigenen Lernens und Problemlösens an.",{"$f":"SUM('LP 1'!C68,'LP 2'!C68,'LP 3'!C68,'LP 4'!C68,'LP 5'!C68,'LP 6'!C68,'LP 7'!C68,'LP 8'!C68,'LP 9'!C68,'LP 10'!C68,'LP 11'!C68,'LP 12'!C68,'LP 13'!C68,'LP 14'!C68,'LP 15'!C68,)","v":0},{"$f":"SUM('LP 1'!D68,'LP 2'!D68,'LP 3'!D68,'LP 4'!D68,'LP 5'!D68,'LP 6'!D68,'LP 7'!D68,'LP 8'!D68,'LP 9'!D68,'LP 10'!D68,'LP 11'!D68,'LP 12'!D68,'LP 13'!D68,'LP 14'!D68,'LP 15'!D68,)","v":0},{"$f":"SUM('LP 1'!E68,'LP 2'!E68,'LP 3'!E68,'LP 4'!E68,'LP 5'!E68,'LP 6'!E68,'LP 7'!E68,'LP 8'!E68,'LP 9'!E68,'LP 10'!E68,'LP 11'!E68,'LP 12'!E68,'LP 13'!E68,'LP 14'!E68,'LP 15'!E68,)","v":0},{"$f":"SUM('LP 1'!F68,'LP 2'!F68,'LP 3'!F68,'LP 4'!F68,'LP 5'!F68,'LP 6'!F68,'LP 7'!F68,'LP 8'!F68,'LP 9'!F68,'LP 10'!F68,'LP 11'!F68,'LP 12'!F68,'LP 13'!F68,'LP 14'!F68,'LP 15'!F68,)","v":0},null,null,null,{"$f":"'LP 1'!J68","v":0},{"$f":"'LP 2'!J68","v":0},{"$f":"'LP 3'!J68","v":0},{"$f":"'LP 4'!J68","v":0},{"$f":"'LP 5'!J68","v":0},{"$f":"'LP 6'!J68","v":0},{"$f":"'LP 7'!J68","v":0},{"$f":"'LP 8'!J68","v":0},{"$f":"'LP 9'!J68","v":0},{"$f":"'LP 10'!J68","v":0},{"$f":"'LP 11'!J68","v":0},{"$f":"'LP 12'!J68","v":0},{"$f":"'LP 13'!J68","v":0},{"$f":"'LP 14'!J68","v":0},{"$f":"'LP 15'!J68","v":0}]
[null,null,"sorgt dafür, dass die Erkenntnisse der Reflexion für das Lernen genutzt werden.",{"$f":"SUM('LP 1'!C69,'LP 2'!C69,'LP 3'!C69,'LP 4'!C69,'LP 5'!C69,'LP 6'!C69,'LP 7'!C69,'LP 8'!C69,'LP 9'!C69,'LP 10'!C69,'LP 11'!C69,'LP 12'!C69,'LP 13'!C69,'LP 14'!C69,'LP 15'!C69,)","v":0},{"$f":"SUM('LP 1'!D69,'LP 2'!D69,'LP 3'!D69,'LP 4'!D69,'LP 5'!D69,'LP 6'!D69,'LP 7'!D69,'LP 8'!D69,'LP 9'!D69,'LP 10'!D69,'LP 11'!D69,'LP 12'!D69,'LP 13'!D69,'LP 14'!D69,'LP 15'!D69,)","v":0},{"$f":"SUM('LP 1'!E69,'LP 2'!E69,'LP 3'!E69,'LP 4'!E69,'LP 5'!E69,'LP 6'!E69,'LP 7'!E69,'LP 8'!E69,'LP 9'!E69,'LP 10'!E69,'LP 11'!E69,'LP 12'!E69,'LP 13'!E69,'LP 14'!E69,'LP 15'!E69,)","v":0},{"$f":"SUM('LP 1'!F69,'LP 2'!F69,'LP 3'!F69,'LP 4'!F69,'LP 5'!F69,'LP 6'!F69,'LP 7'!F69,'LP 8'!F69,'LP 9'!F69,'LP 10'!F69,'LP 11'!F69,'LP 12'!F69,'LP 13'!F69,'LP 14'!F69,'LP 15'!F69,)","v":0},null,null,null,{"$f":"'LP 1'!J69","v":0},{"$f":"'LP 2'!J69","v":0},{"$f":"'LP 3'!J69","v":0},{"$f":"'LP 4'!J69","v":0},{"$f":"'LP 5'!J69","v":0},{"$f":"'LP 6'!J69","v":0},{"$f":"'LP 7'!J69","v":0},{"$f":"'LP 8'!J69","v":0},{"$f":"'LP 9'!J69","v":0},{"$f":"'LP 10'!J69","v":0},{"$f":"'LP 11'!J69","v":0},{"$f":"'LP 12'!J69","v":0},{"$f":"'LP 13'!J69","v":0},{"$f":"'LP 14'!J69","v":0},{"$f":"'LP 15'!J69","v":0}]
[null,null,"vermittelt Schülerinnen und Schülern geeignete Lernstrategien.",{"$f":"SUM('LP 1'!C70,'LP 2'!C70,'LP 3'!C70,'LP 4'!C70,'LP 5'!C70,'LP 6'!C70,'LP 7'!C70,'LP 8'!C70,'LP 9'!C70,'LP 10'!C70,'LP 11'!C70,'LP 12'!C70,'LP 13'!C70,'LP 14'!C70,'LP 15'!C70,)","v":0},{"$f":"SUM('LP 1'!D70,'LP 2'!D70,'LP 3'!D70,'LP 4'!D70,'LP 5'!D70,'LP 6'!D70,'LP 7'!D70,'LP 8'!D70,'LP 9'!D70,'LP 10'!D70,'LP 11'!D70,'LP 12'!D70,'LP 13'!D70,'LP 14'!D70,'LP 15'!D70,)","v":0},{"$f":"SUM('LP 1'!E70,'LP 2'!E70,'LP 3'!E70,'LP 4'!E70,'LP 5'!E70,'LP 6'!E70,'LP 7'!E70,'LP 8'!E70,'LP 9'!E70,'LP 10'!E70,'LP 11'!E70,'LP 12'!E70,'LP 13'!E70,'LP 14'!E70,'LP 15'!E70,)","v":0},{"$f":"SUM('LP 1'!F70,'LP 2'!F70,'LP 3'!F70,'LP 4'!F70,'LP 5'!F70,'LP 6'!F70,'LP 7'!F70,'LP 8'!F70,'LP 9'!F70,'LP 10'!F70,'LP 11'!F70,'LP 12'!F70,'LP 13'!F70,'LP 14'!F70,'LP 15'!F70,)","v":0},null,null,null,{"$f":"'LP 1'!J70","v":0},{"$f":"'LP 2'!J70","v":0},{"$f":"'LP 3'!J70","v":0},{"$f":"'LP 4'!J70","v":0},{"$f":"'LP 5'!J70","v":0},{"$f":"'LP 6'!J70","v":0},{"$f":"'LP 7'!J70","v":0},{"$f":"'LP 8'!J70","v":0},{"$f":"'LP 9'!J70","v":0},{"$f":"'LP 10'!J70","v":0},{"$f":"'LP 11'!J70","v":0},{"$f":"'LP 12'!J70","v":0},{"$f":"'LP 13'!J70","v":0},{"$f":"'LP 14'!J70","v":0},{"$f":"'LP 15'!J70","v":0}]

{"sheet":"Beobachtungsbogen","index":1,"n_rows":135,"n_cols":9,"rows_kept":135,"cut":false,"hidden":false,"merged":[[69,6,69,9],[70,6,70,9],[64,0,64,1],[65,0,65,1],[66,6,66,9],[67,6,67,9],[68,6,68,9],[0,0,0,1],[12,0,12,1],[13,0,63,1],[13,2,63,5],[13,6,63,9],[80,6,80,9],[81,6,81,9],[71,0,71,1],[72,0,72,1],[73,6,73,9],[74,6,74,9],[75,6,75,9],[76,6,76,9],[77,6,77,9],[78,6,78,9],[79,6,79,9],[84,6,84,9],[94,6,94,9],[103,6,103,9],[104,6,104,9],[105,6,105,9],[95,6,95,9],[96,6,96,9],[97,6,97,9],[98,6,98,9],[99,6,99,9],[100,6,100,9],[90,6,90,9],[91,6,91,9],[82,0,82,1],[83,0,83,1],[92,0,92,1],[93,0,93,1],[101,0,101,1],[127,0,127,1],[122,6,122,9],[123,6,123,9],[124,6,124,9],[125,6,125,9],[119,0,119,1],[120,0,120,1],[126,0,126,1],[114,6,114,9],[121,6,121,9],[115,6,115,9],[116,6,116,9],[117,6,117,9],[118,6,118,9],[112,0,112,1],[113,0,113,1],[106,6,106,9],[107,6,107,9],[85,6,85,9],[86,6,86,9],[87,6,87,9],[88,6,88,9],[89,6,89,9],[108,6,108,9],[109,6,109,9],[110,6,110,9],[111,6,111,9],[102,0,102,1],[128,6,128,9],[133,0,133,1],[134,0,134,1],[129,6,129,9],[130,6,130,9],[131,6,131,9],[132,6,132,9]]}
["Unterrichtsbesuch"]
[]
["Schule: "]
["Klasse:"]
["Ort: "]
["Lehrperson:"]
["Zeit: "]
["Fach:"]
["Anzahl Schülerinnen und Schüler:"]
["männlich:"]
["weiblich:"]
[]
["Unterrichtsprotokoll"]
["Wann/Was",null,null,null,null,null,"Bemerkungen"]
[]
[]
[]
[]
[]
[]
[]
[]
[]
[]
[]
[]
[]
[]
[]
[]
[]
[]
[]
[]
[]
[]
[]
[]
[]
[]
[]
[]
[]
[]
[]
[]
[]
[]
[]
[]
[]
[]
[]
[]
[]
[]
[]
[]
[]
[]
[]
[]
[]
[]
[{"$f":"Auswertungsraster!B35","v":"Merkmal"},null,{"$f":"Auswertungsraster!D35","v":" +++"},{"$f":"Auswertungsraster!E35","v":" ++"},{"$f":"Auswertungsraster!F35","v":" +"},{"$f":"Auswertungsraster!G35","v":" -"},{"$f":"Auswertungsraster!H35","v":" --"},{"$f":"Auswertungsraster!I35","v":" ---"},{"$f":"Auswertungsraster!J35","v":" ?"}]
[{"$f":"Auswertungsraster!B36","v":"Erfahrungswelt"}]
[null,{"$f":"Auswertungsraster!C38","v":"Indikatoren"},{"$f":"Auswertungsraster!D38","v":"ja"},{"$f":"Auswertungsraster!E38","v":"teils"},{"$f":"Auswertungsraster!F38","v":"nein"},{"$f":"Auswertungsraster!G38","v":"?"},"Bemerkungen"]
[{"$f":"Auswertungsraster!B39","v":"Die Lehrperson"},{"$f":"Auswertungsraster!C39","v":"bindet gehaltvolle Aufgaben/Fragen/Problem-stellungen in den Unterricht ein, die für die Schülerinnen und Schüler bedeutsam sind."}]
[null,{"$f":"Auswertungsraster!C40","v":"regt mit Aufgabenstellungen oder präsentierten Kernideen an, zentrale Kenntnisse, Fertigkeiten, Zusammenhänge und Haltungen des Fachs zu entdecken."}]
[null,{"$f":"Auswertungsraster!C41","v":"schafft im Unterricht einen Bezug zur (ausserschulischen) Lebenswelt der Schülerinnen und Schüler."}]
[null,{"$f":"Auswertungsraster!C42","v":"kann die Schülerinnen und Schüler für die\nAufgaben/Fragen/Problemstellungen motivieren."}]
[{"$f":"Auswertungsraster!B43","v":"Merkmal"},{"$f":"Auswertungsraster!C43","v":0},{"$f":"Auswertungsraster!D43","v":" +++"},{"$f":"Auswertungsraster!E43","v":" ++"},{"$f":"Auswertungsraster!F43","v":" +"},{"$f":"Auswertungsraster!G43","v":" -"},{"$f":"Auswertungsraster!H43","v":" --"},{"$f":"Auswertungsraster!I43","v":" ---"},{"$f":"Auswertungsraster!J43","v":" ?"}]
[{"$f":"Auswertungsraster!B44","v":"Kompetenzaufbau"},{"$f":"Auswertungsraster!C44","v":0}]
[null,{"$f":"Auswertungsraster!C46","v":"Indikatoren"},{"$f":"Auswertungsraster!D46","v":"ja"},{"$f":"Auswertungsraster!E46","v":"teils"},{"$f":"Auswertungsraster!F46","v":"nein"},{"$f":"Auswertungsraster!G46","v":"?"},"Bemerkungen"]
[{"$f":"Auswertungsraster!B47","v":"Die Lehrperson"},{"$f":"Auswertungsraster!C47","v":"knüpft im Unterricht an das Vorwissen der Schülerinnen und Schüler an."}]
[null,{"$f":"Auswertungsraster!C48","v":"schafft herausfordernde Problemstellungen, die Schülerinnen und Schüler zum Denken und Handeln anregen."}]
[null,{"$f":"Auswertungsraster!C49","v":"sorgt dafür, dass an fachlichen Inhalten personale, soziale und methodische Kompetenzen erworben werden (überfachliche Kompetenzen)."}]
[null,{"$f":"Auswertungsraster!C50","v":"klärt beim Aufbau von neuem Wissen Fragestellungen und Irritationen der Schülerinnen und Schüler."}]
[null,{"$f":"Auswertungsraster!C51","v":"sorgt für mehrfache und gezielte Übungsphasen mithilfe vielgestaltiger Übungsaufgaben."}]
[null,{"$f":"Auswertungsraster!C52","v":"schafft im Unterricht Gelegenheiten, erworbenes Wissen, bereits gelernte Prozeduren und Methoden auf neue Situationen anzuwenden (Anwendungs-/\nTransferaufgaben)."}]
[null,{"$f":"Auswertungsraster!C53","v":"verfügt über Instrumente, den Kompetenzaufbau der Schülerinnen und Schüler zu dokumentieren."}]
[null,{"$f":"Auswertungsraster!C54","v":"leitet die Schülerinnen und Schüler an, den eigenen Lernweg systematisch festzuhalten."}]
[{"$f":"Auswertungsraster!B55","v":"Merkmal"},{"$f":"Auswertungsraster!C55","v":0},{"$f":"Auswertungsraster!D55","v":" +++"},{"$f":"Auswertungsraster!E55","v":" ++"},{"$f":"Auswertungsraster!F55","v":" +"},{"$f":"Auswertungsraster!G55","v":" -"},{"$f":"Auswertungsraster!H55","v":" --"},{"$f":"Auswertungsraster!I55","v":" ---"},{"$f":"Auswertungsraster!J55","v":" ?"}]
[{"$f":"Auswertungsraster!B56","v":"Instruktion und Konstruktion"},{"$f":"Auswertungsraster!C56","v":0}]
[null,{"$f":"Auswertungsraster!C58","v":"Indikatoren"},{"$f":"Auswertungsraster!D58","v":"ja"},{"$f":"Auswertungsraster!E58","v":"teils"},{"$f":"Auswertungsraster!F58","v":"nein"},{"$f":"Auswertungsraster!G58","v":"?"},"Bemerkungen"]
[{"$f":"Auswertungsraster!B59","v":"Die Lehrperson"},{"$f":"Auswertungsraster!C59","v":"setzt Phasen von Instruktion und Konstruktion zielführend ein."}]
[null,{"$f":"Auswertungsraster!C60","v":"sorgt dafür, dass sich Instruktion und Konstruktion aufeinander beziehen."}]
[null,{"$f":"Auswertungsraster!C61","v":"schafft Situationen, die den Lerndialog unter\nSchülerinnen und Schülern anregen und lassen Raum für das Lernen von und miteinander."}]
[null,{"$f":"Auswertungsraster!C62","v":"gibt den Schülerinnen und Schülern die Möglichkeit, Lern- und Verstehensprozesse individuell zu besprechen."}]
[null,{"$f":"Auswertungsraster!C63","v":"leitet die Schülerinnen und Schüler zu weiterführenden Überlegungen an."}]
[null,{"$f":"Auswertungsraster!C64","v":"unterstützt das Verstehen der Schülerinnen und Schüler."}]
[null,{"$f":"Auswertungsraster!C65","v":"nutzt Klassenarbeitsphasen zur Systematisierung und Zusammenfassung des erarbeiteten Wissens und Könnens."}]
[{"$f":"Auswertungsraster!B66","v":"Merkmal"},{"$f":"Auswertungsraster!C66","v":0},{"$f":"Auswertungsraster!D66","v":" +++"},{"$f":"Auswertungsraster!E66","v":" ++"},{"$f":"Auswertungsraster!F66","v":" +"},{"$f":"Auswertungsraster!G66","v":" -"},{"$f":"Auswertungsraster!H66","v":" --"},{"$f":"Auswertungsraster!I66","v":" ---"},{"$f":"Auswertungsraster!J66","v":" ?"}]
[{"$f":"Auswertungsraster!B67","v":"Transparenz der Lern- und Leistungserwartungen"},{"$f":"Auswertungsraster!C67","v":0}]
[null,{"$f":"Auswertungsraster!C69","v":"Indikatoren"},{"$f":"Auswertungsraster!D69","v":"ja"},{"$f":"Auswertungsraster!E69","v":"teils"},{"$f":"Auswertungsraster!F69","v":"nein"},{"$f":"Auswertungsraster!G69","v":"?"},"Bemerkungen"]
[{"$f":"Auswertungsraster!B70","v":"Die Lehrperson"},{"$f":"Auswertungsraster!C70","v":"orientiert sich bei der Formulierung von Lernzielen an den Kompetenzbeschreibungen des Lehrplans."}]
[null,{"$f":"Auswertungsraster!C71","v":"definiert «smarte» Lernziele (stimmig, messbar, attraktiv, realistisch, terminiert)."}]
[null,{"$f":"Auswertungsraster!C72","v":"gibt den Schülerinnen und Schülern die Kompetenz-/Lernziele rechtzeitig, schriftlich und verständlich bekannt."}]
[null,{"$f":"Auswertungsraster!C73","v":"schafft während dem Lernprozess systematisch Bezüge sowohl zu den Kompetenzzielen als auch zu den Lernzielen einzelner Etappen."}]
[null,{"$f":"Auswertungsraster!C74","v":"formuliert gegenüber den einzelnen Schülerinnen und Schülern individuell angepasste Lernziele."}]
[null,{"$f":"Auswertungsraster!C75","v":"schafft Gelegenheiten, dass Schülerinnen und Schüler eigene Lernprozesse anhand gemeinsam entwickelter Indikatoren überprüfen können."}]
[{"$f":"Auswertungsraster!B76","v":"Merkmal"},{"$f":"Auswertungsraster!C76","v":0},{"$f":"Auswertungsraster!D76","v":" +++"},{"$f":"Auswertungsraster!E76","v":" ++"},{"$f":"Auswertungsraster!F76","v":" +"},{"$f":"Auswertungsraster!G76","v":" -"},{"$f":"Auswertungsraster!H76","v":" --"},{"$f":"Auswertungsraster!I76","v":" ---"},{"$f":"Auswertungsraster!J76","v":" ?"}]
[{"$f":"Auswertungsraster!B77","v":"Differenzierung"},{"$f":"Auswertungsraster!C77","v":0}]
[null,{"$f":"Auswertungsraster!C79","v":"Indikatoren"},{"$f":"Auswertungsraster!D79","v":"ja"},{"$f":"Auswertungsraster!E79","v":"teils"},{"$f":"Auswertungsraster!F79","v":"nein"},{"$f":"Auswertungsraster!G79","v":"?"},"Bemerkungen"]
[{"$f":"Auswertungsraster!B80","v":"Die Lehrperson"},{"$f":"Auswertungsraster!C80","v":"gestaltet den Unterricht so, dass die Schülerinnen und Schüler weder unter- noch überfordert sind."}]
[null,{"$f":"Auswertungsraster!C81","v":"stellt ein vielfältiges Lernangebot bereit, das sich auf eine Analyse des Lernstands der Schülerinnen und Schüler stützt."}]
[null,{"$f":"Auswertungsraster!C82","v":"reagiert auf die unterschiedlichen Lernvoraussetzungen der Schülerinnen und Schüler mit gezielten Massnahmen (z.B. Methodendifferenzierung, Tempodifferenzierung und Differenzierung der Anschauungsmittel)."}]
[null,{"$f":"Auswertungsraster!C83","v":"gestaltet Lernumgebungen/Aufgaben so, dass auf unterschiedlichen Anforderungsniveaus gearbeitet werden kann (Niveaudifferenzierung)."}]
[null,{"$f":"Auswertungsraster!C84","v":"schafft Möglichkeiten für Schülerinnen und Schüler zur inhaltlichen Mitbestimmung (Inhaltsdifferenzierung)."}]
[null,{"$f":"Auswertungsraster!C85","v":"stellt bewusst enge, halboffene oder offene Aufgaben, je nach Stand im Lernprozess beziehungsweise in Bezug zum Kompetenzaufbau."}]
[null,{"$f":"Auswertungsraster!C86","v":"übergibt den Schülerinnen und Schülern aufgrund ihrer Voraussetzungen Eigenverantwortung für ihre Lernziele, Lernprozesse und Lernprodukte."}]
[null,{"$f":"Auswertungsraster!C87","v":"gibt den Schülerinnen und Schülern individuelle und situative Unterstützung aufgrund gezielter Beobachtungen."}]
[{"$f":"Auswertungsraster!B88","v":"Merkmal"},{"$f":"Auswertungsraster!C88","v":0},{"$f":"Auswertungsraster!D88","v":" +++"},{"$f":"Auswertungsraster!E88","v":" ++"},{"$f":"Auswertungsraster!F88","v":" +"},{"$f":"Auswertungsraster!G88","v":" -"},{"$f":"Auswertungsraster!H88","v":" --"},{"$f":"Auswertungsraster!I88","v":" ---"},{"$f":"Auswertungsraster!J88","v":" ?"}]
[{"$f":"Auswertungsraster!B89","v":"Erfolgserlebnisse"},{"$f":"Auswertungsraster!C89","v":0}]
[null,{"$f":"Auswertungsraster!C91","v":"Indikatoren"},{"$f":"Auswertungsraster!D91","v":"ja"},{"$f":"Auswertungsraster!E91","v":"teils"},{"$f":"Auswertungsraster!F91","v":"nein"},{"$f":"Auswertungsraster!G91","v":"?"},"Bemerkungen"]
[{"$f":"Auswertungsraster!B92","v":"Die Lehrperson"},{"$f":"Auswertungsraster!C92","v":"gestaltet den Unterricht so, dass Schülerinnen und Schüler Erfolgserlebnisse erfahren."}]
[null,{"$f":"Auswertungsraster!C93","v":"macht Lernerfolge den Schülerinnen und Schülern gegenüber sichtbar."}]
[null,{"$f":"Auswertungsraster!C94","v":"schafft im Unterricht Gelegenheiten, in denen Schülerinnen und Schüler das Gelernte zeigen können."}]
[null,{"$f":"Auswertungsraster!C95","v":"sorgt für die Würdigung von Lernerfolgen der Schülerinnen und Schüler."}]
[{"$f":"Auswertungsraster!B96","v":"Merkmal"},{"$f":"Auswertungsraster!C96","v":0},{"$f":"Auswertungsraster!D96","v":" +++"},{"$f":"Auswertungsraster!E96","v":" ++"},{"$f":"Auswertungsraster!F96","v":" +"},{"$f":"Auswertungsraster!G96","v":" -"},{"$f":"Auswertungsraster!H96","v":" --"},{"$f":"Auswertungsraster!I96","v":" ---"},{"$f":"Auswertungsraster!J96","v":" ?"}]
[{"$f":"Auswertungsraster!B97","v":"Feedback"},{"$f":"Auswertungsraster!C97","v":0}]
[null,{"$f":"Auswertungsraster!C99","v":"Indikatoren"},{"$f":"Auswertungsraster!D99","v":"ja"},{"$f":"Auswertungsraster!E99","v":"teils"},{"$f":"Auswertungsraster!F99","v":"nein"},{"$f":"Auswertungsraster!G99","v":"?"},"Bemerkungen"]
[{"$f":"Auswertungsraster!B100","v":"Die Lehrperson"},{"$f":"Auswertungsraster!C100","v":"formuliert wertschätzende, aufbauende sowie ziel- bzw. kriterienorientierte Rückmeldungen."}]
[null,{"$f":"Auswertungsraster!C101","v":"gibt den Schülerinnen und Schülern ein individuelles Feedback zum Lernprozess und/oder Lernprodukt aufgrund von Beobachtungen und/oder formativen Beurteilungsformen."}]
[null,{"$f":"Auswertungsraster!C102","v":"gestaltet den Unterricht so, dass sich die Schülerinnen und Schüler gegenseitig konstruktive Rückmeldungen geben können (Peerfeedback)."}]
[null,{"$f":"Auswertungsraster!C103","v":"holt von den Schülerinnen und Schülern Feedback über das Lernen ein und nutzt dieses für die Weiterentwicklung des Unterrichts."}]
[{"$f":"Auswertungsraster!B104","v":"Merkmal"},{"$f":"Auswertungsraster!C104","v":0},{"$f":"Auswertungsraster!D104","v":" +++"},{"$f":"Auswertungsraster!E104","v":" ++"},{"$f":"Auswertungsraster!F104","v":" +"},{"$f":"Auswertungsraster!G104","v":" -"},{"$f":"Auswertungsraster!H104","v":" --"},{"$f":"Auswertungsraster!I104","v":" ---"},{"$f":"Auswertungsraster!J104","v":" ?"}]
[{"$f":"Auswertungsraster!B105","v":"Reflexion"},{"$f":"Auswertungsraster!C105","v":0}]
[null,{"$f":"Auswertungsraster!C107","v":"Indikatoren"},{"$f":"Auswertungsraster!D107","v":"ja"},{"$f":"Auswertungsraster!E107","v":"teils"},{"$f":"Auswertungsraster!F107","v":"nein"},{"$f":"Auswertungsraster!G107","v":"?"},"Bemerkungen"]
[{"$f":"Auswertungsraster!B108","v":"Die Lehrperson"},{"$f":"Auswertungsraster!C108","v":"schafft Gelegenheiten, Sachzusammenhänge zu reflektieren."}]
[null,{"$f":"Auswertungsraster!C109","v":"regt mit differenzierten Fragestellungen zur Reflexion und Dokumentation des eigenen Lernens und Problemlösens an."}]
[null,{"$f":"Auswertungsraster!C110","v":"sorgt dafür, dass die Erkenntnisse der Reflexion für das Lernen genutzt werden."}]
[null,{"$f":"Auswertungsraster!C111","v":"vermittelt Schülerinnen und Schülern geeignete Lernstrategien."}]
[{"$f":"Auswertungsraster!B2","v":"Gesamtbewertung "},{"$f":"Auswertungsraster!C2","v":0},{"$f":"Auswertungsraster!D2","v":" +++"},{"$f":"Auswertungsraster!E2","v":" ++"},{"$f":"Auswertungsraster!F2","v":" +"},{"$f":"Auswertungsraster!G2","v":" -"},{"$f":"Auswertungsraster!H2","v":" --"},{"$f":"Auswertungsraster!I2","v":" ---"},{"$f":"Auswertungsraster!J2","v":" ?"}]
[{"$f":"Auswertungsraster!B3","v":"Bilanzierende Beurteilung Unterricht"},{"$f":"Auswertungsraster!C4","v":0}]

{"sheet":"LP 1","index":2,"n_rows":80,"n_cols":10,"rows_kept":80,"cut":false,"hidden":false,"merged":[[79,0,79,1],[0,0,0,1],[1,0,2,1],[8,0,9,1],[19,0,20,1],[29,0,30,1],[38,0,39,1],[49,0,50,1],[56,0,57,1],[63,0,64,1],[77,0,77,1],[70,0,71,1],[72,0,72,1],[73,0,73,1],[74,0,74,1],[75,0,75,1],[76,0,76,1],[78,0,78,1]]}
["LP 1"]
[{"$f":"Auswertungsraster!B36","v":"Erfahrungswelt"},null," +++"," ++"," +"," -"," --"," ---","?","Bemerkungen"]
[]
[null,{"$f":"Auswertungsraster!C38","v":"Indikatoren"},"ja","teils","nein","?",null,null,null,"Bemerkungen"]
[{"$f":"Auswertungsraster!B39","v":"Die Lehrperson"},{"$f":"Auswertungsraster!C39","v":"bindet gehaltvolle Aufgaben/Fragen/Problem-stellungen in den Unterricht ein, die für die Schülerinnen und Schüler bedeutsam sind."}]
[null,{"$f":"Auswertungsraster!C40","v":"regt mit Aufgabenstellungen oder präsentierten Kernideen an, zentrale Kenntnisse, Fertigkeiten, Zusammenhänge und Haltungen des Fachs zu entdecken."}]
[null,{"$f":"Auswertungsraster!C41","v":"schafft im Unterricht einen Bezug zur (ausserschulischen) Lebenswelt der Schülerinnen und Schüler."}]
[null,{"$f":"Auswertungsraster!C42","v":"kann die Schülerinnen und Schüler für die\nAufgaben/Fragen/Problemstellungen motivieren."}]
[{"$f":"Auswertungsraster!B44","v":"Kompetenzaufbau"},null," +++"," ++"," +"," -"," --"," ---","?","Bemerkungen"]
[]
[null,{"$f":"Auswertungsraster!C46","v":"Indikatoren"},"ja","teils","nein","?",null,null,null,"Bemerkungen"]
[{"$f":"Auswertungsraster!B47","v":"Die Lehrperson"},{"$f":"Auswertungsraster!C47","v":"knüpft im Unterricht an das Vorwissen der Schülerinnen und Schüler an."}]
[null,{"$f":"Auswertungsraster!C48","v":"schafft herausfordernde Problemstellungen, die Schülerinnen und Schüler zum Denken und Handeln anregen."}]
[null,{"$f":"Auswertungsraster!C49","v":"sorgt dafür, dass an fachlichen Inhalten personale, soziale und methodische Kompetenzen erworben werden (überfachliche Kompetenzen)."}]
[null,{"$f":"Auswertungsraster!C50","v":"klärt beim Aufbau von neuem Wissen Fragestellungen und Irritationen der Schülerinnen und Schüler."}]
[null,{"$f":"Auswertungsraster!C51","v":"sorgt für mehrfache und gezielte Übungsphasen mithilfe vielgestaltiger Übungsaufgaben."}]
[null,{"$f":"Auswertungsraster!C52","v":"schafft im Unterricht Gelegenheiten, erworbenes Wissen, bereits gelernte Prozeduren und Methoden auf neue Situationen anzuwenden (Anwendungs-/\nTransferaufgaben)."}]
[null,{"$f":"Auswertungsraster!C53","v":"verfügt über Instrumente, den Kompetenzaufbau der Schülerinnen und Schüler zu dokumentieren."}]
[null,{"$f":"Auswertungsraster!C54","v":"leitet die Schülerinnen und Schüler an, den eigenen Lernweg systematisch festzuhalten."}]
[{"$f":"Auswertungsraster!B56","v":"Instruktion und Konstruktion"},null," +++"," ++"," +"," -"," --"," ---","?","Bemerkungen"]
[]
[null,{"$f":"Auswertungsraster!C58","v":"Indikatoren"},"ja","teils","nein","?",null,null,null,"Bemerkungen"]
[{"$f":"Auswertungsraster!B59","v":"Die Lehrperson"},{"$f":"Auswertungsraster!C59","v":"setzt Phasen von Instruktion und Konstruktion zielführend ein."}]
[null,{"$f":"Auswertungsraster!C60","v":"sorgt dafür, dass sich Instruktion und Konstruktion aufeinander beziehen."}]
[null,{"$f":"Auswertungsraster!C61","v":"schafft Situationen, die den Lerndialog unter\nSchülerinnen und Schülern anregen und lassen Raum für das Lernen von und miteinander."}]
[null,{"$f":"Auswertungsraster!C62","v":"gibt den Schülerinnen und Schülern die Möglichkeit, Lern- und Verstehensprozesse individuell zu besprechen."}]
[null,{"$f":"Auswertungsraster!C63","v":"leitet die Schülerinnen und Schüler zu weiterführenden Überlegungen an."}]
[null,{"$f":"Auswertungsraster!C64","v":"unterstützt das Verstehen der Schülerinnen und Schüler."}]
[null,{"$f":"Auswertungsraster!C65","v":"nutzt Klassenarbeitsphasen zur Systematisierung und Zusammenfassung des erarbeiteten Wissens und Könnens."}]
[{"$f":"Auswertungsraster!B67","v":"Transparenz der Lern- und Leistungserwartungen"},null," +++"," ++"," +"," -"," --"," ---","?","Bemerkungen"]
[]
[null,{"$f":"Auswertungsraster!C69","v":"Indikatoren"},"ja","teils","nein","?",null,null,null,"Bemerkungen"]
[{"$f":"Auswertungsraster!B70","v":"Die Lehrperson"},{"$f":"Auswertungsraster!C70","v":"orientiert sich bei der Formulierung von Lernzielen an den Kompetenzbeschreibungen des Lehrplans."}]
[null,{"$f":"Auswertungsraster!C71","v":"definiert «smarte» Lernziele (stimmig, messbar, attraktiv, realistisch, terminiert)."}]
[null,{"$f":"Auswertungsraster!C72","v":"gibt den Schülerinnen und Schülern die Kompetenz-/Lernziele rechtzeitig, schriftlich und verständlich bekannt."}]
[null,{"$f":"Auswertungsraster!C73","v":"schafft während dem Lernprozess systematisch Bezüge sowohl zu den Kompetenzzielen als auch zu den Lernzielen einzelner Etappen."}]
[null,{"$f":"Auswertungsraster!C74","v":"formuliert gegenüber den einzelnen Schülerinnen und Schülern individuell angepasste Lernziele."}]
[null,{"$f":"Auswertungsraster!C75","v":"schafft Gelegenheiten, dass Schülerinnen und Schüler eigene Lernprozesse anhand gemeinsam entwickelter Indikatoren überprüfen können."}]
[{"$f":"Auswertungsraster!B77","v":"Differenzierung"},null," +++"," ++"," +"," -"," --"," ---","?","Bemerkungen"]
[]
[null,{"$f":"Auswertungsraster!C79","v":"Indikatoren"},"ja","teils","nein","?",null,null,null,"Bemerkungen"]
[{"$f":"Auswertungsraster!B80","v":"Die Lehrperson"},{"$f":"Auswertungsraster!C80","v":"gestaltet den Unterricht so, dass die Schülerinnen und Schüler weder unter- noch überfordert sind."}]
[null,{"$f":"Auswertungsraster!C81","v":"stellt ein vielfältiges Lernangebot bereit, das sich auf eine Analyse des Lernstands der Schülerinnen und Schüler stützt."}]
[null,{"$f":"Auswertungsraster!C82","v":"reagiert auf die unterschiedlichen Lernvoraussetzungen der Schülerinnen und Schüler mit gezielten Massnahmen (z.B. Methodendifferenzierung, Tempodifferenzierung und Differenzierung der Anschauungsmittel)."}]
[null,{"$f":"Auswertungsraster!C83","v":"gestaltet Lernumgebungen/Aufgaben so, dass auf unterschiedlichen Anforderungsniveaus gearbeitet werden kann (Niveaudifferenzierung)."}]
[null,{"$f":"Auswertungsraster!C84","v":"schafft Möglichkeiten für Schülerinnen und Schüler zur inhaltlichen Mitbestimmung (Inhaltsdifferenzierung)."}]
[null,{"$f":"Auswertungsraster!C85","v":"stellt bewusst enge, halboffene oder offene Aufgaben, je nach Stand im Lernprozess beziehungsweise in Bezug zum Kompetenzaufbau."}]
[null,{"$f":"Auswertungsraster!C86","v":"übergibt den Schülerinnen und Schülern aufgrund ihrer Voraussetzungen Eigenverantwortung für ihre Lernziele, Lernprozesse und Lernprodukte."}]
[null,{"$f":"Auswertungsraster!C87","v":"gibt den Schülerinnen und Schülern individuelle und situative Unterstützung aufgrund gezielter Beobachtungen."}]
[{"$f":"Auswertungsraster!B89","v":"Erfolgserlebnisse"},null," +++"," ++"," +"," -"," --"," ---","?","Bemerkungen"]
[]
[null,{"$f":"Auswertungsraster!C91","v":"Indikatoren"},"ja","teils","nein","?",null,null,null,"Bemerkungen"]
[{"$f":"Auswertungsraster!B92","v":"Die Lehrperson"},{"$f":"Auswertungsraster!C92","v":"gestaltet den Unterricht so, dass Schülerinnen und Schüler Erfolgserlebnisse erfahren."}]
[null,{"$f":"Auswertungsraster!C93","v":"macht Lernerfolge den Schülerinnen und Schülern gegenüber sichtbar."}]
[null,{"$f":"Auswertungsraster!C94","v":"schafft im Unterricht Gelegenheiten, in denen Schülerinnen und Schüler das Gelernte zeigen können."}]
[null,{"$f":"Auswertungsraster!C95","v":"sorgt für die Würdigung von Lernerfolgen der Schülerinnen und Schüler."}]
[{"$f":"Auswertungsraster!B97","v":"Feedback"},null," +++"," ++"," +"," -"," --"," ---","?","Bemerkungen"]
[]
[null,{"$f":"Auswertungsraster!C99","v":"Indikatoren"},"ja","teils","nein","?",null,null,null,"Bemerkungen"]
[{"$f":"Auswertungsraster!B100","v":"Die Lehrperson"},{"$f":"Auswertungsraster!C100","v":"formuliert wertschätzende, aufbauende sowie ziel- bzw. kriterienorientierte Rückmeldungen."}]
[null,{"$f":"Auswertungsraster!C101","v":"gibt den Schülerinnen und Schülern ein individuelles Feedback zum Lernprozess und/oder Lernprodukt aufgrund von Beobachtungen und/oder formativen Beurteilungsformen."}]
[null,{"$f":"Auswertungsraster!C102","v":"gestaltet den Unterricht so, dass sich die Schülerinnen und Schüler gegenseitig konstruktive Rückmeldungen geben können (Peerfeedback)."}]
[null,{"$f":"Auswertungsraster!C103","v":"holt von den Schülerinnen und Schülern Feedback über das Lernen ein und nutzt dieses für die Weiterentwicklung des Unterrichts."}]
[{"$f":"Auswertungsraster!B105","v":"Reflexion"},null," +++"," ++"," +"," -"," --"," ---","?","Bemerkungen"]
[]
[null,{"$f":"Auswertungsraster!C107","v":"Indikatoren"},"ja","teils","nein","?",null,null,null,"Bemerkungen"]
[{"$f":"Auswertungsraster!B108","v":"Die Lehrperson"},{"$f":"Auswertungsraster!C108","v":"schafft Gelegenheiten, Sachzusammenhänge zu reflektieren."}]
[null,{"$f":"Auswertungsraster!C109","v":"regt mit differenzierten Fragestellungen zur Reflexion und Dokumentation des eigenen Lernens und Problemlösens an."}]
[null,{"$f":"Auswertungsraster!C110","v":"sorgt dafür, dass die Erkenntnisse der Reflexion für das Lernen genutzt werden."}]
[null,{"$f":"Auswertungsraster!C111","v":"vermittelt Schülerinnen und Schülern geeignete Lernstrategien."}]
["Bilanzierende Bewertung Unterricht",null," +++"," ++","+"," -"," --"," ---","?","Bemerkungen"]
[]
[{"$f":"A2","v":"Erfahrungswelt"},null,{"$f":"C3","v":0},0,0,0,0,0,0,0]
[{"$f":"A9","v":"Kompetenzaufbau"},null,{"$f":"C10","v":0},0,0,0,0,0,0,0]
[{"$f":"A20","v":"Instruktion und Konstruktion"},null,{"$f":"C21","v":0},0,0,0,0,0,0,0]
[{"$f":"A30","v":"Transparenz der Lern- und Leistungserwartungen"},null,{"$f":"C31","v":0},0,0,0,0,0,0,0]
[{"$f":"A39","v":"Differenzierung"},null,{"$f":"C40","v":0},0,0,0,0,0,0,0]
[{"$f":"A50","v":"Erfolgserlebnisse"},null,{"$f":"C51","v":0},0,0,0,0,0,0,0]
[{"$f":"A57","v":"Feedback"},null,{"$f":"C58","v":0},0,0,0,0,0,0,0]
[{"$f":"A64","v":"Reflexion"},null,{"$f":"C65","v":0},{"$f":"D65","v":0},0,0,0,0,0,0]

{"sheet":"LP 2","index":3,"n_rows":80,"n_cols":10,"rows_kept":80,"cut":false,"hidden":false,"merged":[[79,0,79,1],[49,0,50,1],[56,0,57,1],[63,0,64,1],[70,0,71,1],[72,0,72,1],[73,0,73,1],[74,0,74,1],[75,0,75,1],[76,0,76,1],[77,0,77,1],[78,0,78,1],[38,0,39,1],[0,0,0,1],[1,0,2,1],[8,0,9,1],[19,0,20,1],[29,0,30,1]]}
["LP 2"]
[{"$f":"Auswertungsraster!B36","v":"Erfahrungswelt"},null," +++"," ++"," +"," -"," --"," ---","?","Bemerkungen"]
[]
[null,{"$f":"Auswertungsraster!C38","v":"Indikatoren"},"ja","teils","nein","?",null,null,null,"Bemerkungen"]
[{"$f":"Auswertungsraster!B39","v":"Die Lehrperson"},{"$f":"Auswertungsraster!C39","v":"bindet gehaltvolle Aufgaben/Fragen/Problem-stellungen in den Unterricht ein, die für die Schülerinnen und Schüler bedeutsam sind."}]
[null,{"$f":"Auswertungsraster!C40","v":"regt mit Aufgabenstellungen oder präsentierten Kernideen an, zentrale Kenntnisse, Fertigkeiten, Zusammenhänge und Haltungen des Fachs zu entdecken."}]
[null,{"$f":"Auswertungsraster!C41","v":"schafft im Unterricht einen Bezug zur (ausserschulischen) Lebenswelt der Schülerinnen und Schüler."}]
[null,{"$f":"Auswertungsraster!C42","v":"kann die Schülerinnen und Schüler für die\nAufgaben/Fragen/Problemstellungen motivieren."}]
[{"$f":"Auswertungsraster!B44","v":"Kompetenzaufbau"},null," +++"," ++"," +"," -"," --"," ---","?","Bemerkungen"]
[]
[null,{"$f":"Auswertungsraster!C46","v":"Indikatoren"},"ja","teils","nein","?",null,null,null,"Bemerkungen"]
[{"$f":"Auswertungsraster!B47","v":"Die Lehrperson"},{"$f":"Auswertungsraster!C47","v":"knüpft im Unterricht an das Vorwissen der Schülerinnen und Schüler an."}]
[null,{"$f":"Auswertungsraster!C48","v":"schafft herausfordernde Problemstellungen, die Schülerinnen und Schüler zum Denken und Handeln anregen."}]
[null,{"$f":"Auswertungsraster!C49","v":"sorgt dafür, dass an fachlichen Inhalten personale, soziale und methodische Kompetenzen erworben werden (überfachliche Kompetenzen)."}]
[null,{"$f":"Auswertungsraster!C50","v":"klärt beim Aufbau von neuem Wissen Fragestellungen und Irritationen der Schülerinnen und Schüler."}]
[null,{"$f":"Auswertungsraster!C51","v":"sorgt für mehrfache und gezielte Übungsphasen mithilfe vielgestaltiger Übungsaufgaben."}]
[null,{"$f":"Auswertungsraster!C52","v":"schafft im Unterricht Gelegenheiten, erworbenes Wissen, bereits gelernte Prozeduren und Methoden auf neue Situationen anzuwenden (Anwendungs-/\nTransferaufgaben)."}]
[null,{"$f":"Auswertungsraster!C53","v":"verfügt über Instrumente, den Kompetenzaufbau der Schülerinnen und Schüler zu dokumentieren."}]
[null,{"$f":"Auswertungsraster!C54","v":"leitet die Schülerinnen und Schüler an, den eigenen Lernweg systematisch festzuhalten."}]
[{"$f":"Auswertungsraster!B56","v":"Instruktion und Konstruktion"},null," +++"," ++"," +"," -"," --"," ---","?","Bemerkungen"]
[]
[null,{"$f":"Auswertungsraster!C58","v":"Indikatoren"},"ja","teils","nein","?",null,null,null,"Bemerkungen"]
[{"$f":"Auswertungsraster!B59","v":"Die Lehrperson"},{"$f":"Auswertungsraster!C59","v":"setzt Phasen von Instruktion und Konstruktion zielführend ein."}]
[null,{"$f":"Auswertungsraster!C60","v":"sorgt dafür, dass sich Instruktion und Konstruktion aufeinander beziehen."}]
[null,{"$f":"Auswertungsraster!C61","v":"schafft Situationen, die den Lerndialog unter\nSchülerinnen und Schülern anregen und lassen Raum für das Lernen von und miteinander."}]
[null,{"$f":"Auswertungsraster!C62","v":"gibt den Schülerinnen und Schülern die Möglichkeit, Lern- und Verstehensprozesse individuell zu besprechen."}]
[null,{"$f":"Auswertungsraster!C63","v":"leitet die Schülerinnen und Schüler zu weiterführenden Überlegungen an."}]
[null,{"$f":"Auswertungsraster!C64","v":"unterstützt das Verstehen der Schülerinnen und Schüler."}]
[null,{"$f":"Auswertungsraster!C65","v":"nutzt Klassenarbeitsphasen zur Systematisierung und Zusammenfassung des erarbeiteten Wissens und Könnens."}]
[{"$f":"Auswertungsraster!B67","v":"Transparenz der Lern- und Leistungserwartungen"},null," +++"," ++"," +"," -"," --"," ---","?","Bemerkungen"]
[]
[null,{"$f":"Auswertungsraster!C69","v":"Indikatoren"},"ja","teils","nein","?",null,null,null,"Bemerkungen"]
[{"$f":"Auswertungsraster!B70","v":"Die Lehrperson"},{"$f":"Auswertungsraster!C70","v":"orientiert sich bei der Formulierung von Lernzielen an den Kompetenzbeschreibungen des Lehrplans."}]
[null,{"$f":"Auswertungsraster!C71","v":"definiert «smarte» Lernziele (stimmig, messbar, attraktiv, realistisch, terminiert)."}]
[null,{"$f":"Auswertungsraster!C72","v":"gibt den Schülerinnen und Schülern die Kompetenz-/Lernziele rechtzeitig, schriftlich und verständlich bekannt."}]
[null,{"$f":"Auswertungsraster!C73","v":"schafft während dem Lernprozess systematisch Bezüge sowohl zu den Kompetenzzielen als auch zu den Lernzielen einzelner Etappen."}]
[null,{"$f":"Auswertungsraster!C74","v":"formuliert gegenüber den einzelnen Schülerinnen und Schülern individuell angepasste Lernziele."}]
[null,{"$f":"Auswertungsraster!C75","v":"schafft Gelegenheiten, dass Schülerinnen und Schüler eigene Lernprozesse anhand gemeinsam entwickelter Indikatoren überprüfen können."}]
[{"$f":"Auswertungsraster!B77","v":"Differenzierung"},null," +++"," ++"," +"," -"," --"," ---","?","Bemerkungen"]
[]
[null,{"$f":"Auswertungsraster!C79","v":"Indikatoren"},"ja","teils","nein","?",null,null,null,"Bemerkungen"]
[{"$f":"Auswertungsraster!B80","v":"Die Lehrperson"},{"$f":"Auswertungsraster!C80","v":"gestaltet den Unterricht so, dass die Schülerinnen und Schüler weder unter- noch überfordert sind."}]
[null,{"$f":"Auswertungsraster!C81","v":"stellt ein vielfältiges Lernangebot bereit, das sich auf eine Analyse des Lernstands der Schülerinnen und Schüler stützt."}]
[null,{"$f":"Auswertungsraster!C82","v":"reagiert auf die unterschiedlichen Lernvoraussetzungen der Schülerinnen und Schüler mit gezielten Massnahmen (z.B. Methodendifferenzierung, Tempodifferenzierung und Differenzierung der Anschauungsmittel)."}]
[null,{"$f":"Auswertungsraster!C83","v":"gestaltet Lernumgebungen/Aufgaben so, dass auf unterschiedlichen Anforderungsniveaus gearbeitet werden kann (Niveaudifferenzierung)."}]
[null,{"$f":"Auswertungsraster!C84","v":"schafft Möglichkeiten für Schülerinnen und Schüler zur inhaltlichen Mitbestimmung (Inhaltsdifferenzierung)."}]
[null,{"$f":"Auswertungsraster!C85","v":"stellt bewusst enge, halboffene oder offene Aufgaben, je nach Stand im Lernprozess beziehungsweise in Bezug zum Kompetenzaufbau."}]
[null,{"$f":"Auswertungsraster!C86","v":"übergibt den Schülerinnen und Schülern aufgrund ihrer Voraussetzungen Eigenverantwortung für ihre Lernziele, Lernprozesse und Lernprodukte."}]
[null,{"$f":"Auswertungsraster!C87","v":"gibt den Schülerinnen und Schülern individuelle und situative Unterstützung aufgrund gezielter Beobachtungen."}]
[{"$f":"Auswertungsraster!B89","v":"Erfolgserlebnisse"},null," +++"," ++"," +"," -"," --"," ---","?","Bemerkungen"]
[]
[null,{"$f":"Auswertungsraster!C91","v":"Indikatoren"},"ja","teils","nein","?",null,null,null,"Bemerkungen"]
[{"$f":"Auswertungsraster!B92","v":"Die Lehrperson"},{"$f":"Auswertungsraster!C92","v":"gestaltet den Unterricht so, dass Schülerinnen und Schüler Erfolgserlebnisse erfahren."}]
[null,{"$f":"Auswertungsraster!C93","v":"macht Lernerfolge den Schülerinnen und Schülern gegenüber sichtbar."}]
[null,{"$f":"Auswertungsraster!C94","v":"schafft im Unterricht Gelegenheiten, in denen Schülerinnen und Schüler das Gelernte zeigen können."}]
[null,{"$f":"Auswertungsraster!C95","v":"sorgt für die Würdigung von Lernerfolgen der Schülerinnen und Schüler."}]
[{"$f":"Auswertungsraster!B97","v":"Feedback"},null," +++"," ++"," +"," -"," --"," ---","?","Bemerkungen"]
[]
[null,{"$f":"Auswertungsraster!C99","v":"Indikatoren"},"ja","teils","nein","?",null,null,null,"Bemerkungen"]
[{"$f":"Auswertungsraster!B100","v":"Die Lehrperson"},{"$f":"Auswertungsraster!C100","v":"formuliert wertschätzende, aufbauende sowie ziel- bzw. kriterienorientierte Rückmeldungen."}]
[null,{"$f":"Auswertungsraster!C101","v":"gibt den Schülerinnen und Schülern ein individuelles Feedback zum Lernprozess und/oder Lernprodukt aufgrund von Beobachtungen und/oder formativen Beurteilungsformen."}]
[null,{"$f":"Auswertungsraster!C102","v":"gestaltet den Unterricht so, dass sich die Schülerinnen und Schüler gegenseitig konstruktive Rückmeldungen geben können (Peerfeedback)."}]
[null,{"$f":"Auswertungsraster!C103","v":"holt von den Schülerinnen und Schülern Feedback über das Lernen ein und nutzt dieses für die Weiterentwicklung des Unterrichts."}]
[{"$f":"Auswertungsraster!B105","v":"Reflexion"},null," +++"," ++"," +"," -"," --"," ---","?","Bemerkungen"]
[]
[null,{"$f":"Auswertungsraster!C107","v":"Indikatoren"},"ja","teils","nein","?",null,null,null,"Bemerkungen"]
[{"$f":"Auswertungsraster!B108","v":"Die Lehrperson"},{"$f":"Auswertungsraster!C108","v":"schafft Gelegenheiten, Sachzusammenhänge zu reflektieren."}]
[null,{"$f":"Auswertungsraster!C109","v":"regt mit differenzierten Fragestellungen zur Reflexion und Dokumentation des eigenen Lernens und Problemlösens an."}]
[null,{"$f":"Auswertungsraster!C110","v":"sorgt dafür, dass die Erkenntnisse der Reflexion für das Lernen genutzt werden."}]
[null,{"$f":"Auswertungsraster!C111","v":"vermittelt Schülerinnen und Schülern geeignete Lernstrategien."}]
["Bilanzierende Bewertung Unterricht",null," +++"," ++","+"," -"," --"," ---","?","Bemerkungen"]
[]
[{"$f":"A2","v":"Erfahrungswelt"},null,{"$f":"C3","v":0},0,0,0,0,0,0,0]
[{"$f":"A9","v":"Kompetenzaufbau"},null,{"$f":"C10","v":0},0,0,0,0,0,0,0]
[{"$f":"A20","v":"Instruktion und Konstruktion"},null,{"$f":"C21","v":0},0,0,0,0,0,0,0]
[{"$f":"A30","v":"Transparenz der Lern- und Leistungserwartungen"},null,{"$f":"C31","v":0},0,0,0,0,0,0,0]
[{"$f":"A39","v":"Differenzierung"},null,{"$f":"C40","v":0},0,0,0,0,0,0,0]
[{"$f":"A50","v":"Erfolgserlebnisse"},null,{"$f":"C51","v":0},0,0,0,0,0,0,0]
[{"$f":"A57","v":"Feedback"},null,{"$f":"C58","v":0},0,0,0,0,0,0,0]
[{"$f":"A64","v":"Reflexion"},null,{"$f":"C65","v":0},{"$f":"D65","v":0},0,0,0,0,0,0]

{"sheet":"LP 3","index":4,"n_rows":80,"n_cols":10,"rows_kept":80,"cut":false,"hidden":false,"merged":[[79,0,79,1],[49,0,50,1],[56,0,57,1],[63,0,64,1],[70,0,71,1],[72,0,72,1],[73,0,73,1],[74,0,74,1],[75,0,75,1],[76,0,76,1],[77,0,77,1],[78,0,78,1],[38,0,39,1],[0,0,0,1],[1,0,2,1],[8,0,9,1],[19,0,20,1],[29,0,30,1]]}
["LP 3"]
[{"$f":"Auswertungsraster!B36","v":"Erfahrungswelt"},null," +++"," ++"," +"," -"," --"," ---","?","Bemerkungen"]
[]
[null,{"$f":"Auswertungsraster!C38","v":"Indikatoren"},"ja","teils","nein","?",null,null,null,"Bemerkungen"]
[{"$f":"Auswertungsraster!B39","v":"Die Lehrperson"},{"$f":"Auswertungsraster!C39","v":"bindet gehaltvolle Aufgaben/Fragen/Problem-stellungen in den Unterricht ein, die für die Schülerinnen und Schüler bedeutsam sind."}]
[null,{"$f":"Auswertungsraster!C40","v":"regt mit Aufgabenstellungen oder präsentierten Kernideen an, zentrale Kenntnisse, Fertigkeiten, Zusammenhänge und Haltungen des Fachs zu entdecken."}]
[null,{"$f":"Auswertungsraster!C41","v":"schafft im Unterricht einen Bezug zur (ausserschulischen) Lebenswelt der Schülerinnen und Schüler."}]
[null,{"$f":"Auswertungsraster!C42","v":"kann die Schülerinnen und Schüler für die\nAufgaben/Fragen/Problemstellungen motivieren."}]
[{"$f":"Auswertungsraster!B44","v":"Kompetenzaufbau"},null," +++"," ++"," +"," -"," --"," ---","?","Bemerkungen"]
[]
[null,{"$f":"Auswertungsraster!C46","v":"Indikatoren"},"ja","teils","nein","?",null,null,null,"Bemerkungen"]
[{"$f":"Auswertungsraster!B47","v":"Die Lehrperson"},{"$f":"Auswertungsraster!C47","v":"knüpft im Unterricht an das Vorwissen der Schülerinnen und Schüler an."}]
[null,{"$f":"Auswertungsraster!C48","v":"schafft herausfordernde Problemstellungen, die Schülerinnen und Schüler zum Denken und Handeln anregen."}]
[null,{"$f":"Auswertungsraster!C49","v":"sorgt dafür, dass an fachlichen Inhalten personale, soziale und methodische Kompetenzen erworben werden (überfachliche Kompetenzen)."}]
[null,{"$f":"Auswertungsraster!C50","v":"klärt beim Aufbau von neuem Wissen Fragestellungen und Irritationen der Schülerinnen und Schüler."}]
[null,{"$f":"Auswertungsraster!C51","v":"sorgt für mehrfache und gezielte Übungsphasen mithilfe vielgestaltiger Übungsaufgaben."}]
[null,{"$f":"Auswertungsraster!C52","v":"schafft im Unterricht Gelegenheiten, erworbenes Wissen, bereits gelernte Prozeduren und Methoden auf neue Situationen anzuwenden (Anwendungs-/\nTransferaufgaben)."}]
[null,{"$f":"Auswertungsraster!C53","v":"verfügt über Instrumente, den Kompetenzaufbau der Schülerinnen und Schüler zu dokumentieren."}]
[null,{"$f":"Auswertungsraster!C54","v":"leitet die Schülerinnen und Schüler an, den eigenen Lernweg systematisch festzuhalten."}]
[{"$f":"Auswertungsraster!B56","v":"Instruktion und Konstruktion"},null," +++"," ++"," +"," -"," --"," ---","?","Bemerkungen"]
[]
[null,{"$f":"Auswertungsraster!C58","v":"Indikatoren"},"ja","teils","nein","?",null,null,null,"Bemerkungen"]
[{"$f":"Auswertungsraster!B59","v":"Die Lehrperson"},{"$f":"Auswertungsraster!C59","v":"setzt Phasen von Instruktion und Konstruktion zielführend ein."}]
[null,{"$f":"Auswertungsraster!C60","v":"sorgt dafür, dass sich Instruktion und Konstruktion aufeinander beziehen."}]
[null,{"$f":"Auswertungsraster!C61","v":"schafft Situationen, die den Lerndialog unter\nSchülerinnen und Schülern anregen und lassen Raum für das Lernen von und miteinander."}]
[null,{"$f":"Auswertungsraster!C62","v":"gibt den Schülerinnen und Schülern die Möglichkeit, Lern- und Verstehensprozesse individuell zu besprechen."}]
[null,{"$f":"Auswertungsraster!C63","v":"leitet die Schülerinnen und Schüler zu weiterführenden Überlegungen an."}]
[null,{"$f":"Auswertungsraster!C64","v":"unterstützt das Verstehen der Schülerinnen und Schüler."}]
[null,{"$f":"Auswertungsraster!C65","v":"nutzt Klassenarbeitsphasen zur Systematisierung und Zusammenfassung des erarbeiteten Wissens und Könnens."}]
[{"$f":"Auswertungsraster!B67","v":"Transparenz der Lern- und Leistungserwartungen"},null," +++"," ++"," +"," -"," --"," ---","?","Bemerkungen"]
[]
[null,{"$f":"Auswertungsraster!C69","v":"Indikatoren"},"ja","teils","nein","?",null,null,null,"Bemerkungen"]
[{"$f":"Auswertungsraster!B70","v":"Die Lehrperson"},{"$f":"Auswertungsraster!C70","v":"orientiert sich bei der Formulierung von Lernzielen an den Kompetenzbeschreibungen des Lehrplans."}]
[null,{"$f":"Auswertungsraster!C71","v":"definiert «smarte» Lernziele (stimmig, messbar, attraktiv, realistisch, terminiert)."}]
[null,{"$f":"Auswertungsraster!C72","v":"gibt den Schülerinnen und Schülern die Kompetenz-/Lernziele rechtzeitig, schriftlich und verständlich bekannt."}]
[null,{"$f":"Auswertungsraster!C73","v":"schafft während dem Lernprozess systematisch Bezüge sowohl zu den Kompetenzzielen als auch zu den Lernzielen einzelner Etappen."}]
[null,{"$f":"Auswertungsraster!C74","v":"formuliert gegenüber den einzelnen Schülerinnen und Schülern individuell angepasste Lernziele."}]
[null,{"$f":"Auswertungsraster!C75","v":"schafft Gelegenheiten, dass Schülerinnen und Schüler eigene Lernprozesse anhand gemeinsam entwickelter Indikatoren überprüfen können."}]
[{"$f":"Auswertungsraster!B77","v":"Differenzierung"},null," +++"," ++"," +"," -"," --"," ---","?","Bemerkungen"]
[]
[null,{"$f":"Auswertungsraster!C79","v":"Indikatoren"},"ja","teils","nein","?",null,null,null,"Bemerkungen"]
[{"$f":"Auswertungsraster!B80","v":"Die Lehrperson"},{"$f":"Auswertungsraster!C80","v":"gestaltet den Unterricht so, dass die Schülerinnen und Schüler weder unter- noch überfordert sind."}]
[null,{"$f":"Auswertungsraster!C81","v":"stellt ein vielfältiges Lernangebot bereit, das sich auf eine Analyse des Lernstands der Schülerinnen und Schüler stützt."}]
[null,{"$f":"Auswertungsraster!C82","v":"reagiert auf die unterschiedlichen Lernvoraussetzungen der Schülerinnen und Schüler mit gezielten Massnahmen (z.B. Methodendifferenzierung, Tempodifferenzierung und Differenzierung der Anschauungsmittel)."}]
[null,{"$f":"Auswertungsraster!C83","v":"gestaltet Lernumgebungen/Aufgaben so, dass auf unterschiedlichen Anforderungsniveaus gearbeitet werden kann (Niveaudifferenzierung)."}]
[null,{"$f":"Auswertungsraster!C84","v":"schafft Möglichkeiten für Schülerinnen und Schüler zur inhaltlichen Mitbestimmung (Inhaltsdifferenzierung)."}]
[null,{"$f":"Auswertungsraster!C85","v":"stellt bewusst enge, halboffene oder offene Aufgaben, je nach Stand im Lernprozess beziehungsweise in Bezug zum Kompetenzaufbau."}]
[null,{"$f":"Auswertungsraster!C86","v":"übergibt den Schülerinnen und Schülern aufgrund ihrer Voraussetzungen Eigenverantwortung für ihre Lernziele, Lernprozesse und Lernprodukte."}]
[null,{"$f":"Auswertungsraster!C87","v":"gibt den Schülerinnen und Schülern individuelle und situative Unterstützung aufgrund gezielter Beobachtungen."}]
[{"$f":"Auswertungsraster!B89","v":"Erfolgserlebnisse"},null," +++"," ++"," +"," -"," --"," ---","?","Bemerkungen"]
[]
[null,{"$f":"Auswertungsraster!C91","v":"Indikatoren"},"ja","teils","nein","?",null,null,null,"Bemerkungen"]
[{"$f":"Auswertungsraster!B92","v":"Die Lehrperson"},{"$f":"Auswertungsraster!C92","v":"gestaltet den Unterricht so, dass Schülerinnen und Schüler Erfolgserlebnisse erfahren."}]
[null,{"$f":"Auswertungsraster!C93","v":"macht Lernerfolge den Schülerinnen und Schülern gegenüber sichtbar."}]
[null,{"$f":"Auswertungsraster!C94","v":"schafft im Unterricht Gelegenheiten, in denen Schülerinnen und Schüler das Gelernte zeigen können."}]
[null,{"$f":"Auswertungsraster!C95","v":"sorgt für die Würdigung von Lernerfolgen der Schülerinnen und Schüler."}]
[{"$f":"Auswertungsraster!B97","v":"Feedback"},null," +++"," ++"," +"," -"," --"," ---","?","Bemerkungen"]
[]
[null,{"$f":"Auswertungsraster!C99","v":"Indikatoren"},"ja","teils","nein","?",null,null,null,"Bemerkungen"]
[{"$f":"Auswertungsraster!B100","v":"Die Lehrperson"},{"$f":"Auswertungsraster!C100","v":"formuliert wertschätzende, aufbauende sowie ziel- bzw. kriterienorientierte Rückmeldungen."}]
[null,{"$f":"Auswertungsraster!C101","v":"gibt den Schülerinnen und Schülern ein individuelles Feedback zum Lernprozess und/oder Lernprodukt aufgrund von Beobachtungen und/oder formativen Beurteilungsformen."}]
[null,{"$f":"Auswertungsraster!C102","v":"gestaltet den Unterricht so, dass sich die Schülerinnen und Schüler gegenseitig konstruktive Rückmeldungen geben können (Peerfeedback)."}]
[null,{"$f":"Auswertungsraster!C103","v":"holt von den Schülerinnen und Schülern Feedback über das Lernen ein und nutzt dieses für die Weiterentwicklung des Unterrichts."}]
[{"$f":"Auswertungsraster!B105","v":"Reflexion"},null," +++"," ++"," +"," -"," --"," ---","?","Bemerkungen"]
[]
[null,{"$f":"Auswertungsraster!C107","v":"Indikatoren"},"ja","teils","nein","?",null,null,null,"Bemerkungen"]
[{"$f":"Auswertungsraster!B108","v":"Die Lehrperson"},{"$f":"Auswertungsraster!C108","v":"schafft Gelegenheiten, Sachzusammenhänge zu reflektieren."}]
[null,{"$f":"Auswertungsraster!C109","v":"regt mit differenzierten Fragestellungen zur Reflexion und Dokumentation des eigenen Lernens und Problemlösens an."}]
[null,{"$f":"Auswertungsraster!C110","v":"sorgt dafür, dass die Erkenntnisse der Reflexion für das Lernen genutzt werden."}]
[null,{"$f":"Auswertungsraster!C111","v":"vermittelt Schülerinnen und Schülern geeignete Lernstrategien."}]
["Bilanzierende Bewertung Unterricht",null," +++"," ++","+"," -"," --"," ---","?","Bemerkungen"]
[]
[{"$f":"A2","v":"Erfahrungswelt"},null,{"$f":"C3","v":0},0,0,0,0,0,0,0]
[{"$f":"A9","v":"Kompetenzaufbau"},null,{"$f":"C10","v":0},0,0,0,0,0,0,0]
[{"$f":"A20","v":"Instruktion und Konstruktion"},null,{"$f":"C21","v":0},0,0,0,0,0,0,0]
[{"$f":"A30","v":"Transparenz der Lern- und Leistungserwartungen"},null,{"$f":"C31","v":0},0,0,0,0,0,0,0]
[{"$f":"A39","v":"Differenzierung"},null,{"$f":"C40","v":0},0,0,0,0,0,0,0]
[{"$f":"A50","v":"Erfolgserlebnisse"},null,{"$f":"C51","v":0},0,0,0,0,0,0,0]
[{"$f":"A57","v":"Feedback"},null,{"$f":"C58","v":0},0,0,0,0,0,0,0]
[{"$f":"A64","v":"Reflexion"},null,{"$f":"C65","v":0},{"$f":"D65","v":0},0,0,0,0,0,0]

{"sheet":"LP 4","index":5,"n_rows":80,"n_cols":10,"rows_kept":80,"cut":false,"hidden":false,"merged":[[79,0,79,1],[49,0,50,1],[56,0,57,1],[63,0,64,1],[70,0,71,1],[72,0,72,1],[73,0,73,1],[74,0,74,1],[75,0,75,1],[76,0,76,1],[77,0,77,1],[78,0,78,1],[38,0,39,1],[0,0,0,1],[1,0,2,1],[8,0,9,1],[19,0,20,1],[29,0,30,1]]}
["LP 4"]
[{"$f":"Auswertungsraster!B36","v":"Erfahrungswelt"},null," +++"," ++"," +"," -"," --"," ---","?","Bemerkungen"]
[]
[null,{"$f":"Auswertungsraster!C38","v":"Indikatoren"},"ja","teils","nein","?",null,null,null,"Bemerkungen"]
[{"$f":"Auswertungsraster!B39","v":"Die Lehrperson"},{"$f":"Auswertungsraster!C39","v":"bindet gehaltvolle Aufgaben/Fragen/Problem-stellungen in den Unterricht ein, die für die Schülerinnen und Schüler bedeutsam sind."}]
[null,{"$f":"Auswertungsraster!C40","v":"regt mit Aufgabenstellungen oder präsentierten Kernideen an, zentrale Kenntnisse, Fertigkeiten, Zusammenhänge und Haltungen des Fachs zu entdecken."}]
[null,{"$f":"Auswertungsraster!C41","v":"schafft im Unterricht einen Bezug zur (ausserschulischen) Lebenswelt der Schülerinnen und Schüler."}]
[null,{"$f":"Auswertungsraster!C42","v":"kann die Schülerinnen und Schüler für die\nAufgaben/Fragen/Problemstellungen motivieren."}]
[{"$f":"Auswertungsraster!B44","v":"Kompetenzaufbau"},null," +++"," ++"," +"," -"," --"," ---","?","Bemerkungen"]
[]
[null,{"$f":"Auswertungsraster!C46","v":"Indikatoren"},"ja","teils","nein","?",null,null,null,"Bemerkungen"]
[{"$f":"Auswertungsraster!B47","v":"Die Lehrperson"},{"$f":"Auswertungsraster!C47","v":"knüpft im Unterricht an das Vorwissen der Schülerinnen und Schüler an."}]
[null,{"$f":"Auswertungsraster!C48","v":"schafft herausfordernde Problemstellungen, die Schülerinnen und Schüler zum Denken und Handeln anregen."}]
[null,{"$f":"Auswertungsraster!C49","v":"sorgt dafür, dass an fachlichen Inhalten personale, soziale und methodische Kompetenzen erworben werden (überfachliche Kompetenzen)."}]
[null,{"$f":"Auswertungsraster!C50","v":"klärt beim Aufbau von neuem Wissen Fragestellungen und Irritationen der Schülerinnen und Schüler."}]
[null,{"$f":"Auswertungsraster!C51","v":"sorgt für mehrfache und gezielte Übungsphasen mithilfe vielgestaltiger Übungsaufgaben."}]
[null,{"$f":"Auswertungsraster!C52","v":"schafft im Unterricht Gelegenheiten, erworbenes Wissen, bereits gelernte Prozeduren und Methoden auf neue Situationen anzuwenden (Anwendungs-/\nTransferaufgaben)."}]
[null,{"$f":"Auswertungsraster!C53","v":"verfügt über Instrumente, den Kompetenzaufbau der Schülerinnen und Schüler zu dokumentieren."}]
[null,{"$f":"Auswertungsraster!C54","v":"leitet die Schülerinnen und Schüler an, den eigenen Lernweg systematisch festzuhalten."}]
[{"$f":"Auswertungsraster!B56","v":"Instruktion und Konstruktion"},null," +++"," ++"," +"," -"," --"," ---","?","Bemerkungen"]
[]
[null,{"$f":"Auswertungsraster!C58","v":"Indikatoren"},"ja","teils","nein","?",null,null,null,"Bemerkungen"]
[{"$f":"Auswertungsraster!B59","v":"Die Lehrperson"},{"$f":"Auswertungsraster!C59","v":"setzt Phasen von Instruktion und Konstruktion zielführend ein."}]
[null,{"$f":"Auswertungsraster!C60","v":"sorgt dafür, dass sich Instruktion und Konstruktion aufeinander beziehen."}]
[null,{"$f":"Auswertungsraster!C61","v":"schafft Situationen, die den Lerndialog unter\nSchülerinnen und Schülern anregen und lassen Raum für das Lernen von und miteinander."}]
[null,{"$f":"Auswertungsraster!C62","v":"gibt den Schülerinnen und Schülern die Möglichkeit, Lern- und Verstehensprozesse individuell zu besprechen."}]
[null,{"$f":"Auswertungsraster!C63","v":"leitet die Schülerinnen und Schüler zu weiterführenden Überlegungen an."}]
[null,{"$f":"Auswertungsraster!C64","v":"unterstützt das Verstehen der Schülerinnen und Schüler."}]
[null,{"$f":"Auswertungsraster!C65","v":"nutzt Klassenarbeitsphasen zur Systematisierung und Zusammenfassung des erarbeiteten Wissens und Könnens."}]
[{"$f":"Auswertungsraster!B67","v":"Transparenz der Lern- und Leistungserwartungen"},null," +++"," ++"," +"," -"," --"," ---","?","Bemerkungen"]
[]
[null,{"$f":"Auswertungsraster!C69","v":"Indikatoren"},"ja","teils","nein","?",null,null,null,"Bemerkungen"]
[{"$f":"Auswertungsraster!B70","v":"Die Lehrperson"},{"$f":"Auswertungsraster!C70","v":"orientiert sich bei der Formulierung von Lernzielen an den Kompetenzbeschreibungen des Lehrplans."}]
[null,{"$f":"Auswertungsraster!C71","v":"definiert «smarte» Lernziele (stimmig, messbar, attraktiv, realistisch, terminiert)."}]
[null,{"$f":"Auswertungsraster!C72","v":"gibt den Schülerinnen und Schülern die Kompetenz-/Lernziele rechtzeitig, schriftlich und verständlich bekannt."}]
[null,{"$f":"Auswertungsraster!C73","v":"schafft während dem Lernprozess systematisch Bezüge sowohl zu den Kompetenzzielen als auch zu den Lernzielen einzelner Etappen."}]
[null,{"$f":"Auswertungsraster!C74","v":"formuliert gegenüber den einzelnen Schülerinnen und Schülern individuell angepasste Lernziele."}]
[null,{"$f":"Auswertungsraster!C75","v":"schafft Gelegenheiten, dass Schülerinnen und Schüler eigene Lernprozesse anhand gemeinsam entwickelter Indikatoren überprüfen können."}]
[{"$f":"Auswertungsraster!B77","v":"Differenzierung"},null," +++"," ++"," +"," -"," --"," ---","?","Bemerkungen"]
[]
[null,{"$f":"Auswertungsraster!C79","v":"Indikatoren"},"ja","teils","nein","?",null,null,null,"Bemerkungen"]
[{"$f":"Auswertungsraster!B80","v":"Die Lehrperson"},{"$f":"Auswertungsraster!C80","v":"gestaltet den Unterricht so, dass die Schülerinnen und Schüler weder unter- noch überfordert sind."}]
[null,{"$f":"Auswertungsraster!C81","v":"stellt ein vielfältiges Lernangebot bereit, das sich auf eine Analyse des Lernstands der Schülerinnen und Schüler stützt."}]
[null,{"$f":"Auswertungsraster!C82","v":"reagiert auf die unterschiedlichen Lernvoraussetzungen der Schülerinnen und Schüler mit gezielten Massnahmen (z.B. Methodendifferenzierung, Tempodifferenzierung und Differenzierung der Anschauungsmittel)."}]
[null,{"$f":"Auswertungsraster!C83","v":"gestaltet Lernumgebungen/Aufgaben so, dass auf unterschiedlichen Anforderungsniveaus gearbeitet werden kann (Niveaudifferenzierung)."}]
[null,{"$f":"Auswertungsraster!C84","v":"schafft Möglichkeiten für Schülerinnen und Schüler zur inhaltlichen Mitbestimmung (Inhaltsdifferenzierung)."}]
[null,{"$f":"Auswertungsraster!C85","v":"stellt bewusst enge, halboffene oder offene Aufgaben, je nach Stand im Lernprozess beziehungsweise in Bezug zum Kompetenzaufbau."}]
[null,{"$f":"Auswertungsraster!C86","v":"übergibt den Schülerinnen und Schülern aufgrund ihrer Voraussetzungen Eigenverantwortung für ihre Lernziele, Lernprozesse und Lernprodukte."}]
[null,{"$f":"Auswertungsraster!C87","v":"gibt den Schülerinnen und Schülern individuelle und situative Unterstützung aufgrund gezielter Beobachtungen."}]
[{"$f":"Auswertungsraster!B89","v":"Erfolgserlebnisse"},null," +++"," ++"," +"," -"," --"," ---","?","Bemerkungen"]
[]
[null,{"$f":"Auswertungsraster!C91","v":"Indikatoren"},"ja","teils","nein","?",null,null,null,"Bemerkungen"]
[{"$f":"Auswertungsraster!B92","v":"Die Lehrperson"},{"$f":"Auswertungsraster!C92","v":"gestaltet den Unterricht so, dass Schülerinnen und Schüler Erfolgserlebnisse erfahren."}]
[null,{"$f":"Auswertungsraster!C93","v":"macht Lernerfolge den Schülerinnen und Schülern gegenüber sichtbar."}]
[null,{"$f":"Auswertungsraster!C94","v":"schafft im Unterricht Gelegenheiten, in denen Schülerinnen und Schüler das Gelernte zeigen können."}]
[null,{"$f":"Auswertungsraster!C95","v":"sorgt für die Würdigung von Lernerfolgen der Schülerinnen und Schüler."}]
[{"$f":"Auswertungsraster!B97","v":"Feedback"},null," +++"," ++"," +"," -"," --"," ---","?","Bemerkungen"]
[]
[null,{"$f":"Auswertungsraster!C99","v":"Indikatoren"},"ja","teils","nein","?",null,null,null,"Bemerkungen"]
[{"$f":"Auswertungsraster!B100","v":"Die Lehrperson"},{"$f":"Auswertungsraster!C100","v":"formuliert wertschätzende, aufbauende sowie ziel- bzw. kriterienorientierte Rückmeldungen."}]
[null,{"$f":"Auswertungsraster!C101","v":"gibt den Schülerinnen und Schülern ein individuelles Feedback zum Lernprozess und/oder Lernprodukt aufgrund von Beobachtungen und/oder formativen Beurteilungsformen."}]
[null,{"$f":"Auswertungsraster!C102","v":"gestaltet den Unterricht so, dass sich die Schülerinnen und Schüler gegenseitig konstruktive Rückmeldungen geben können (Peerfeedback)."}]
[null,{"$f":"Auswertungsraster!C103","v":"holt von den Schülerinnen und Schülern Feedback über das Lernen ein und nutzt dieses für die Weiterentwicklung des Unterrichts."}]
[{"$f":"Auswertungsraster!B105","v":"Reflexion"},null," +++"," ++"," +"," -"," --"," ---","?","Bemerkungen"]
[]
[null,{"$f":"Auswertungsraster!C107","v":"Indikatoren"},"ja","teils","nein","?",null,null,null,"Bemerkungen"]
[{"$f":"Auswertungsraster!B108","v":"Die Lehrperson"},{"$f":"Auswertungsraster!C108","v":"schafft Gelegenheiten, Sachzusammenhänge zu reflektieren."}]
[null,{"$f":"Auswertungsraster!C109","v":"regt mit differenzierten Fragestellungen zur Reflexion und Dokumentation des eigenen Lernens und Problemlösens an."}]
[null,{"$f":"Auswertungsraster!C110","v":"sorgt dafür, dass die Erkenntnisse der Reflexion für das Lernen genutzt werden."}]
[null,{"$f":"Auswertungsraster!C111","v":"vermittelt Schülerinnen und Schülern geeignete Lernstrategien."}]
["Bilanzierende Bewertung Unterricht",null," +++"," ++","+"," -"," --"," ---","?","Bemerkungen"]
[]
[{"$f":"A2","v":"Erfahrungswelt"},null,{"$f":"C3","v":0},0,0,0,0,0,0,0]
[{"$f":"A9","v":"Kompetenzaufbau"},null,{"$f":"C10","v":0},0,0,0,0,0,0,0]
[{"$f":"A20","v":"Instruktion und Konstruktion"},null,{"$f":"C21","v":0},0,0,0,0,0,0,0]
[{"$f":"A30","v":"Transparenz der Lern- und Leistungserwartungen"},null,{"$f":"C31","v":0},0,0,0,0,0,0,0]
[{"$f":"A39","v":"Differenzierung"},null,{"$f":"C40","v":0},0,0,0,0,0,0,0]
[{"$f":"A50","v":"Erfolgserlebnisse"},null,{"$f":"C51","v":0},0,0,0,0,0,0,0]
[{"$f":"A57","v":"Feedback"},null,{"$f":"C58","v":0},0,0,0,0,0,0,0]
[{"$f":"A64","v":"Reflexion"},null,{"$f":"C65","v":0},{"$f":"D65","v":0},0,0,0,0,0,0]

{"sheet":"LP 5","index":6,"n_rows":80,"n_cols":10,"rows_kept":80,"cut":false,"hidden":false,"merged":[[79,0,79,1],[49,0,50,1],[56,0,57,1],[63,0,64,1],[70,0,71,1],[72,0,72,1],[73,0,73,1],[74,0,74,1],[75,0,75,1],[76,0,76,1],[77,0,77,1],[78,0,78,1],[38,0,39,1],[0,0,0,1],[1,0,2,1],[8,0,9,1],[19,0,20,1],[29,0,30,1]]}
["LP 5"]
[{"$f":"Auswertungsraster!B36","v":"Erfahrungswelt"},null," +++"," ++"," +"," -"," --"," ---","?","Bemerkungen"]
[]
[null,{"$f":"Auswertungsraster!C38","v":"Indikatoren"},"ja","teils","nein","?",null,null,null,"Bemerkungen"]
[{"$f":"Auswertungsraster!B39","v":"Die Lehrperson"},{"$f":"Auswertungsraster!C39","v":"bindet gehaltvolle Aufgaben/Fragen/Problem-stellungen in den Unterricht ein, die für die Schülerinnen und Schüler bedeutsam sind."}]
[null,{"$f":"Auswertungsraster!C40","v":"regt mit Aufgabenstellungen oder präsentierten Kernideen an, zentrale Kenntnisse, Fertigkeiten, Zusammenhänge und Haltungen des Fachs zu entdecken."}]
[null,{"$f":"Auswertungsraster!C41","v":"schafft im Unterricht einen Bezug zur (ausserschulischen) Lebenswelt der Schülerinnen und Schüler."}]
[null,{"$f":"Auswertungsraster!C42","v":"kann die Schülerinnen und Schüler für die\nAufgaben/Fragen/Problemstellungen motivieren."}]
[{"$f":"Auswertungsraster!B44","v":"Kompetenzaufbau"},null," +++"," ++"," +"," -"," --"," ---","?","Bemerkungen"]
[]
[null,{"$f":"Auswertungsraster!C46","v":"Indikatoren"},"ja","teils","nein","?",null,null,null,"Bemerkungen"]
[{"$f":"Auswertungsraster!B47","v":"Die Lehrperson"},{"$f":"Auswertungsraster!C47","v":"knüpft im Unterricht an das Vorwissen der Schülerinnen und Schüler an."}]
[null,{"$f":"Auswertungsraster!C48","v":"schafft herausfordernde Problemstellungen, die Schülerinnen und Schüler zum Denken und Handeln anregen."}]
[null,{"$f":"Auswertungsraster!C49","v":"sorgt dafür, dass an fachlichen Inhalten personale, soziale und methodische Kompetenzen erworben werden (überfachliche Kompetenzen)."}]
[null,{"$f":"Auswertungsraster!C50","v":"klärt beim Aufbau von neuem Wissen Fragestellungen und Irritationen der Schülerinnen und Schüler."}]
[null,{"$f":"Auswertungsraster!C51","v":"sorgt für mehrfache und gezielte Übungsphasen mithilfe vielgestaltiger Übungsaufgaben."}]
[null,{"$f":"Auswertungsraster!C52","v":"schafft im Unterricht Gelegenheiten, erworbenes Wissen, bereits gelernte Prozeduren und Methoden auf neue Situationen anzuwenden (Anwendungs-/\nTransferaufgaben)."}]
[null,{"$f":"Auswertungsraster!C53","v":"verfügt über Instrumente, den Kompetenzaufbau der Schülerinnen und Schüler zu dokumentieren."}]
[null,{"$f":"Auswertungsraster!C54","v":"leitet die Schülerinnen und Schüler an, den eigenen Lernweg systematisch festzuhalten."}]
[{"$f":"Auswertungsraster!B56","v":"Instruktion und Konstruktion"},null," +++"," ++"," +"," -"," --"," ---","?","Bemerkungen"]
[]
[null,{"$f":"Auswertungsraster!C58","v":"Indikatoren"},"ja","teils","nein","?",null,null,null,"Bemerkungen"]
[{"$f":"Auswertungsraster!B59","v":"Die Lehrperson"},{"$f":"Auswertungsraster!C59","v":"setzt Phasen von Instruktion und Konstruktion zielführend ein."}]
[null,{"$f":"Auswertungsraster!C60","v":"sorgt dafür, dass sich Instruktion und Konstruktion aufeinander beziehen."}]
[null,{"$f":"Auswertungsraster!C61","v":"schafft Situationen, die den Lerndialog unter\nSchülerinnen und Schülern anregen und lassen Raum für das Lernen von und miteinander."}]
[null,{"$f":"Auswertungsraster!C62","v":"gibt den Schülerinnen und Schülern die Möglichkeit, Lern- und Verstehensprozesse individuell zu besprechen."}]
[null,{"$f":"Auswertungsraster!C63","v":"leitet die Schülerinnen und Schüler zu weiterführenden Überlegungen an."}]
[null,{"$f":"Auswertungsraster!C64","v":"unterstützt das Verstehen der Schülerinnen und Schüler."}]
[null,{"$f":"Auswertungsraster!C65","v":"nutzt Klassenarbeitsphasen zur Systematisierung und Zusammenfassung des erarbeiteten Wissens und Könnens."}]
[{"$f":"Auswertungsraster!B67","v":"Transparenz der Lern- und Leistungserwartungen"},null," +++"," ++"," +"," -"," --"," ---","?","Bemerkungen"]
[]
[null,{"$f":"Auswertungsraster!C69","v":"Indikatoren"},"ja","teils","nein","?",null,null,null,"Bemerkungen"]
[{"$f":"Auswertungsraster!B70","v":"Die Lehrperson"},{"$f":"Auswertungsraster!C70","v":"orientiert sich bei der Formulierung von Lernzielen an den Kompetenzbeschreibungen des Lehrplans."}]
[null,{"$f":"Auswertungsraster!C71","v":"definiert «smarte» Lernziele (stimmig, messbar, attraktiv, realistisch, terminiert)."}]
[null,{"$f":"Auswertungsraster!C72","v":"gibt den Schülerinnen und Schülern die Kompetenz-/Lernziele rechtzeitig, schriftlich und verständlich bekannt."}]
[null,{"$f":"Auswertungsraster!C73","v":"schafft während dem Lernprozess systematisch Bezüge sowohl zu den Kompetenzzielen als auch zu den Lernzielen einzelner Etappen."}]
[null,{"$f":"Auswertungsraster!C74","v":"formuliert gegenüber den einzelnen Schülerinnen und Schülern individuell angepasste Lernziele."}]
[null,{"$f":"Auswertungsraster!C75","v":"schafft Gelegenheiten, dass Schülerinnen und Schüler eigene Lernprozesse anhand gemeinsam entwickelter Indikatoren überprüfen können."}]
[{"$f":"Auswertungsraster!B77","v":"Differenzierung"},null," +++"," ++"," +"," -"," --"," ---","?","Bemerkungen"]
[]
[null,{"$f":"Auswertungsraster!C79","v":"Indikatoren"},"ja","teils","nein","?",null,null,null,"Bemerkungen"]
[{"$f":"Auswertungsraster!B80","v":"Die Lehrperson"},{"$f":"Auswertungsraster!C80","v":"gestaltet den Unterricht so, dass die Schülerinnen und Schüler weder unter- noch überfordert sind."}]
[null,{"$f":"Auswertungsraster!C81","v":"stellt ein vielfältiges Lernangebot bereit, das sich auf eine Analyse des Lernstands der Schülerinnen und Schüler stützt."}]
[null,{"$f":"Auswertungsraster!C82","v":"reagiert auf die unterschiedlichen Lernvoraussetzungen der Schülerinnen und Schüler mit gezielten Massnahmen (z.B. Methodendifferenzierung, Tempodifferenzierung und Differenzierung der Anschauungsmittel)."}]
[null,{"$f":"Auswertungsraster!C83","v":"gestaltet Lernumgebungen/Aufgaben so, dass auf unterschiedlichen Anforderungsniveaus gearbeitet werden kann (Niveaudifferenzierung)."}]
[null,{"$f":"Auswertungsraster!C84","v":"schafft Möglichkeiten für Schülerinnen und Schüler zur inhaltlichen Mitbestimmung (Inhaltsdifferenzierung)."}]
[null,{"$f":"Auswertungsraster!C85","v":"stellt bewusst enge, halboffene oder offene Aufgaben, je nach Stand im Lernprozess beziehungsweise in Bezug zum Kompetenzaufbau."}]
[null,{"$f":"Auswertungsraster!C86","v":"übergibt den Schülerinnen und Schülern aufgrund ihrer Voraussetzungen Eigenverantwortung für ihre Lernziele, Lernprozesse und Lernprodukte."}]
[null,{"$f":"Auswertungsraster!C87","v":"gibt den Schülerinnen und Schülern individuelle und situative Unterstützung aufgrund gezielter Beobachtungen."}]
[{"$f":"Auswertungsraster!B89","v":"Erfolgserlebnisse"},null," +++"," ++"," +"," -"," --"," ---","?","Bemerkungen"]
[]
[null,{"$f":"Auswertungsraster!C91","v":"Indikatoren"},"ja","teils","nein","?",null,null,null,"Bemerkungen"]
[{"$f":"Auswertungsraster!B92","v":"Die Lehrperson"},{"$f":"Auswertungsraster!C92","v":"gestaltet den Unterricht so, dass Schülerinnen und Schüler Erfolgserlebnisse erfahren."}]
[null,{"$f":"Auswertungsraster!C93","v":"macht Lernerfolge den Schülerinnen und Schülern gegenüber sichtbar."}]
[null,{"$f":"Auswertungsraster!C94","v":"schafft im Unterricht Gelegenheiten, in denen Schülerinnen und Schüler das Gelernte zeigen können."}]
[null,{"$f":"Auswertungsraster!C95","v":"sorgt für die Würdigung von Lernerfolgen der Schülerinnen und Schüler."}]
[{"$f":"Auswertungsraster!B97","v":"Feedback"},null," +++"," ++"," +"," -"," --"," ---","?","Bemerkungen"]
[]
[null,{"$f":"Auswertungsraster!C99","v":"Indikatoren"},"ja","teils","nein","?",null,null,null,"Bemerkungen"]
[{"$f":"Auswertungsraster!B100","v":"Die Lehrperson"},{"$f":"Auswertungsraster!C100","v":"formuliert wertschätzende, aufbauende sowie ziel- bzw. kriterienorientierte Rückmeldungen."}]
[null,{"$f":"Auswertungsraster!C101","v":"gibt den Schülerinnen und Schülern ein individuelles Feedback zum Lernprozess und/oder Lernprodukt aufgrund von Beobachtungen und/oder formativen Beurteilungsformen."}]
[null,{"$f":"Auswertungsraster!C102","v":"gestaltet den Unterricht so, dass sich die Schülerinnen und Schüler gegenseitig konstruktive Rückmeldungen geben können (Peerfeedback)."}]
[null,{"$f":"Auswertungsraster!C103","v":"holt von den Schülerinnen und Schülern Feedback über das Lernen ein und nutzt dieses für die Weiterentwicklung des Unterrichts."}]
[{"$f":"Auswertungsraster!B105","v":"Reflexion"},null," +++"," ++"," +"," -"," --"," ---","?","Bemerkungen"]
[]
[null,{"$f":"Auswertungsraster!C107","v":"Indikatoren"},"ja","teils","nein","?",null,null,null,"Bemerkungen"]
[{"$f":"Auswertungsraster!B108","v":"Die Lehrperson"},{"$f":"Auswertungsraster!C108","v":"schafft Gelegenheiten, Sachzusammenhänge zu reflektieren."}]
[null,{"$f":"Auswertungsraster!C109","v":"regt mit differenzierten Fragestellungen zur Reflexion und Dokumentation des eigenen Lernens und Problemlösens an."}]
[null,{"$f":"Auswertungsraster!C110","v":"sorgt dafür, dass die Erkenntnisse der Reflexion für das Lernen genutzt werden."}]
[null,{"$f":"Auswertungsraster!C111","v":"vermittelt Schülerinnen und Schülern geeignete Lernstrategien."}]
["Bilanzierende Bewertung Unterricht",null," +++"," ++","+"," -"," --"," ---","?","Bemerkungen"]
[]
[{"$f":"A2","v":"Erfahrungswelt"},null,{"$f":"C3","v":0},0,0,0,0,0,0,0]
[{"$f":"A9","v":"Kompetenzaufbau"},null,{"$f":"C10","v":0},0,0,0,0,0,0,0]
[{"$f":"A20","v":"Instruktion und Konstruktion"},null,{"$f":"C21","v":0},0,0,0,0,0,0,0]
[{"$f":"A30","v":"Transparenz der Lern- und Leistungserwartungen"},null,{"$f":"C31","v":0},0,0,0,0,0,0,0]
[{"$f":"A39","v":"Differenzierung"},null,{"$f":"C40","v":0},0,0,0,0,0,0,0]
[{"$f":"A50","v":"Erfolgserlebnisse"},null,{"$f":"C51","v":0},0,0,0,0,0,0,0]
[{"$f":"A57","v":"Feedback"},null,{"$f":"C58","v":0},0,0,0,0,0,0,0]
[{"$f":"A64","v":"Reflexion"},null,{"$f":"C65","v":0},{"$f":"D65","v":0},0,0,0,0,0,0]

{"sheet":"LP 6","index":7,"n_rows":80,"n_cols":10,"rows_kept":80,"cut":false,"hidden":false,"merged":[[79,0,79,1],[49,0,50,1],[56,0,57,1],[63,0,64,1],[70,0,71,1],[72,0,72,1],[73,0,73,1],[74,0,74,1],[75,0,75,1],[76,0,76,1],[77,0,77,1],[78,0,78,1],[38,0,39,1],[0,0,0,1],[1,0,2,1],[8,0,9,1],[19,0,20,1],[29,0,30,1]]}
["LP 6"]
[{"$f":"Auswertungsraster!B36","v":"Erfahrungswelt"},null," +++"," ++"," +"," -"," --"," ---","?","Bemerkungen"]
[]
[null,{"$f":"Auswertungsraster!C38","v":"Indikatoren"},"ja","teils","nein","?",null,null,null,"Bemerkungen"]
[{"$f":"Auswertungsraster!B39","v":"Die Lehrperson"},{"$f":"Auswertungsraster!C39","v":"bindet gehaltvolle Aufgaben/Fragen/Problem-stellungen in den Unterricht ein, die für die Schülerinnen und Schüler bedeutsam sind."}]
[null,{"$f":"Auswertungsraster!C40","v":"regt mit Aufgabenstellungen oder präsentierten Kernideen an, zentrale Kenntnisse, Fertigkeiten, Zusammenhänge und Haltungen des Fachs zu entdecken."}]
[null,{"$f":"Auswertungsraster!C41","v":"schafft im Unterricht einen Bezug zur (ausserschulischen) Lebenswelt der Schülerinnen und Schüler."}]
[null,{"$f":"Auswertungsraster!C42","v":"kann die Schülerinnen und Schüler für die\nAufgaben/Fragen/Problemstellungen motivieren."}]
[{"$f":"Auswertungsraster!B44","v":"Kompetenzaufbau"},null," +++"," ++"," +"," -"," --"," ---","?","Bemerkungen"]
[]
[null,{"$f":"Auswertungsraster!C46","v":"Indikatoren"},"ja","teils","nein","?",null,null,null,"Bemerkungen"]
[{"$f":"Auswertungsraster!B47","v":"Die Lehrperson"},{"$f":"Auswertungsraster!C47","v":"knüpft im Unterricht an das Vorwissen der Schülerinnen und Schüler an."}]
[null,{"$f":"Auswertungsraster!C48","v":"schafft herausfordernde Problemstellungen, die Schülerinnen und Schüler zum Denken und Handeln anregen."}]
[null,{"$f":"Auswertungsraster!C49","v":"sorgt dafür, dass an fachlichen Inhalten personale, soziale und methodische Kompetenzen erworben werden (überfachliche Kompetenzen)."}]
[null,{"$f":"Auswertungsraster!C50","v":"klärt beim Aufbau von neuem Wissen Fragestellungen und Irritationen der Schülerinnen und Schüler."}]
[null,{"$f":"Auswertungsraster!C51","v":"sorgt für mehrfache und gezielte Übungsphasen mithilfe vielgestaltiger Übungsaufgaben."}]
[null,{"$f":"Auswertungsraster!C52","v":"schafft im Unterricht Gelegenheiten, erworbenes Wissen, bereits gelernte Prozeduren und Methoden auf neue Situationen anzuwenden (Anwendungs-/\nTransferaufgaben)."}]
[null,{"$f":"Auswertungsraster!C53","v":"verfügt über Instrumente, den Kompetenzaufbau der Schülerinnen und Schüler zu dokumentieren."}]
[null,{"$f":"Auswertungsraster!C54","v":"leitet die Schülerinnen und Schüler an, den eigenen Lernweg systematisch festzuhalten."}]
[{"$f":"Auswertungsraster!B56","v":"Instruktion und Konstruktion"},null," +++"," ++"," +"," -"," --"," ---","?","Bemerkungen"]
[]
[null,{"$f":"Auswertungsraster!C58","v":"Indikatoren"},"ja","teils","nein","?",null,null,null,"Bemerkungen"]
[{"$f":"Auswertungsraster!B59","v":"Die Lehrperson"},{"$f":"Auswertungsraster!C59","v":"setzt Phasen von Instruktion und Konstruktion zielführend ein."}]
[null,{"$f":"Auswertungsraster!C60","v":"sorgt dafür, dass sich Instruktion und Konstruktion aufeinander beziehen."}]
[null,{"$f":"Auswertungsraster!C61","v":"schafft Situationen, die den Lerndialog unter\nSchülerinnen und Schülern anregen und lassen Raum für das Lernen von und miteinander."}]
[null,{"$f":"Auswertungsraster!C62","v":"gibt den Schülerinnen und Schülern die Möglichkeit, Lern- und Verstehensprozesse individuell zu besprechen."}]
[null,{"$f":"Auswertungsraster!C63","v":"leitet die Schülerinnen und Schüler zu weiterführenden Überlegungen an."}]
[null,{"$f":"Auswertungsraster!C64","v":"unterstützt das Verstehen der Schülerinnen und Schüler."}]
[null,{"$f":"Auswertungsraster!C65","v":"nutzt Klassenarbeitsphasen zur Systematisierung und Zusammenfassung des erarbeiteten Wissens und Könnens."}]
[{"$f":"Auswertungsraster!B67","v":"Transparenz der Lern- und Leistungserwartungen"},null," +++"," ++"," +"," -"," --"," ---","?","Bemerkungen"]
[]
[null,{"$f":"Auswertungsraster!C69","v":"Indikatoren"},"ja","teils","nein","?",null,null,null,"Bemerkungen"]
[{"$f":"Auswertungsraster!B70","v":"Die Lehrperson"},{"$f":"Auswertungsraster!C70","v":"orientiert sich bei der Formulierung von Lernzielen an den Kompetenzbeschreibungen des Lehrplans."}]
[null,{"$f":"Auswertungsraster!C71","v":"definiert «smarte» Lernziele (stimmig, messbar, attraktiv, realistisch, terminiert)."}]
[null,{"$f":"Auswertungsraster!C72","v":"gibt den Schülerinnen und Schülern die Kompetenz-/Lernziele rechtzeitig, schriftlich und verständlich bekannt."}]
[null,{"$f":"Auswertungsraster!C73","v":"schafft während dem Lernprozess systematisch Bezüge sowohl zu den Kompetenzzielen als auch zu den Lernzielen einzelner Etappen."}]
[null,{"$f":"Auswertungsraster!C74","v":"formuliert gegenüber den einzelnen Schülerinnen und Schülern individuell angepasste Lernziele."}]
[null,{"$f":"Auswertungsraster!C75","v":"schafft Gelegenheiten, dass Schülerinnen und Schüler eigene Lernprozesse anhand gemeinsam entwickelter Indikatoren überprüfen können."}]
[{"$f":"Auswertungsraster!B77","v":"Differenzierung"},null," +++"," ++"," +"," -"," --"," ---","?","Bemerkungen"]
[]
[null,{"$f":"Auswertungsraster!C79","v":"Indikatoren"},"ja","teils","nein","?",null,null,null,"Bemerkungen"]
[{"$f":"Auswertungsraster!B80","v":"Die Lehrperson"},{"$f":"Auswertungsraster!C80","v":"gestaltet den Unterricht so, dass die Schülerinnen und Schüler weder unter- noch überfordert sind."}]
[null,{"$f":"Auswertungsraster!C81","v":"stellt ein vielfältiges Lernangebot bereit, das sich auf eine Analyse des Lernstands der Schülerinnen und Schüler stützt."}]
[null,{"$f":"Auswertungsraster!C82","v":"reagiert auf die unterschiedlichen Lernvoraussetzungen der Schülerinnen und Schüler mit gezielten Massnahmen (z.B. Methodendifferenzierung, Tempodifferenzierung und Differenzierung der Anschauungsmittel)."}]
[null,{"$f":"Auswertungsraster!C83","v":"gestaltet Lernumgebungen/Aufgaben so, dass auf unterschiedlichen Anforderungsniveaus gearbeitet werden kann (Niveaudifferenzierung)."}]
[null,{"$f":"Auswertungsraster!C84","v":"schafft Möglichkeiten für Schülerinnen und Schüler zur inhaltlichen Mitbestimmung (Inhaltsdifferenzierung)."}]
[null,{"$f":"Auswertungsraster!C85","v":"stellt bewusst enge, halboffene oder offene Aufgaben, je nach Stand im Lernprozess beziehungsweise in Bezug zum Kompetenzaufbau."}]
[null,{"$f":"Auswertungsraster!C86","v":"übergibt den Schülerinnen und Schülern aufgrund ihrer Voraussetzungen Eigenverantwortung für ihre Lernziele, Lernprozesse und Lernprodukte."}]
[null,{"$f":"Auswertungsraster!C87","v":"gibt den Schülerinnen und Schülern individuelle und situative Unterstützung aufgrund gezielter Beobachtungen."}]
[{"$f":"Auswertungsraster!B89","v":"Erfolgserlebnisse"},null," +++"," ++"," +"," -"," --"," ---","?","Bemerkungen"]
[]
[null,{"$f":"Auswertungsraster!C91","v":"Indikatoren"},"ja","teils","nein","?",null,null,null,"Bemerkungen"]
[{"$f":"Auswertungsraster!B92","v":"Die Lehrperson"},{"$f":"Auswertungsraster!C92","v":"gestaltet den Unterricht so, dass Schülerinnen und Schüler Erfolgserlebnisse erfahren."}]
[null,{"$f":"Auswertungsraster!C93","v":"macht Lernerfolge den Schülerinnen und Schülern gegenüber sichtbar."}]
[null,{"$f":"Auswertungsraster!C94","v":"schafft im Unterricht Gelegenheiten, in denen Schülerinnen und Schüler das Gelernte zeigen können."}]
[null,{"$f":"Auswertungsraster!C95","v":"sorgt für die Würdigung von Lernerfolgen der Schülerinnen und Schüler."}]
[{"$f":"Auswertungsraster!B97","v":"Feedback"},null," +++"," ++"," +"," -"," --"," ---","?","Bemerkungen"]
[]
[null,{"$f":"Auswertungsraster!C99","v":"Indikatoren"},"ja","teils","nein","?",null,null,null,"Bemerkungen"]
[{"$f":"Auswertungsraster!B100","v":"Die Lehrperson"},{"$f":"Auswertungsraster!C100","v":"formuliert wertschätzende, aufbauende sowie ziel- bzw. kriterienorientierte Rückmeldungen."}]
[null,{"$f":"Auswertungsraster!C101","v":"gibt den Schülerinnen und Schülern ein individuelles Feedback zum Lernprozess und/oder Lernprodukt aufgrund von Beobachtungen und/oder formativen Beurteilungsformen."}]
[null,{"$f":"Auswertungsraster!C102","v":"gestaltet den Unterricht so, dass sich die Schülerinnen und Schüler gegenseitig konstruktive Rückmeldungen geben können (Peerfeedback)."}]
[null,{"$f":"Auswertungsraster!C103","v":"holt von den Schülerinnen und Schülern Feedback über das Lernen ein und nutzt dieses für die Weiterentwicklung des Unterrichts."}]
[{"$f":"Auswertungsraster!B105","v":"Reflexion"},null," +++"," ++"," +"," -"," --"," ---","?","Bemerkungen"]
[]
[null,{"$f":"Auswertungsraster!C107","v":"Indikatoren"},"ja","teils","nein","?",null,null,null,"Bemerkungen"]
[{"$f":"Auswertungsraster!B108","v":"Die Lehrperson"},{"$f":"Auswertungsraster!C108","v":"schafft Gelegenheiten, Sachzusammenhänge zu reflektieren."}]
[null,{"$f":"Auswertungsraster!C109","v":"regt mit differenzierten Fragestellungen zur Reflexion und Dokumentation des eigenen Lernens und Problemlösens an."}]
[null,{"$f":"Auswertungsraster!C110","v":"sorgt dafür, dass die Erkenntnisse der Reflexion für das Lernen genutzt werden."}]
[null,{"$f":"Auswertungsraster!C111","v":"vermittelt Schülerinnen und Schülern geeignete Lernstrategien."}]
["Bilanzierende Bewertung Unterricht",null," +++"," ++","+"," -"," --"," ---","?","Bemerkungen"]
[]
[{"$f":"A2","v":"Erfahrungswelt"},null,{"$f":"C3","v":0},0,0,0,0,0,0,0]
[{"$f":"A9","v":"Kompetenzaufbau"},null,{"$f":"C10","v":0},0,0,0,0,0,0,0]
[{"$f":"A20","v":"Instruktion und Konstruktion"},null,{"$f":"C21","v":0},0,0,0,0,0,0,0]
[{"$f":"A30","v":"Transparenz der Lern- und Leistungserwartungen"},null,{"$f":"C31","v":0},0,0,0,0,0,0,0]
[{"$f":"A39","v":"Differenzierung"},null,{"$f":"C40","v":0},0,0,0,0,0,0,0]
[{"$f":"A50","v":"Erfolgserlebnisse"},null,{"$f":"C51","v":0},0,0,0,0,0,0,0]
[{"$f":"A57","v":"Feedback"},null,{"$f":"C58","v":0},0,0,0,0,0,0,0]
[{"$f":"A64","v":"Reflexion"},null,{"$f":"C65","v":0},{"$f":"D65","v":0},0,0,0,0,0,0]

{"sheet":"LP 7","index":8,"n_rows":80,"n_cols":10,"rows_kept":80,"cut":false,"hidden":false,"merged":[[79,0,79,1],[49,0,50,1],[56,0,57,1],[63,0,64,1],[70,0,71,1],[72,0,72,1],[73,0,73,1],[74,0,74,1],[75,0,75,1],[76,0,76,1],[77,0,77,1],[78,0,78,1],[38,0,39,1],[0,0,0,1],[1,0,2,1],[8,0,9,1],[19,0,20,1],[29,0,30,1]]}
["LP 7"]
[{"$f":"Auswertungsraster!B36","v":"Erfahrungswelt"},null," +++"," ++"," +"," -"," --"," ---","?","Bemerkungen"]
[]
[null,{"$f":"Auswertungsraster!C38","v":"Indikatoren"},"ja","teils","nein","?",null,null,null,"Bemerkungen"]
[{"$f":"Auswertungsraster!B39","v":"Die Lehrperson"},{"$f":"Auswertungsraster!C39","v":"bindet gehaltvolle Aufgaben/Fragen/Problem-stellungen in den Unterricht ein, die für die Schülerinnen und Schüler bedeutsam sind."}]
[null,{"$f":"Auswertungsraster!C40","v":"regt mit Aufgabenstellungen oder präsentierten Kernideen an, zentrale Kenntnisse, Fertigkeiten, Zusammenhänge und Haltungen des Fachs zu entdecken."}]
[null,{"$f":"Auswertungsraster!C41","v":"schafft im Unterricht einen Bezug zur (ausserschulischen) Lebenswelt der Schülerinnen und Schüler."}]
[null,{"$f":"Auswertungsraster!C42","v":"kann die Schülerinnen und Schüler für die\nAufgaben/Fragen/Problemstellungen motivieren."}]
[{"$f":"Auswertungsraster!B44","v":"Kompetenzaufbau"},null," +++"," ++"," +"," -"," --"," ---","?","Bemerkungen"]
[]
[null,{"$f":"Auswertungsraster!C46","v":"Indikatoren"},"ja","teils","nein","?",null,null,null,"Bemerkungen"]
[{"$f":"Auswertungsraster!B47","v":"Die Lehrperson"},{"$f":"Auswertungsraster!C47","v":"knüpft im Unterricht an das Vorwissen der Schülerinnen und Schüler an."}]
[null,{"$f":"Auswertungsraster!C48","v":"schafft herausfordernde Problemstellungen, die Schülerinnen und Schüler zum Denken und Handeln anregen."}]
[null,{"$f":"Auswertungsraster!C49","v":"sorgt dafür, dass an fachlichen Inhalten personale, soziale und methodische Kompetenzen erworben werden (überfachliche Kompetenzen)."}]
[null,{"$f":"Auswertungsraster!C50","v":"klärt beim Aufbau von neuem Wissen Fragestellungen und Irritationen der Schülerinnen und Schüler."}]
[null,{"$f":"Auswertungsraster!C51","v":"sorgt für mehrfache und gezielte Übungsphasen mithilfe vielgestaltiger Übungsaufgaben."}]
[null,{"$f":"Auswertungsraster!C52","v":"schafft im Unterricht Gelegenheiten, erworbenes Wissen, bereits gelernte Prozeduren und Methoden auf neue Situationen anzuwenden (Anwendungs-/\nTransferaufgaben)."}]
[null,{"$f":"Auswertungsraster!C53","v":"verfügt über Instrumente, den Kompetenzaufbau der Schülerinnen und Schüler zu dokumentieren."}]
[null,{"$f":"Auswertungsraster!C54","v":"leitet die Schülerinnen und Schüler an, den eigenen Lernweg systematisch festzuhalten."}]
[{"$f":"Auswertungsraster!B56","v":"Instruktion und Konstruktion"},null," +++"," ++"," +"," -"," --"," ---","?","Bemerkungen"]
[]
[null,{"$f":"Auswertungsraster!C58","v":"Indikatoren"},"ja","teils","nein","?",null,null,null,"Bemerkungen"]
[{"$f":"Auswertungsraster!B59","v":"Die Lehrperson"},{"$f":"Auswertungsraster!C59","v":"setzt Phasen von Instruktion und Konstruktion zielführend ein."}]
[null,{"$f":"Auswertungsraster!C60","v":"sorgt dafür, dass sich Instruktion und Konstruktion aufeinander beziehen."}]
[null,{"$f":"Auswertungsraster!C61","v":"schafft Situationen, die den Lerndialog unter\nSchülerinnen und Schülern anregen und lassen Raum für das Lernen von und miteinander."}]
[null,{"$f":"Auswertungsraster!C62","v":"gibt den Schülerinnen und Schülern die Möglichkeit, Lern- und Verstehensprozesse individuell zu besprechen."}]
[null,{"$f":"Auswertungsraster!C63","v":"leitet die Schülerinnen und Schüler zu weiterführenden Überlegungen an."}]
[null,{"$f":"Auswertungsraster!C64","v":"unterstützt das Verstehen der Schülerinnen und Schüler."}]
[null,{"$f":"Auswertungsraster!C65","v":"nutzt Klassenarbeitsphasen zur Systematisierung und Zusammenfassung des erarbeiteten Wissens und Könnens."}]
[{"$f":"Auswertungsraster!B67","v":"Transparenz der Lern- und Leistungserwartungen"},null," +++"," ++"," +"," -"," --"," ---","?","Bemerkungen"]
[]
[null,{"$f":"Auswertungsraster!C69","v":"Indikatoren"},"ja","teils","nein","?",null,null,null,"Bemerkungen"]
[{"$f":"Auswertungsraster!B70","v":"Die Lehrperson"},{"$f":"Auswertungsraster!C70","v":"orientiert sich bei der Formulierung von Lernzielen an den Kompetenzbeschreibungen des Lehrplans."}]
[null,{"$f":"Auswertungsraster!C71","v":"definiert «smarte» Lernziele (stimmig, messbar, attraktiv, realistisch, terminiert)."}]
[null,{"$f":"Auswertungsraster!C72","v":"gibt den Schülerinnen und Schülern die Kompetenz-/Lernziele rechtzeitig, schriftlich und verständlich bekannt."}]
[null,{"$f":"Auswertungsraster!C73","v":"schafft während dem Lernprozess systematisch Bezüge sowohl zu den Kompetenzzielen als auch zu den Lernzielen einzelner Etappen."}]
[null,{"$f":"Auswertungsraster!C74","v":"formuliert gegenüber den einzelnen Schülerinnen und Schülern individuell angepasste Lernziele."}]
[null,{"$f":"Auswertungsraster!C75","v":"schafft Gelegenheiten, dass Schülerinnen und Schüler eigene Lernprozesse anhand gemeinsam entwickelter Indikatoren überprüfen können."}]
[{"$f":"Auswertungsraster!B77","v":"Differenzierung"},null," +++"," ++"," +"," -"," --"," ---","?","Bemerkungen"]
[]
[null,{"$f":"Auswertungsraster!C79","v":"Indikatoren"},"ja","teils","nein","?",null,null,null,"Bemerkungen"]
[{"$f":"Auswertungsraster!B80","v":"Die Lehrperson"},{"$f":"Auswertungsraster!C80","v":"gestaltet den Unterricht so, dass die Schülerinnen und Schüler weder unter- noch überfordert sind."}]
[null,{"$f":"Auswertungsraster!C81","v":"stellt ein vielfältiges Lernangebot bereit, das sich auf eine Analyse des Lernstands der Schülerinnen und Schüler stützt."}]
[null,{"$f":"Auswertungsraster!C82","v":"reagiert auf die unterschiedlichen Lernvoraussetzungen der Schülerinnen und Schüler mit gezielten Massnahmen (z.B. Methodendifferenzierung, Tempodifferenzierung und Differenzierung der Anschauungsmittel)."}]
[null,{"$f":"Auswertungsraster!C83","v":"gestaltet Lernumgebungen/Aufgaben so, dass auf unterschiedlichen Anforderungsniveaus gearbeitet werden kann (Niveaudifferenzierung)."}]
[null,{"$f":"Auswertungsraster!C84","v":"schafft Möglichkeiten für Schülerinnen und Schüler zur inhaltlichen Mitbestimmung (Inhaltsdifferenzierung)."}]
[null,{"$f":"Auswertungsraster!C85","v":"stellt bewusst enge, halboffene oder offene Aufgaben, je nach Stand im Lernprozess beziehungsweise in Bezug zum Kompetenzaufbau."}]
[null,{"$f":"Auswertungsraster!C86","v":"übergibt den Schülerinnen und Schülern aufgrund ihrer Voraussetzungen Eigenverantwortung für ihre Lernziele, Lernprozesse und Lernprodukte."}]
[null,{"$f":"Auswertungsraster!C87","v":"gibt den Schülerinnen und Schülern individuelle und situative Unterstützung aufgrund gezielter Beobachtungen."}]
[{"$f":"Auswertungsraster!B89","v":"Erfolgserlebnisse"},null," +++"," ++"," +"," -"," --"," ---","?","Bemerkungen"]
[]
[null,{"$f":"Auswertungsraster!C91","v":"Indikatoren"},"ja","teils","nein","?",null,null,null,"Bemerkungen"]
[{"$f":"Auswertungsraster!B92","v":"Die Lehrperson"},{"$f":"Auswertungsraster!C92","v":"gestaltet den Unterricht so, dass Schülerinnen und Schüler Erfolgserlebnisse erfahren."}]
[null,{"$f":"Auswertungsraster!C93","v":"macht Lernerfolge den Schülerinnen und Schülern gegenüber sichtbar."}]
[null,{"$f":"Auswertungsraster!C94","v":"schafft im Unterricht Gelegenheiten, in denen Schülerinnen und Schüler das Gelernte zeigen können."}]
[null,{"$f":"Auswertungsraster!C95","v":"sorgt für die Würdigung von Lernerfolgen der Schülerinnen und Schüler."}]
[{"$f":"Auswertungsraster!B97","v":"Feedback"},null," +++"," ++"," +"," -"," --"," ---","?","Bemerkungen"]
[]
[null,{"$f":"Auswertungsraster!C99","v":"Indikatoren"},"ja","teils","nein","?",null,null,null,"Bemerkungen"]
[{"$f":"Auswertungsraster!B100","v":"Die Lehrperson"},{"$f":"Auswertungsraster!C100","v":"formuliert wertschätzende, aufbauende sowie ziel- bzw. kriterienorientierte Rückmeldungen."}]
[null,{"$f":"Auswertungsraster!C101","v":"gibt den Schülerinnen und Schülern ein individuelles Feedback zum Lernprozess und/oder Lernprodukt aufgrund von Beobachtungen und/oder formativen Beurteilungsformen."}]
[null,{"$f":"Auswertungsraster!C102","v":"gestaltet den Unterricht so, dass sich die Schülerinnen und Schüler gegenseitig konstruktive Rückmeldungen geben können (Peerfeedback)."}]
[null,{"$f":"Auswertungsraster!C103","v":"holt von den Schülerinnen und Schülern Feedback über das Lernen ein und nutzt dieses für die Weiterentwicklung des Unterrichts."}]
[{"$f":"Auswertungsraster!B105","v":"Reflexion"},null," +++"," ++"," +"," -"," --"," ---","?","Bemerkungen"]
[]
[null,{"$f":"Auswertungsraster!C107","v":"Indikatoren"},"ja","teils","nein","?",null,null,null,"Bemerkungen"]
[{"$f":"Auswertungsraster!B108","v":"Die Lehrperson"},{"$f":"Auswertungsraster!C108","v":"schafft Gelegenheiten, Sachzusammenhänge zu reflektieren."}]
[null,{"$f":"Auswertungsraster!C109","v":"regt mit differenzierten Fragestellungen zur Reflexion und Dokumentation des eigenen Lernens und Problemlösens an."}]
[null,{"$f":"Auswertungsraster!C110","v":"sorgt dafür, dass die Erkenntnisse der Reflexion für das Lernen genutzt werden."}]
[null,{"$f":"Auswertungsraster!C111","v":"vermittelt Schülerinnen und Schülern geeignete Lernstrategien."}]
["Bilanzierende Bewertung Unterricht",null," +++"," ++","+"," -"," --"," ---","?","Bemerkungen"]
[]
[{"$f":"A2","v":"Erfahrungswelt"},null,{"$f":"C3","v":0},0,0,0,0,0,0,0]
[{"$f":"A9","v":"Kompetenzaufbau"},null,{"$f":"C10","v":0},0,0,0,0,0,0,0]
[{"$f":"A20","v":"Instruktion und Konstruktion"},null,{"$f":"C21","v":0},0,0,0,0,0,0,0]
[{"$f":"A30","v":"Transparenz der Lern- und Leistungserwartungen"},null,{"$f":"C31","v":0},0,0,0,0,0,0,0]
[{"$f":"A39","v":"Differenzierung"},null,{"$f":"C40","v":0},0,0,0,0,0,0,0]
[{"$f":"A50","v":"Erfolgserlebnisse"},null,{"$f":"C51","v":0},0,0,0,0,0,0,0]
[{"$f":"A57","v":"Feedback"},null,{"$f":"C58","v":0},0,0,0,0,0,0,0]
[{"$f":"A64","v":"Reflexion"},null,{"$f":"C65","v":0},{"$f":"D65","v":0},0,0,0,0,0,0]

{"sheet":"LP 8","index":9,"n_rows":80,"n_cols":10,"rows_kept":80,"cut":false,"hidden":false,"merged":[[79,0,79,1],[49,0,50,1],[56,0,57,1],[63,0,64,1],[70,0,71,1],[72,0,72,1],[73,0,73,1],[74,0,74,1],[75,0,75,1],[76,0,76,1],[77,0,77,1],[78,0,78,1],[38,0,39,1],[0,0,0,1],[1,0,2,1],[8,0,9,1],[19,0,20,1],[29,0,30,1]]}
["LP 8"]
[{"$f":"Auswertungsraster!B36","v":"Erfahrungswelt"},null," +++"," ++"," +"," -"," --"," ---","?","Bemerkungen"]
[]
[null,{"$f":"Auswertungsraster!C38","v":"Indikatoren"},"ja","teils","nein","?",null,null,null,"Bemerkungen"]
[{"$f":"Auswertungsraster!B39","v":"Die Lehrperson"},{"$f":"Auswertungsraster!C39","v":"bindet gehaltvolle Aufgaben/Fragen/Problem-stellungen in den Unterricht ein, die für die Schülerinnen und Schüler bedeutsam sind."}]
[null,{"$f":"Auswertungsraster!C40","v":"regt mit Aufgabenstellungen oder präsentierten Kernideen an, zentrale Kenntnisse, Fertigkeiten, Zusammenhänge und Haltungen des Fachs zu entdecken."}]
[null,{"$f":"Auswertungsraster!C41","v":"schafft im Unterricht einen Bezug zur (ausserschulischen) Lebenswelt der Schülerinnen und Schüler."}]
[null,{"$f":"Auswertungsraster!C42","v":"kann die Schülerinnen und Schüler für die\nAufgaben/Fragen/Problemstellungen motivieren."}]
[{"$f":"Auswertungsraster!B44","v":"Kompetenzaufbau"},null," +++"," ++"," +"," -"," --"," ---","?","Bemerkungen"]
[]
[null,{"$f":"Auswertungsraster!C46","v":"Indikatoren"},"ja","teils","nein","?",null,null,null,"Bemerkungen"]
[{"$f":"Auswertungsraster!B47","v":"Die Lehrperson"},{"$f":"Auswertungsraster!C47","v":"knüpft im Unterricht an das Vorwissen der Schülerinnen und Schüler an."}]
[null,{"$f":"Auswertungsraster!C48","v":"schafft herausfordernde Problemstellungen, die Schülerinnen und Schüler zum Denken und Handeln anregen."}]
[null,{"$f":"Auswertungsraster!C49","v":"sorgt dafür, dass an fachlichen Inhalten personale, soziale und methodische Kompetenzen erworben werden (überfachliche Kompetenzen)."}]
[null,{"$f":"Auswertungsraster!C50","v":"klärt beim Aufbau von neuem Wissen Fragestellungen und Irritationen der Schülerinnen und Schüler."}]
[null,{"$f":"Auswertungsraster!C51","v":"sorgt für mehrfache und gezielte Übungsphasen mithilfe vielgestaltiger Übungsaufgaben."}]
[null,{"$f":"Auswertungsraster!C52","v":"schafft im Unterricht Gelegenheiten, erworbenes Wissen, bereits gelernte Prozeduren und Methoden auf neue Situationen anzuwenden (Anwendungs-/\nTransferaufgaben)."}]
[null,{"$f":"Auswertungsraster!C53","v":"verfügt über Instrumente, den Kompetenzaufbau der Schülerinnen und Schüler zu dokumentieren."}]
[null,{"$f":"Auswertungsraster!C54","v":"leitet die Schülerinnen und Schüler an, den eigenen Lernweg systematisch festzuhalten."}]
[{"$f":"Auswertungsraster!B56","v":"Instruktion und Konstruktion"},null," +++"," ++"," +"," -"," --"," ---","?","Bemerkungen"]
[]
[null,{"$f":"Auswertungsraster!C58","v":"Indikatoren"},"ja","teils","nein","?",null,null,null,"Bemerkungen"]
[{"$f":"Auswertungsraster!B59","v":"Die Lehrperson"},{"$f":"Auswertungsraster!C59","v":"setzt Phasen von Instruktion und Konstruktion zielführend ein."}]
[null,{"$f":"Auswertungsraster!C60","v":"sorgt dafür, dass sich Instruktion und Konstruktion aufeinander beziehen."}]
[null,{"$f":"Auswertungsraster!C61","v":"schafft Situationen, die den Lerndialog unter\nSchülerinnen und Schülern anregen und lassen Raum für das Lernen von und miteinander."}]
[null,{"$f":"Auswertungsraster!C62","v":"gibt den Schülerinnen und Schülern die Möglichkeit, Lern- und Verstehensprozesse individuell zu besprechen."}]
[null,{"$f":"Auswertungsraster!C63","v":"leitet die Schülerinnen und Schüler zu weiterführenden Überlegungen an."}]
[null,{"$f":"Auswertungsraster!C64","v":"unterstützt das Verstehen der Schülerinnen und Schüler."}]
[null,{"$f":"Auswertungsraster!C65","v":"nutzt Klassenarbeitsphasen zur Systematisierung und Zusammenfassung des erarbeiteten Wissens und Könnens."}]
[{"$f":"Auswertungsraster!B67","v":"Transparenz der Lern- und Leistungserwartungen"},null," +++"," ++"," +"," -"," --"," ---","?","Bemerkungen"]
[]
[null,{"$f":"Auswertungsraster!C69","v":"Indikatoren"},"ja","teils","nein","?",null,null,null,"Bemerkungen"]
[{"$f":"Auswertungsraster!B70","v":"Die Lehrperson"},{"$f":"Auswertungsraster!C70","v":"orientiert sich bei der Formulierung von Lernzielen an den Kompetenzbeschreibungen des Lehrplans."}]
[null,{"$f":"Auswertungsraster!C71","v":"definiert «smarte» Lernziele (stimmig, messbar, attraktiv, realistisch, terminiert)."}]
[null,{"$f":"Auswertungsraster!C72","v":"gibt den Schülerinnen und Schülern die Kompetenz-/Lernziele rechtzeitig, schriftlich und verständlich bekannt."}]
[null,{"$f":"Auswertungsraster!C73","v":"schafft während dem Lernprozess systematisch Bezüge sowohl zu den Kompetenzzielen als auch zu den Lernzielen einzelner Etappen."}]
[null,{"$f":"Auswertungsraster!C74","v":"formuliert gegenüber den einzelnen Schülerinnen und Schülern individuell angepasste Lernziele."}]
[null,{"$f":"Auswertungsraster!C75","v":"schafft Gelegenheiten, dass Schülerinnen und Schüler eigene Lernprozesse anhand gemeinsam entwickelter Indikatoren überprüfen können."}]
[{"$f":"Auswertungsraster!B77","v":"Differenzierung"},null," +++"," ++"," +"," -"," --"," ---","?","Bemerkungen"]
[]
[null,{"$f":"Auswertungsraster!C79","v":"Indikatoren"},"ja","teils","nein","?",null,null,null,"Bemerkungen"]
[{"$f":"Auswertungsraster!B80","v":"Die Lehrperson"},{"$f":"Auswertungsraster!C80","v":"gestaltet den Unterricht so, dass die Schülerinnen und Schüler weder unter- noch überfordert sind."}]
[null,{"$f":"Auswertungsraster!C81","v":"stellt ein vielfältiges Lernangebot bereit, das sich auf eine Analyse des Lernstands der Schülerinnen und Schüler stützt."}]
[null,{"$f":"Auswertungsraster!C82","v":"reagiert auf die unterschiedlichen Lernvoraussetzungen der Schülerinnen und Schüler mit gezielten Massnahmen (z.B. Methodendifferenzierung, Tempodifferenzierung und Differenzierung der Anschauungsmittel)."}]
[null,{"$f":"Auswertungsraster!C83","v":"gestaltet Lernumgebungen/Aufgaben so, dass auf unterschiedlichen Anforderungsniveaus gearbeitet werden kann (Niveaudifferenzierung)."}]
[null,{"$f":"Auswertungsraster!C84","v":"schafft Möglichkeiten für Schülerinnen und Schüler zur inhaltlichen Mitbestimmung (Inhaltsdifferenzierung)."}]
[null,{"$f":"Auswertungsraster!C85","v":"stellt bewusst enge, halboffene oder offene Aufgaben, je nach Stand im Lernprozess beziehungsweise in Bezug zum Kompetenzaufbau."}]
[null,{"$f":"Auswertungsraster!C86","v":"übergibt den Schülerinnen und Schülern aufgrund ihrer Voraussetzungen Eigenverantwortung für ihre Lernziele, Lernprozesse und Lernprodukte."}]
[null,{"$f":"Auswertungsraster!C87","v":"gibt den Schülerinnen und Schülern individuelle und situative Unterstützung aufgrund gezielter Beobachtungen."}]
[{"$f":"Auswertungsraster!B89","v":"Erfolgserlebnisse"},null," +++"," ++"," +"," -"," --"," ---","?","Bemerkungen"]
[]
[null,{"$f":"Auswertungsraster!C91","v":"Indikatoren"},"ja","teils","nein","?",null,null,null,"Bemerkungen"]
[{"$f":"Auswertungsraster!B92","v":"Die Lehrperson"},{"$f":"Auswertungsraster!C92","v":"gestaltet den Unterricht so, dass Schülerinnen und Schüler Erfolgserlebnisse erfahren."}]
[null,{"$f":"Auswertungsraster!C93","v":"macht Lernerfolge den Schülerinnen und Schülern gegenüber sichtbar."}]
[null,{"$f":"Auswertungsraster!C94","v":"schafft im Unterricht Gelegenheiten, in denen Schülerinnen und Schüler das Gelernte zeigen können."}]
[null,{"$f":"Auswertungsraster!C95","v":"sorgt für die Würdigung von Lernerfolgen der Schülerinnen und Schüler."}]
[{"$f":"Auswertungsraster!B97","v":"Feedback"},null," +++"," ++"," +"," -"," --"," ---","?","Bemerkungen"]
[]
[null,{"$f":"Auswertungsraster!C99","v":"Indikatoren"},"ja","teils","nein","?",null,null,null,"Bemerkungen"]
[{"$f":"Auswertungsraster!B100","v":"Die Lehrperson"},{"$f":"Auswertungsraster!C100","v":"formuliert wertschätzende, aufbauende sowie ziel- bzw. kriterienorientierte Rückmeldungen."}]
[null,{"$f":"Auswertungsraster!C101","v":"gibt den Schülerinnen und Schülern ein individuelles Feedback zum Lernprozess und/oder Lernprodukt aufgrund von Beobachtungen und/oder formativen Beurteilungsformen."}]
[null,{"$f":"Auswertungsraster!C102","v":"gestaltet den Unterricht so, dass sich die Schülerinnen und Schüler gegenseitig konstruktive Rückmeldungen geben können (Peerfeedback)."}]
[null,{"$f":"Auswertungsraster!C103","v":"holt von den Schülerinnen und Schülern Feedback über das Lernen ein und nutzt dieses für die Weiterentwicklung des Unterrichts."}]
[{"$f":"Auswertungsraster!B105","v":"Reflexion"},null," +++"," ++"," +"," -"," --"," ---","?","Bemerkungen"]
[]
[null,{"$f":"Auswertungsraster!C107","v":"Indikatoren"},"ja","teils","nein","?",null,null,null,"Bemerkungen"]
[{"$f":"Auswertungsraster!B108","v":"Die Lehrperson"},{"$f":"Auswertungsraster!C108","v":"schafft Gelegenheiten, Sachzusammenhänge zu reflektieren."}]
[null,{"$f":"Auswertungsraster!C109","v":"regt mit differenzierten Fragestellungen zur Reflexion und Dokumentation des eigenen Lernens und Problemlösens an."}]
[null,{"$f":"Auswertungsraster!C110","v":"sorgt dafür, dass die Erkenntnisse der Reflexion für das Lernen genutzt werden."}]
[null,{"$f":"Auswertungsraster!C111","v":"vermittelt Schülerinnen und Schülern geeignete Lernstrategien."}]
["Bilanzierende Bewertung Unterricht",null," +++"," ++","+"," -"," --"," ---","?","Bemerkungen"]
[]
[{"$f":"A2","v":"Erfahrungswelt"},null,{"$f":"C3","v":0},0,0,0,0,0,0,0]
[{"$f":"A9","v":"Kompetenzaufbau"},null,{"$f":"C10","v":0},0,0,0,0,0,0,0]
[{"$f":"A20","v":"Instruktion und Konstruktion"},null,{"$f":"C21","v":0},0,0,0,0,0,0,0]
[{"$f":"A30","v":"Transparenz der Lern- und Leistungserwartungen"},null,{"$f":"C31","v":0},0,0,0,0,0,0,0]
[{"$f":"A39","v":"Differenzierung"},null,{"$f":"C40","v":0},0,0,0,0,0,0,0]
[{"$f":"A50","v":"Erfolgserlebnisse"},null,{"$f":"C51","v":0},0,0,0,0,0,0,0]
[{"$f":"A57","v":"Feedback"},null,{"$f":"C58","v":0},0,0,0,0,0,0,0]
[{"$f":"A64","v":"Reflexion"},null,{"$f":"C65","v":0},{"$f":"D65","v":0},0,0,0,0,0,0]

{"sheet":"LP 9","index":10,"n_rows":80,"n_cols":10,"rows_kept":80,"cut":false,"hidden":false,"merged":[[79,0,79,1],[49,0,50,1],[56,0,57,1],[63,0,64,1],[70,0,71,1],[72,0,72,1],[73,0,73,1],[74,0,74,1],[75,0,75,1],[76,0,76,1],[77,0,77,1],[78,0,78,1],[38,0,39,1],[0,0,0,1],[1,0,2,1],[8,0,9,1],[19,0,20,1],[29,0,30,1]]}
["LP 9"]
[{"$f":"Auswertungsraster!B36","v":"Erfahrungswelt"},null," +++"," ++"," +"," -"," --"," ---","?","Bemerkungen"]
[]
[null,{"$f":"Auswertungsraster!C38","v":"Indikatoren"},"ja","teils","nein","?",null,null,null,"Bemerkungen"]
[{"$f":"Auswertungsraster!B39","v":"Die Lehrperson"},{"$f":"Auswertungsraster!C39","v":"bindet gehaltvolle Aufgaben/Fragen/Problem-stellungen in den Unterricht ein, die für die Schülerinnen und Schüler bedeutsam sind."}]
[null,{"$f":"Auswertungsraster!C40","v":"regt mit Aufgabenstellungen oder präsentierten Kernideen an, zentrale Kenntnisse, Fertigkeiten, Zusammenhänge und Haltungen des Fachs zu entdecken."}]
[null,{"$f":"Auswertungsraster!C41","v":"schafft im Unterricht einen Bezug zur (ausserschulischen) Lebenswelt der Schülerinnen und Schüler."}]
[null,{"$f":"Auswertungsraster!C42","v":"kann die Schülerinnen und Schüler für die\nAufgaben/Fragen/Problemstellungen motivieren."}]
[{"$f":"Auswertungsraster!B44","v":"Kompetenzaufbau"},null," +++"," ++"," +"," -"," --"," ---","?","Bemerkungen"]
[]
[null,{"$f":"Auswertungsraster!C46","v":"Indikatoren"},"ja","teils","nein","?",null,null,null,"Bemerkungen"]
[{"$f":"Auswertungsraster!B47","v":"Die Lehrperson"},{"$f":"Auswertungsraster!C47","v":"knüpft im Unterricht an das Vorwissen der Schülerinnen und Schüler an."}]
[null,{"$f":"Auswertungsraster!C48","v":"schafft herausfordernde Problemstellungen, die Schülerinnen und Schüler zum Denken und Handeln anregen."}]
[null,{"$f":"Auswertungsraster!C49","v":"sorgt dafür, dass an fachlichen Inhalten personale, soziale und methodische Kompetenzen erworben werden (überfachliche Kompetenzen)."}]
[null,{"$f":"Auswertungsraster!C50","v":"klärt beim Aufbau von neuem Wissen Fragestellungen und Irritationen der Schülerinnen und Schüler."}]
[null,{"$f":"Auswertungsraster!C51","v":"sorgt für mehrfache und gezielte Übungsphasen mithilfe vielgestaltiger Übungsaufgaben."}]
[null,{"$f":"Auswertungsraster!C52","v":"schafft im Unterricht Gelegenheiten, erworbenes Wissen, bereits gelernte Prozeduren und Methoden auf neue Situationen anzuwenden (Anwendungs-/\nTransferaufgaben)."}]
[null,{"$f":"Auswertungsraster!C53","v":"verfügt über Instrumente, den Kompetenzaufbau der Schülerinnen und Schüler zu dokumentieren."}]
[null,{"$f":"Auswertungsraster!C54","v":"leitet die Schülerinnen und Schüler an, den eigenen Lernweg systematisch festzuhalten."}]
[{"$f":"Auswertungsraster!B56","v":"Instruktion und Konstruktion"},null," +++"," ++"," +"," -"," --"," ---","?","Bemerkungen"]
[]
[null,{"$f":"Auswertungsraster!C58","v":"Indikatoren"},"ja","teils","nein","?",null,null,null,"Bemerkungen"]
[{"$f":"Auswertungsraster!B59","v":"Die Lehrperson"},{"$f":"Auswertungsraster!C59","v":"setzt Phasen von Instruktion und Konstruktion zielführend ein."}]
[null,{"$f":"Auswertungsraster!C60","v":"sorgt dafür, dass sich Instruktion und Konstruktion aufeinander beziehen."}]
[null,{"$f":"Auswertungsraster!C61","v":"schafft Situationen, die den Lerndialog unter\nSchülerinnen und Schülern anregen und lassen Raum für das Lernen von und miteinander."}]
[null,{"$f":"Auswertungsraster!C62","v":"gibt den Schülerinnen und Schülern die Möglichkeit, Lern- und Verstehensprozesse individuell zu besprechen."}]
[null,{"$f":"Auswertungsraster!C63","v":"leitet die Schülerinnen und Schüler zu weiterführenden Überlegungen an."}]
[null,{"$f":"Auswertungsraster!C64","v":"unterstützt das Verstehen der Schülerinnen und Schüler."}]
[null,{"$f":"Auswertungsraster!C65","v":"nutzt Klassenarbeitsphasen zur Systematisierung und Zusammenfassung des erarbeiteten Wissens und Könnens."}]
[{"$f":"Auswertungsraster!B67","v":"Transparenz der Lern- und Leistungserwartungen"},null," +++"," ++"," +"," -"," --"," ---","?","Bemerkungen"]
[]
[null,{"$f":"Auswertungsraster!C69","v":"Indikatoren"},"ja","teils","nein","?",null,null,null,"Bemerkungen"]
[{"$f":"Auswertungsraster!B70","v":"Die Lehrperson"},{"$f":"Auswertungsraster!C70","v":"orientiert sich bei der Formulierung von Lernzielen an den Kompetenzbeschreibungen des Lehrplans."}]
[null,{"$f":"Auswertungsraster!C71","v":"definiert «smarte» Lernziele (stimmig, messbar, attraktiv, realistisch, terminiert)."}]
[null,{"$f":"Auswertungsraster!C72","v":"gibt den Schülerinnen und Schülern die Kompetenz-/Lernziele rechtzeitig, schriftlich und verständlich bekannt."}]
[null,{"$f":"Auswertungsraster!C73","v":"schafft während dem Lernprozess systematisch Bezüge sowohl zu den Kompetenzzielen als auch zu den Lernzielen einzelner Etappen."}]
[null,{"$f":"Auswertungsraster!C74","v":"formuliert gegenüber den einzelnen Schülerinnen und Schülern individuell angepasste Lernziele."}]
[null,{"$f":"Auswertungsraster!C75","v":"schafft Gelegenheiten, dass Schülerinnen und Schüler eigene Lernprozesse anhand gemeinsam entwickelter Indikatoren überprüfen können."}]
[{"$f":"Auswertungsraster!B77","v":"Differenzierung"},null," +++"," ++"," +"," -"," --"," ---","?","Bemerkungen"]
[]
[null,{"$f":"Auswertungsraster!C79","v":"Indikatoren"},"ja","teils","nein","?",null,null,null,"Bemerkungen"]
[{"$f":"Auswertungsraster!B80","v":"Die Lehrperson"},{"$f":"Auswertungsraster!C80","v":"gestaltet den Unterricht so, dass die Schülerinnen und Schüler weder unter- noch überfordert sind."}]
[null,{"$f":"Auswertungsraster!C81","v":"stellt ein vielfältiges Lernangebot bereit, das sich auf eine Analyse des Lernstands der Schülerinnen und Schüler stützt."}]
[null,{"$f":"Auswertungsraster!C82","v":"reagiert auf die unterschiedlichen Lernvoraussetzungen der Schülerinnen und Schüler mit gezielten Massnahmen (z.B. Methodendifferenzierung, Tempodifferenzierung und Differenzierung der Anschauungsmittel)."}]
[null,{"$f":"Auswertungsraster!C83","v":"gestaltet Lernumgebungen/Aufgaben so, dass auf unterschiedlichen Anforderungsniveaus gearbeitet werden kann (Niveaudifferenzierung)."}]
[null,{"$f":"Auswertungsraster!C84","v":"schafft Möglichkeiten für Schülerinnen und Schüler zur inhaltlichen Mitbestimmung (Inhaltsdifferenzierung)."}]
[null,{"$f":"Auswertungsraster!C85","v":"stellt bewusst enge, halboffene oder offene Aufgaben, je nach Stand im Lernprozess beziehungsweise in Bezug zum Kompetenzaufbau."}]
[null,{"$f":"Auswertungsraster!C86","v":"übergibt den Schülerinnen und Schülern aufgrund ihrer Voraussetzungen Eigenverantwortung für ihre Lernziele, Lernprozesse und Lernprodukte."}]
[null,{"$f":"Auswertungsraster!C87","v":"gibt den Schülerinnen und Schülern individuelle und situative Unterstützung aufgrund gezielter Beobachtungen."}]
[{"$f":"Auswertungsraster!B89","v":"Erfolgserlebnisse"},null," +++"," ++"," +"," -"," --"," ---","?","Bemerkungen"]
[]
[null,{"$f":"Auswertungsraster!C91","v":"Indikatoren"},"ja","teils","nein","?",null,null,null,"Bemerkungen"]
[{"$f":"Auswertungsraster!B92","v":"Die Lehrperson"},{"$f":"Auswertungsraster!C92","v":"gestaltet den Unterricht so, dass Schülerinnen und Schüler Erfolgserlebnisse erfahren."}]
[null,{"$f":"Auswertungsraster!C93","v":"macht Lernerfolge den Schülerinnen und Schülern gegenüber sichtbar."}]
[null,{"$f":"Auswertungsraster!C94","v":"schafft im Unterricht Gelegenheiten, in denen Schülerinnen und Schüler das Gelernte zeigen können."}]
[null,{"$f":"Auswertungsraster!C95","v":"sorgt für die Würdigung von Lernerfolgen der Schülerinnen und Schüler."}]
[{"$f":"Auswertungsraster!B97","v":"Feedback"},null," +++"," ++"," +"," -"," --"," ---","?","Bemerkungen"]
[]
[null,{"$f":"Auswertungsraster!C99","v":"Indikatoren"},"ja","teils","nein","?",null,null,null,"Bemerkungen"]
[{"$f":"Auswertungsraster!B100","v":"Die Lehrperson"},{"$f":"Auswertungsraster!C100","v":"formuliert wertschätzende, aufbauende sowie ziel- bzw. kriterienorientierte Rückmeldungen."}]
[null,{"$f":"Auswertungsraster!C101","v":"gibt den Schülerinnen und Schülern ein individuelles Feedback zum Lernprozess und/oder Lernprodukt aufgrund von Beobachtungen und/oder formativen Beurteilungsformen."}]
[null,{"$f":"Auswertungsraster!C102","v":"gestaltet den Unterricht so, dass sich die Schülerinnen und Schüler gegenseitig konstruktive Rückmeldungen geben können (Peerfeedback)."}]
[null,{"$f":"Auswertungsraster!C103","v":"holt von den Schülerinnen und Schülern Feedback über das Lernen ein und nutzt dieses für die Weiterentwicklung des Unterrichts."}]
[{"$f":"Auswertungsraster!B105","v":"Reflexion"},null," +++"," ++"," +"," -"," --"," ---","?","Bemerkungen"]
[]
[null,{"$f":"Auswertungsraster!C107","v":"Indikatoren"},"ja","teils","nein","?",null,null,null,"Bemerkungen"]
[{"$f":"Auswertungsraster!B108","v":"Die Lehrperson"},{"$f":"Auswertungsraster!C108","v":"schafft Gelegenheiten, Sachzusammenhänge zu reflektieren."}]
[null,{"$f":"Auswertungsraster!C109","v":"regt mit differenzierten Fragestellungen zur Reflexion und Dokumentation des eigenen Lernens und Problemlösens an."}]
[null,{"$f":"Auswertungsraster!C110","v":"sorgt dafür, dass die Erkenntnisse der Reflexion für das Lernen genutzt werden."}]
[null,{"$f":"Auswertungsraster!C111","v":"vermittelt Schülerinnen und Schülern geeignete Lernstrategien."}]
["Bilanzierende Bewertung Unterricht",null," +++"," ++","+"," -"," --"," ---","?","Bemerkungen"]
[]
[{"$f":"A2","v":"Erfahrungswelt"},null,{"$f":"C3","v":0},0,0,0,0,0,0,0]
[{"$f":"A9","v":"Kompetenzaufbau"},null,{"$f":"C10","v":0},0,0,0,0,0,0,0]
[{"$f":"A20","v":"Instruktion und Konstruktion"},null,{"$f":"C21","v":0},0,0,0,0,0,0,0]
[{"$f":"A30","v":"Transparenz der Lern- und Leistungserwartungen"},null,{"$f":"C31","v":0},0,0,0,0,0,0,0]
[{"$f":"A39","v":"Differenzierung"},null,{"$f":"C40","v":0},0,0,0,0,0,0,0]
[{"$f":"A50","v":"Erfolgserlebnisse"},null,{"$f":"C51","v":0},0,0,0,0,0,0,0]
[{"$f":"A57","v":"Feedback"},null,{"$f":"C58","v":0},0,0,0,0,0,0,0]
[{"$f":"A64","v":"Reflexion"},null,{"$f":"C65","v":0},{"$f":"D65","v":0},0,0,0,0,0,0]

{"sheet":"LP 10","index":11,"n_rows":80,"n_cols":10,"rows_kept":80,"cut":false,"hidden":false,"merged":[[79,0,79,1],[49,0,50,1],[56,0,57,1],[63,0,64,1],[70,0,71,1],[72,0,72,1],[73,0,73,1],[74,0,74,1],[75,0,75,1],[76,0,76,1],[77,0,77,1],[78,0,78,1],[38,0,39,1],[0,0,0,1],[1,0,2,1],[8,0,9,1],[19,0,20,1],[29,0,30,1]]}
["LP 10"]
[{"$f":"Auswertungsraster!B36","v":"Erfahrungswelt"},null," +++"," ++"," +"," -"," --"," ---","?","Bemerkungen"]
[]
[null,{"$f":"Auswertungsraster!C38","v":"Indikatoren"},"ja","teils","nein","?",null,null,null,"Bemerkungen"]
[{"$f":"Auswertungsraster!B39","v":"Die Lehrperson"},{"$f":"Auswertungsraster!C39","v":"bindet gehaltvolle Aufgaben/Fragen/Problem-stellungen in den Unterricht ein, die für die Schülerinnen und Schüler bedeutsam sind."}]
[null,{"$f":"Auswertungsraster!C40","v":"regt mit Aufgabenstellungen oder präsentierten Kernideen an, zentrale Kenntnisse, Fertigkeiten, Zusammenhänge und Haltungen des Fachs zu entdecken."}]
[null,{"$f":"Auswertungsraster!C41","v":"schafft im Unterricht einen Bezug zur (ausserschulischen) Lebenswelt der Schülerinnen und Schüler."}]
[null,{"$f":"Auswertungsraster!C42","v":"kann die Schülerinnen und Schüler für die\nAufgaben/Fragen/Problemstellungen motivieren."}]
[{"$f":"Auswertungsraster!B44","v":"Kompetenzaufbau"},null," +++"," ++"," +"," -"," --"," ---","?","Bemerkungen"]
[]
[null,{"$f":"Auswertungsraster!C46","v":"Indikatoren"},"ja","teils","nein","?",null,null,null,"Bemerkungen"]
[{"$f":"Auswertungsraster!B47","v":"Die Lehrperson"},{"$f":"Auswertungsraster!C47","v":"knüpft im Unterricht an das Vorwissen der Schülerinnen und Schüler an."}]
[null,{"$f":"Auswertungsraster!C48","v":"schafft herausfordernde Problemstellungen, die Schülerinnen und Schüler zum Denken und Handeln anregen."}]
[null,{"$f":"Auswertungsraster!C49","v":"sorgt dafür, dass an fachlichen Inhalten personale, soziale und methodische Kompetenzen erworben werden (überfachliche Kompetenzen)."}]
[null,{"$f":"Auswertungsraster!C50","v":"klärt beim Aufbau von neuem Wissen Fragestellungen und Irritationen der Schülerinnen und Schüler."}]
[null,{"$f":"Auswertungsraster!C51","v":"sorgt für mehrfache und gezielte Übungsphasen mithilfe vielgestaltiger Übungsaufgaben."}]
[null,{"$f":"Auswertungsraster!C52","v":"schafft im Unterricht Gelegenheiten, erworbenes Wissen, bereits gelernte Prozeduren und Methoden auf neue Situationen anzuwenden (Anwendungs-/\nTransferaufgaben)."}]
[null,{"$f":"Auswertungsraster!C53","v":"verfügt über Instrumente, den Kompetenzaufbau der Schülerinnen und Schüler zu dokumentieren."}]
[null,{"$f":"Auswertungsraster!C54","v":"leitet die Schülerinnen und Schüler an, den eigenen Lernweg systematisch festzuhalten."}]
[{"$f":"Auswertungsraster!B56","v":"Instruktion und Konstruktion"},null," +++"," ++"," +"," -"," --"," ---","?","Bemerkungen"]
[]
[null,{"$f":"Auswertungsraster!C58","v":"Indikatoren"},"ja","teils","nein","?",null,null,null,"Bemerkungen"]
[{"$f":"Auswertungsraster!B59","v":"Die Lehrperson"},{"$f":"Auswertungsraster!C59","v":"setzt Phasen von Instruktion und Konstruktion zielführend ein."}]
[null,{"$f":"Auswertungsraster!C60","v":"sorgt dafür, dass sich Instruktion und Konstruktion aufeinander beziehen."}]
[null,{"$f":"Auswertungsraster!C61","v":"schafft Situationen, die den Lerndialog unter\nSchülerinnen und Schülern anregen und lassen Raum für das Lernen von und miteinander."}]
[null,{"$f":"Auswertungsraster!C62","v":"gibt den Schülerinnen und Schülern die Möglichkeit, Lern- und Verstehensprozesse individuell zu besprechen."}]
[null,{"$f":"Auswertungsraster!C63","v":"leitet die Schülerinnen und Schüler zu weiterführenden Überlegungen an."}]
[null,{"$f":"Auswertungsraster!C64","v":"unterstützt das Verstehen der Schülerinnen und Schüler."}]
[null,{"$f":"Auswertungsraster!C65","v":"nutzt Klassenarbeitsphasen zur Systematisierung und Zusammenfassung des erarbeiteten Wissens und Könnens."}]
[{"$f":"Auswertungsraster!B67","v":"Transparenz der Lern- und Leistungserwartungen"},null," +++"," ++"," +"," -"," --"," ---","?","Bemerkungen"]
[]
[null,{"$f":"Auswertungsraster!C69","v":"Indikatoren"},"ja","teils","nein","?",null,null,null,"Bemerkungen"]
[{"$f":"Auswertungsraster!B70","v":"Die Lehrperson"},{"$f":"Auswertungsraster!C70","v":"orientiert sich bei der Formulierung von Lernzielen an den Kompetenzbeschreibungen des Lehrplans."}]
[null,{"$f":"Auswertungsraster!C71","v":"definiert «smarte» Lernziele (stimmig, messbar, attraktiv, realistisch, terminiert)."}]
[null,{"$f":"Auswertungsraster!C72","v":"gibt den Schülerinnen und Schülern die Kompetenz-/Lernziele rechtzeitig, schriftlich und verständlich bekannt."}]
[null,{"$f":"Auswertungsraster!C73","v":"schafft während dem Lernprozess systematisch Bezüge sowohl zu den Kompetenzzielen als auch zu den Lernzielen einzelner Etappen."}]
[null,{"$f":"Auswertungsraster!C74","v":"formuliert gegenüber den einzelnen Schülerinnen und Schülern individuell angepasste Lernziele."}]
[null,{"$f":"Auswertungsraster!C75","v":"schafft Gelegenheiten, dass Schülerinnen und Schüler eigene Lernprozesse anhand gemeinsam entwickelter Indikatoren überprüfen können."}]
[{"$f":"Auswertungsraster!B77","v":"Differenzierung"},null," +++"," ++"," +"," -"," --"," ---","?","Bemerkungen"]
[]
[null,{"$f":"Auswertungsraster!C79","v":"Indikatoren"},"ja","teils","nein","?",null,null,null,"Bemerkungen"]
[{"$f":"Auswertungsraster!B80","v":"Die Lehrperson"},{"$f":"Auswertungsraster!C80","v":"gestaltet den Unterricht so, dass die Schülerinnen und Schüler weder unter- noch überfordert sind."}]
[null,{"$f":"Auswertungsraster!C81","v":"stellt ein vielfältiges Lernangebot bereit, das sich auf eine Analyse des Lernstands der Schülerinnen und Schüler stützt."}]
[null,{"$f":"Auswertungsraster!C82","v":"reagiert auf die unterschiedlichen Lernvoraussetzungen der Schülerinnen und Schüler mit gezielten Massnahmen (z.B. Methodendifferenzierung, Tempodifferenzierung und Differenzierung der Anschauungsmittel)."}]
[null,{"$f":"Auswertungsraster!C83","v":"gestaltet Lernumgebungen/Aufgaben so, dass auf unterschiedlichen Anforderungsniveaus gearbeitet werden kann (Niveaudifferenzierung)."}]
[null,{"$f":"Auswertungsraster!C84","v":"schafft Möglichkeiten für Schülerinnen und Schüler zur inhaltlichen Mitbestimmung (Inhaltsdifferenzierung)."}]
[null,{"$f":"Auswertungsraster!C85","v":"stellt bewusst enge, halboffene oder offene Aufgaben, je nach Stand im Lernprozess beziehungsweise in Bezug zum Kompetenzaufbau."}]
[null,{"$f":"Auswertungsraster!C86","v":"übergibt den Schülerinnen und Schülern aufgrund ihrer Voraussetzungen Eigenverantwortung für ihre Lernziele, Lernprozesse und Lernprodukte."}]
[null,{"$f":"Auswertungsraster!C87","v":"gibt den Schülerinnen und Schülern individuelle und situative Unterstützung aufgrund gezielter Beobachtungen."}]
[{"$f":"Auswertungsraster!B89","v":"Erfolgserlebnisse"},null," +++"," ++"," +"," -"," --"," ---","?","Bemerkungen"]
[]
[null,{"$f":"Auswertungsraster!C91","v":"Indikatoren"},"ja","teils","nein","?",null,null,null,"Bemerkungen"]
[{"$f":"Auswertungsraster!B92","v":"Die Lehrperson"},{"$f":"Auswertungsraster!C92","v":"gestaltet den Unterricht so, dass Schülerinnen und Schüler Erfolgserlebnisse erfahren."}]
[null,{"$f":"Auswertungsraster!C93","v":"macht Lernerfolge den Schülerinnen und Schülern gegenüber sichtbar."}]
[null,{"$f":"Auswertungsraster!C94","v":"schafft im Unterricht Gelegenheiten, in denen Schülerinnen und Schüler das Gelernte zeigen können."}]
[null,{"$f":"Auswertungsraster!C95","v":"sorgt für die Würdigung von Lernerfolgen der Schülerinnen und Schüler."}]
[{"$f":"Auswertungsraster!B97","v":"Feedback"},null," +++"," ++"," +"," -"," --"," ---","?","Bemerkungen"]
[]
[null,{"$f":"Auswertungsraster!C99","v":"Indikatoren"},"ja","teils","nein","?",null,null,null,"Bemerkungen"]
[{"$f":"Auswertungsraster!B100","v":"Die Lehrperson"},{"$f":"Auswertungsraster!C100","v":"formuliert wertschätzende, aufbauende sowie ziel- bzw. kriterienorientierte Rückmeldungen."}]
[null,{"$f":"Auswertungsraster!C101","v":"gibt den Schülerinnen und Schülern ein individuelles Feedback zum Lernprozess und/oder Lernprodukt aufgrund von Beobachtungen und/oder formativen Beurteilungsformen."}]
[null,{"$f":"Auswertungsraster!C102","v":"gestaltet den Unterricht so, dass sich die Schülerinnen und Schüler gegenseitig konstruktive Rückmeldungen geben können (Peerfeedback)."}]
[null,{"$f":"Auswertungsraster!C103","v":"holt von den Schülerinnen und Schülern Feedback über das Lernen ein und nutzt dieses für die Weiterentwicklung des Unterrichts."}]
[{"$f":"Auswertungsraster!B105","v":"Reflexion"},null," +++"," ++"," +"," -"," --"," ---","?","Bemerkungen"]
[]
[null,{"$f":"Auswertungsraster!C107","v":"Indikatoren"},"ja","teils","nein","?",null,null,null,"Bemerkungen"]
[{"$f":"Auswertungsraster!B108","v":"Die Lehrperson"},{"$f":"Auswertungsraster!C108","v":"schafft Gelegenheiten, Sachzusammenhänge zu reflektieren."}]
[null,{"$f":"Auswertungsraster!C109","v":"regt mit differenzierten Fragestellungen zur Reflexion und Dokumentation des eigenen Lernens und Problemlösens an."}]
[null,{"$f":"Auswertungsraster!C110","v":"sorgt dafür, dass die Erkenntnisse der Reflexion für das Lernen genutzt werden."}]
[null,{"$f":"Auswertungsraster!C111","v":"vermittelt Schülerinnen und Schülern geeignete Lernstrategien."}]
["Bilanzierende Bewertung Unterricht",null," +++"," ++","+"," -"," --"," ---","?","Bemerkungen"]
[]
[{"$f":"A2","v":"Erfahrungswelt"},null,{"$f":"C3","v":0},0,0,0,0,0,0,0]
[{"$f":"A9","v":"Kompetenzaufbau"},null,{"$f":"C10","v":0},0,0,0,0,0,0,0]
[{"$f":"A20","v":"Instruktion und Konstruktion"},null,{"$f":"C21","v":0},0,0,0,0,0,0,0]
[{"$f":"A30","v":"Transparenz der Lern- und Leistungserwartungen"},null,{"$f":"C31","v":0},0,0,0,0,0,0,0]
[{"$f":"A39","v":"Differenzierung"},null,{"$f":"C40","v":0},0,0,0,0,0,0,0]
[{"$f":"A50","v":"Erfolgserlebnisse"},null,{"$f":"C51","v":0},0,0,0,0,0,0,0]
[{"$f":"A57","v":"Feedback"},null,{"$f":"C58","v":0},0,0,0,0,0,0,0]
[{"$f":"A64","v":"Reflexion"},null,{"$f":"C65","v":0},{"$f":"D65","v":0},0,0,0,0,0,0]

{"sheet":"LP 11","index":12,"n_rows":80,"n_cols":10,"rows_kept":80,"cut":false,"hidden":false,"merged":[[79,0,79,1],[49,0,50,1],[56,0,57,1],[63,0,64,1],[70,0,71,1],[72,0,72,1],[73,0,73,1],[74,0,74,1],[75,0,75,1],[76,0,76,1],[77,0,77,1],[78,0,78,1],[38,0,39,1],[0,0,0,1],[1,0,2,1],[8,0,9,1],[19,0,20,1],[29,0,30,1]]}
["LP 11"]
[{"$f":"Auswertungsraster!B36","v":"Erfahrungswelt"},null," +++"," ++"," +"," -"," --"," ---","?","Bemerkungen"]
[]
[null,{"$f":"Auswertungsraster!C38","v":"Indikatoren"},"ja","teils","nein","?",null,null,null,"Bemerkungen"]
[{"$f":"Auswertungsraster!B39","v":"Die Lehrperson"},{"$f":"Auswertungsraster!C39","v":"bindet gehaltvolle Aufgaben/Fragen/Problem-stellungen in den Unterricht ein, die für die Schülerinnen und Schüler bedeutsam sind."}]
[null,{"$f":"Auswertungsraster!C40","v":"regt mit Aufgabenstellungen oder präsentierten Kernideen an, zentrale Kenntnisse, Fertigkeiten, Zusammenhänge und Haltungen des Fachs zu entdecken."}]
[null,{"$f":"Auswertungsraster!C41","v":"schafft im Unterricht einen Bezug zur (ausserschulischen) Lebenswelt der Schülerinnen und Schüler."}]
[null,{"$f":"Auswertungsraster!C42","v":"kann die Schülerinnen und Schüler für die\nAufgaben/Fragen/Problemstellungen motivieren."}]
[{"$f":"Auswertungsraster!B44","v":"Kompetenzaufbau"},null," +++"," ++"," +"," -"," --"," ---","?","Bemerkungen"]
[]
[null,{"$f":"Auswertungsraster!C46","v":"Indikatoren"},"ja","teils","nein","?",null,null,null,"Bemerkungen"]
[{"$f":"Auswertungsraster!B47","v":"Die Lehrperson"},{"$f":"Auswertungsraster!C47","v":"knüpft im Unterricht an das Vorwissen der Schülerinnen und Schüler an."}]
[null,{"$f":"Auswertungsraster!C48","v":"schafft herausfordernde Problemstellungen, die Schülerinnen und Schüler zum Denken und Handeln anregen."}]
[null,{"$f":"Auswertungsraster!C49","v":"sorgt dafür, dass an fachlichen Inhalten personale, soziale und methodische Kompetenzen erworben werden (überfachliche Kompetenzen)."}]
[null,{"$f":"Auswertungsraster!C50","v":"klärt beim Aufbau von neuem Wissen Fragestellungen und Irritationen der Schülerinnen und Schüler."}]
[null,{"$f":"Auswertungsraster!C51","v":"sorgt für mehrfache und gezielte Übungsphasen mithilfe vielgestaltiger Übungsaufgaben."}]
[null,{"$f":"Auswertungsraster!C52","v":"schafft im Unterricht Gelegenheiten, erworbenes Wissen, bereits gelernte Prozeduren und Methoden auf neue Situationen anzuwenden (Anwendungs-/\nTransferaufgaben)."}]
[null,{"$f":"Auswertungsraster!C53","v":"verfügt über Instrumente, den Kompetenzaufbau der Schülerinnen und Schüler zu dokumentieren."}]
[null,{"$f":"Auswertungsraster!C54","v":"leitet die Schülerinnen und Schüler an, den eigenen Lernweg systematisch festzuhalten."}]
[{"$f":"Auswertungsraster!B56","v":"Instruktion und Konstruktion"},null," +++"," ++"," +"," -"," --"," ---","?","Bemerkungen"]
[]
[null,{"$f":"Auswertungsraster!C58","v":"Indikatoren"},"ja","teils","nein","?",null,null,null,"Bemerkungen"]
[{"$f":"Auswertungsraster!B59","v":"Die Lehrperson"},{"$f":"Auswertungsraster!C59","v":"setzt Phasen von Instruktion und Konstruktion zielführend ein."}]
[null,{"$f":"Auswertungsraster!C60","v":"sorgt dafür, dass sich Instruktion und Konstruktion aufeinander beziehen."}]
[null,{"$f":"Auswertungsraster!C61","v":"schafft Situationen, die den Lerndialog unter\nSchülerinnen und Schülern anregen und lassen Raum für das Lernen von und miteinander."}]
[null,{"$f":"Auswertungsraster!C62","v":"gibt den Schülerinnen und Schülern die Möglichkeit, Lern- und Verstehensprozesse individuell zu besprechen."}]
[null,{"$f":"Auswertungsraster!C63","v":"leitet die Schülerinnen und Schüler zu weiterführenden Überlegungen an."}]
[null,{"$f":"Auswertungsraster!C64","v":"unterstützt das Verstehen der Schülerinnen und Schüler."}]
[null,{"$f":"Auswertungsraster!C65","v":"nutzt Klassenarbeitsphasen zur Systematisierung und Zusammenfassung des erarbeiteten Wissens und Könnens."}]
[{"$f":"Auswertungsraster!B67","v":"Transparenz der Lern- und Leistungserwartungen"},null," +++"," ++"," +"," -"," --"," ---","?","Bemerkungen"]
[]
[null,{"$f":"Auswertungsraster!C69","v":"Indikatoren"},"ja","teils","nein","?",null,null,null,"Bemerkungen"]
[{"$f":"Auswertungsraster!B70","v":"Die Lehrperson"},{"$f":"Auswertungsraster!C70","v":"orientiert sich bei der Formulierung von Lernzielen an den Kompetenzbeschreibungen des Lehrplans."}]
[null,{"$f":"Auswertungsraster!C71","v":"definiert «smarte» Lernziele (stimmig, messbar, attraktiv, realistisch, terminiert)."}]
[null,{"$f":"Auswertungsraster!C72","v":"gibt den Schülerinnen und Schülern die Kompetenz-/Lernziele rechtzeitig, schriftlich und verständlich bekannt."}]
[null,{"$f":"Auswertungsraster!C73","v":"schafft während dem Lernprozess systematisch Bezüge sowohl zu den Kompetenzzielen als auch zu den Lernzielen einzelner Etappen."}]
[null,{"$f":"Auswertungsraster!C74","v":"formuliert gegenüber den einzelnen Schülerinnen und Schülern individuell angepasste Lernziele."}]
[null,{"$f":"Auswertungsraster!C75","v":"schafft Gelegenheiten, dass Schülerinnen und Schüler eigene Lernprozesse anhand gemeinsam entwickelter Indikatoren überprüfen können."}]
[{"$f":"Auswertungsraster!B77","v":"Differenzierung"},null," +++"," ++"," +"," -"," --"," ---","?","Bemerkungen"]
[]
[null,{"$f":"Auswertungsraster!C79","v":"Indikatoren"},"ja","teils","nein","?",null,null,null,"Bemerkungen"]
[{"$f":"Auswertungsraster!B80","v":"Die Lehrperson"},{"$f":"Auswertungsraster!C80","v":"gestaltet den Unterricht so, dass die Schülerinnen und Schüler weder unter- noch überfordert sind."}]
[null,{"$f":"Auswertungsraster!C81","v":"stellt ein vielfältiges Lernangebot bereit, das sich auf eine Analyse des Lernstands der Schülerinnen und Schüler stützt."}]
[null,{"$f":"Auswertungsraster!C82","v":"reagiert auf die unterschiedlichen Lernvoraussetzungen der Schülerinnen und Schüler mit gezielten Massnahmen (z.B. Methodendifferenzierung, Tempodifferenzierung und Differenzierung der Anschauungsmittel)."}]
[null,{"$f":"Auswertungsraster!C83","v":"gestaltet Lernumgebungen/Aufgaben so, dass auf unterschiedlichen Anforderungsniveaus gearbeitet werden kann (Niveaudifferenzierung)."}]
[null,{"$f":"Auswertungsraster!C84","v":"schafft Möglichkeiten für Schülerinnen und Schüler zur inhaltlichen Mitbestimmung (Inhaltsdifferenzierung)."}]
[null,{"$f":"Auswertungsraster!C85","v":"stellt bewusst enge, halboffene oder offene Aufgaben, je nach Stand im Lernprozess beziehungsweise in Bezug zum Kompetenzaufbau."}]
[null,{"$f":"Auswertungsraster!C86","v":"übergibt den Schülerinnen und Schülern aufgrund ihrer Voraussetzungen Eigenverantwortung für ihre Lernziele, Lernprozesse und Lernprodukte."}]
[null,{"$f":"Auswertungsraster!C87","v":"gibt den Schülerinnen und Schülern individuelle und situative Unterstützung aufgrund gezielter Beobachtungen."}]
[{"$f":"Auswertungsraster!B89","v":"Erfolgserlebnisse"},null," +++"," ++"," +"," -"," --"," ---","?","Bemerkungen"]
[]
[null,{"$f":"Auswertungsraster!C91","v":"Indikatoren"},"ja","teils","nein","?",null,null,null,"Bemerkungen"]
[{"$f":"Auswertungsraster!B92","v":"Die Lehrperson"},{"$f":"Auswertungsraster!C92","v":"gestaltet den Unterricht so, dass Schülerinnen und Schüler Erfolgserlebnisse erfahren."}]
[null,{"$f":"Auswertungsraster!C93","v":"macht Lernerfolge den Schülerinnen und Schülern gegenüber sichtbar."}]
[null,{"$f":"Auswertungsraster!C94","v":"schafft im Unterricht Gelegenheiten, in denen Schülerinnen und Schüler das Gelernte zeigen können."}]
[null,{"$f":"Auswertungsraster!C95","v":"sorgt für die Würdigung von Lernerfolgen der Schülerinnen und Schüler."}]
[{"$f":"Auswertungsraster!B97","v":"Feedback"},null," +++"," ++"," +"," -"," --"," ---","?","Bemerkungen"]
[]
[null,{"$f":"Auswertungsraster!C99","v":"Indikatoren"},"ja","teils","nein","?",null,null,null,"Bemerkungen"]
[{"$f":"Auswertungsraster!B100","v":"Die Lehrperson"},{"$f":"Auswertungsraster!C100","v":"formuliert wertschätzende, aufbauende sowie ziel- bzw. kriterienorientierte Rückmeldungen."}]
[null,{"$f":"Auswertungsraster!C101","v":"gibt den Schülerinnen und Schülern ein individuelles Feedback zum Lernprozess und/oder Lernprodukt aufgrund von Beobachtungen und/oder formativen Beurteilungsformen."}]
[null,{"$f":"Auswertungsraster!C102","v":"gestaltet den Unterricht so, dass sich die Schülerinnen und Schüler gegenseitig konstruktive Rückmeldungen geben können (Peerfeedback)."}]
[null,{"$f":"Auswertungsraster!C103","v":"holt von den Schülerinnen und Schülern Feedback über das Lernen ein und nutzt dieses für die Weiterentwicklung des Unterrichts."}]
[{"$f":"Auswertungsraster!B105","v":"Reflexion"},null," +++"," ++"," +"," -"," --"," ---","?","Bemerkungen"]
[]
[null,{"$f":"Auswertungsraster!C107","v":"Indikatoren"},"ja","teils","nein","?",null,null,null,"Bemerkungen"]
[{"$f":"Auswertungsraster!B108","v":"Die Lehrperson"},{"$f":"Auswertungsraster!C108","v":"schafft Gelegenheiten, Sachzusammenhänge zu reflektieren."}]
[null,{"$f":"Auswertungsraster!C109","v":"regt mit differenzierten Fragestellungen zur Reflexion und Dokumentation des eigenen Lernens und Problemlösens an."}]
[null,{"$f":"Auswertungsraster!C110","v":"sorgt dafür, dass die Erkenntnisse der Reflexion für das Lernen genutzt werden."}]
[null,{"$f":"Auswertungsraster!C111","v":"vermittelt Schülerinnen und Schülern geeignete Lernstrategien."}]
["Bilanzierende Bewertung Unterricht",null," +++"," ++","+"," -"," --"," ---","?","Bemerkungen"]
[]
[{"$f":"A2","v":"Erfahrungswelt"},null,{"$f":"C3","v":0},0,0,0,0,0,0,0]
[{"$f":"A9","v":"Kompetenzaufbau"},null,{"$f":"C10","v":0},0,0,0,0,0,0,0]
[{"$f":"A20","v":"Instruktion und Konstruktion"},null,{"$f":"C21","v":0},0,0,0,0,0,0,0]
[{"$f":"A30","v":"Transparenz der Lern- und Leistungserwartungen"},null,{"$f":"C31","v":0},0,0,0,0,0,0,0]
[{"$f":"A39","v":"Differenzierung"},null,{"$f":"C40","v":0},0,0,0,0,0,0,0]
[{"$f":"A50","v":"Erfolgserlebnisse"},null,{"$f":"C51","v":0},0,0,0,0,0,0,0]
[{"$f":"A57","v":"Feedback"},null,{"$f":"C58","v":0},0,0,0,0,0,0,0]
[{"$f":"A64","v":"Reflexion"},null,{"$f":"C65","v":0},{"$f":"D65","v":0},0,0,0,0,0,0]

{"sheet":"LP 12","index":13,"n_rows":80,"n_cols":10,"rows_kept":80,"cut":false,"hidden":false,"merged":[[38,0,39,1],[0,0,0,1],[1,0,2,1],[8,0,9,1],[19,0,20,1],[29,0,30,1],[79,0,79,1],[49,0,50,1],[56,0,57,1],[63,0,64,1],[70,0,71,1],[72,0,72,1],[73,0,73,1],[74,0,74,1],[75,0,75,1],[76,0,76,1],[77,0,77,1],[78,0,78,1]]}
["LP 12"]
[{"$f":"Auswertungsraster!B36","v":"Erfahrungswelt"},null," +++"," ++"," +"," -"," --"," ---","?","Bemerkungen"]
[]
[null,{"$f":"Auswertungsraster!C38","v":"Indikatoren"},"ja","teils","nein","?",null,null,null,"Bemerkungen"]
[{"$f":"Auswertungsraster!B39","v":"Die Lehrperson"},{"$f":"Auswertungsraster!C39","v":"bindet gehaltvolle Aufgaben/Fragen/Problem-stellungen in den Unterricht ein, die für die Schülerinnen und Schüler bedeutsam sind."}]
[null,{"$f":"Auswertungsraster!C40","v":"regt mit Aufgabenstellungen oder präsentierten Kernideen an, zentrale Kenntnisse, Fertigkeiten, Zusammenhänge und Haltungen des Fachs zu entdecken."}]
[null,{"$f":"Auswertungsraster!C41","v":"schafft im Unterricht einen Bezug zur (ausserschulischen) Lebenswelt der Schülerinnen und Schüler."}]
[null,{"$f":"Auswertungsraster!C42","v":"kann die Schülerinnen und Schüler für die\nAufgaben/Fragen/Problemstellungen motivieren."}]
[{"$f":"Auswertungsraster!B44","v":"Kompetenzaufbau"},null," +++"," ++"," +"," -"," --"," ---","?","Bemerkungen"]
[]
[null,{"$f":"Auswertungsraster!C46","v":"Indikatoren"},"ja","teils","nein","?",null,null,null,"Bemerkungen"]
[{"$f":"Auswertungsraster!B47","v":"Die Lehrperson"},{"$f":"Auswertungsraster!C47","v":"knüpft im Unterricht an das Vorwissen der Schülerinnen und Schüler an."}]
[null,{"$f":"Auswertungsraster!C48","v":"schafft herausfordernde Problemstellungen, die Schülerinnen und Schüler zum Denken und Handeln anregen."}]
[null,{"$f":"Auswertungsraster!C49","v":"sorgt dafür, dass an fachlichen Inhalten personale, soziale und methodische Kompetenzen erworben werden (überfachliche Kompetenzen)."}]
[null,{"$f":"Auswertungsraster!C50","v":"klärt beim Aufbau von neuem Wissen Fragestellungen und Irritationen der Schülerinnen und Schüler."}]
[null,{"$f":"Auswertungsraster!C51","v":"sorgt für mehrfache und gezielte Übungsphasen mithilfe vielgestaltiger Übungsaufgaben."}]
[null,{"$f":"Auswertungsraster!C52","v":"schafft im Unterricht Gelegenheiten, erworbenes Wissen, bereits gelernte Prozeduren und Methoden auf neue Situationen anzuwenden (Anwendungs-/\nTransferaufgaben)."}]
[null,{"$f":"Auswertungsraster!C53","v":"verfügt über Instrumente, den Kompetenzaufbau der Schülerinnen und Schüler zu dokumentieren."}]
[null,{"$f":"Auswertungsraster!C54","v":"leitet die Schülerinnen und Schüler an, den eigenen Lernweg systematisch festzuhalten."}]
[{"$f":"Auswertungsraster!B56","v":"Instruktion und Konstruktion"},null," +++"," ++"," +"," -"," --"," ---","?","Bemerkungen"]
[]
[null,{"$f":"Auswertungsraster!C58","v":"Indikatoren"},"ja","teils","nein","?",null,null,null,"Bemerkungen"]
[{"$f":"Auswertungsraster!B59","v":"Die Lehrperson"},{"$f":"Auswertungsraster!C59","v":"setzt Phasen von Instruktion und Konstruktion zielführend ein."}]
[null,{"$f":"Auswertungsraster!C60","v":"sorgt dafür, dass sich Instruktion und Konstruktion aufeinander beziehen."}]
[null,{"$f":"Auswertungsraster!C61","v":"schafft Situationen, die den Lerndialog unter\nSchülerinnen und Schülern anregen und lassen Raum für das Lernen von und miteinander."}]
[null,{"$f":"Auswertungsraster!C62","v":"gibt den Schülerinnen und Schülern die Möglichkeit, Lern- und Verstehensprozesse individuell zu besprechen."}]
[null,{"$f":"Auswertungsraster!C63","v":"leitet die Schülerinnen und Schüler zu weiterführenden Überlegungen an."}]
[null,{"$f":"Auswertungsraster!C64","v":"unterstützt das Verstehen der Schülerinnen und Schüler."}]
[null,{"$f":"Auswertungsraster!C65","v":"nutzt Klassenarbeitsphasen zur Systematisierung und Zusammenfassung des erarbeiteten Wissens und Könnens."}]
[{"$f":"Auswertungsraster!B67","v":"Transparenz der Lern- und Leistungserwartungen"},null," +++"," ++"," +"," -"," --"," ---","?","Bemerkungen"]
[]
[null,{"$f":"Auswertungsraster!C69","v":"Indikatoren"},"ja","teils","nein","?",null,null,null,"Bemerkungen"]
[{"$f":"Auswertungsraster!B70","v":"Die Lehrperson"},{"$f":"Auswertungsraster!C70","v":"orientiert sich bei der Formulierung von Lernzielen an den Kompetenzbeschreibungen des Lehrplans."}]
[null,{"$f":"Auswertungsraster!C71","v":"definiert «smarte» Lernziele (stimmig, messbar, attraktiv, realistisch, terminiert)."}]
[null,{"$f":"Auswertungsraster!C72","v":"gibt den Schülerinnen und Schülern die Kompetenz-/Lernziele rechtzeitig, schriftlich und verständlich bekannt."}]
[null,{"$f":"Auswertungsraster!C73","v":"schafft während dem Lernprozess systematisch Bezüge sowohl zu den Kompetenzzielen als auch zu den Lernzielen einzelner Etappen."}]
[null,{"$f":"Auswertungsraster!C74","v":"formuliert gegenüber den einzelnen Schülerinnen und Schülern individuell angepasste Lernziele."}]
[null,{"$f":"Auswertungsraster!C75","v":"schafft Gelegenheiten, dass Schülerinnen und Schüler eigene Lernprozesse anhand gemeinsam entwickelter Indikatoren überprüfen können."}]
[{"$f":"Auswertungsraster!B77","v":"Differenzierung"},null," +++"," ++"," +"," -"," --"," ---","?","Bemerkungen"]
[]
[null,{"$f":"Auswertungsraster!C79","v":"Indikatoren"},"ja","teils","nein","?",null,null,null,"Bemerkungen"]
[{"$f":"Auswertungsraster!B80","v":"Die Lehrperson"},{"$f":"Auswertungsraster!C80","v":"gestaltet den Unterricht so, dass die Schülerinnen und Schüler weder unter- noch überfordert sind."}]
[null,{"$f":"Auswertungsraster!C81","v":"stellt ein vielfältiges Lernangebot bereit, das sich auf eine Analyse des Lernstands der Schülerinnen und Schüler stützt."}]
[null,{"$f":"Auswertungsraster!C82","v":"reagiert auf die unterschiedlichen Lernvoraussetzungen der Schülerinnen und Schüler mit gezielten Massnahmen (z.B. Methodendifferenzierung, Tempodifferenzierung und Differenzierung der Anschauungsmittel)."}]
[null,{"$f":"Auswertungsraster!C83","v":"gestaltet Lernumgebungen/Aufgaben so, dass auf unterschiedlichen Anforderungsniveaus gearbeitet werden kann (Niveaudifferenzierung)."}]
[null,{"$f":"Auswertungsraster!C84","v":"schafft Möglichkeiten für Schülerinnen und Schüler zur inhaltlichen Mitbestimmung (Inhaltsdifferenzierung)."}]
[null,{"$f":"Auswertungsraster!C85","v":"stellt bewusst enge, halboffene oder offene Aufgaben, je nach Stand im Lernprozess beziehungsweise in Bezug zum Kompetenzaufbau."}]
[null,{"$f":"Auswertungsraster!C86","v":"übergibt den Schülerinnen und Schülern aufgrund ihrer Voraussetzungen Eigenverantwortung für ihre Lernziele, Lernprozesse und Lernprodukte."}]
[null,{"$f":"Auswertungsraster!C87","v":"gibt den Schülerinnen und Schülern individuelle und situative Unterstützung aufgrund gezielter Beobachtungen."}]
[{"$f":"Auswertungsraster!B89","v":"Erfolgserlebnisse"},null," +++"," ++"," +"," -"," --"," ---","?","Bemerkungen"]
[]
[null,{"$f":"Auswertungsraster!C91","v":"Indikatoren"},"ja","teils","nein","?",null,null,null,"Bemerkungen"]
[{"$f":"Auswertungsraster!B92","v":"Die Lehrperson"},{"$f":"Auswertungsraster!C92","v":"gestaltet den Unterricht so, dass Schülerinnen und Schüler Erfolgserlebnisse erfahren."}]
[null,{"$f":"Auswertungsraster!C93","v":"macht Lernerfolge den Schülerinnen und Schülern gegenüber sichtbar."}]
[null,{"$f":"Auswertungsraster!C94","v":"schafft im Unterricht Gelegenheiten, in denen Schülerinnen und Schüler das Gelernte zeigen können."}]
[null,{"$f":"Auswertungsraster!C95","v":"sorgt für die Würdigung von Lernerfolgen der Schülerinnen und Schüler."}]
[{"$f":"Auswertungsraster!B97","v":"Feedback"},null," +++"," ++"," +"," -"," --"," ---","?","Bemerkungen"]
[]
[null,{"$f":"Auswertungsraster!C99","v":"Indikatoren"},"ja","teils","nein","?",null,null,null,"Bemerkungen"]
[{"$f":"Auswertungsraster!B100","v":"Die Lehrperson"},{"$f":"Auswertungsraster!C100","v":"formuliert wertschätzende, aufbauende sowie ziel- bzw. kriterienorientierte Rückmeldungen."}]
[null,{"$f":"Auswertungsraster!C101","v":"gibt den Schülerinnen und Schülern ein individuelles Feedback zum Lernprozess und/oder Lernprodukt aufgrund von Beobachtungen und/oder formativen Beurteilungsformen."}]
[null,{"$f":"Auswertungsraster!C102","v":"gestaltet den Unterricht so, dass sich die Schülerinnen und Schüler gegenseitig konstruktive Rückmeldungen geben können (Peerfeedback)."}]
[null,{"$f":"Auswertungsraster!C103","v":"holt von den Schülerinnen und Schülern Feedback über das Lernen ein und nutzt dieses für die Weiterentwicklung des Unterrichts."}]
[{"$f":"Auswertungsraster!B105","v":"Reflexion"},null," +++"," ++"," +"," -"," --"," ---","?","Bemerkungen"]
[]
[null,{"$f":"Auswertungsraster!C107","v":"Indikatoren"},"ja","teils","nein","?",null,null,null,"Bemerkungen"]
[{"$f":"Auswertungsraster!B108","v":"Die Lehrperson"},{"$f":"Auswertungsraster!C108","v":"schafft Gelegenheiten, Sachzusammenhänge zu reflektieren."}]
[null,{"$f":"Auswertungsraster!C109","v":"regt mit differenzierten Fragestellungen zur Reflexion und Dokumentation des eigenen Lernens und Problemlösens an."}]
[null,{"$f":"Auswertungsraster!C110","v":"sorgt dafür, dass die Erkenntnisse der Reflexion für das Lernen genutzt werden."}]
[null,{"$f":"Auswertungsraster!C111","v":"vermittelt Schülerinnen und Schülern geeignete Lernstrategien."}]
["Bilanzierende Bewertung Unterricht",null," +++"," ++","+"," -"," --"," ---","?","Bemerkungen"]
[]
[{"$f":"A2","v":"Erfahrungswelt"},null,{"$f":"C3","v":0},0,0,0,0,0,0,0]
[{"$f":"A9","v":"Kompetenzaufbau"},null,{"$f":"C10","v":0},0,0,0,0,0,0,0]
[{"$f":"A20","v":"Instruktion und Konstruktion"},null,{"$f":"C21","v":0},0,0,0,0,0,0,0]
[{"$f":"A30","v":"Transparenz der Lern- und Leistungserwartungen"},null,{"$f":"C31","v":0},0,0,0,0,0,0,0]
[{"$f":"A39","v":"Differenzierung"},null,{"$f":"C40","v":0},0,0,0,0,0,0,0]
[{"$f":"A50","v":"Erfolgserlebnisse"},null,{"$f":"C51","v":0},0,0,0,0,0,0,0]
[{"$f":"A57","v":"Feedback"},null,{"$f":"C58","v":0},0,0,0,0,0,0,0]
[{"$f":"A64","v":"Reflexion"},null,{"$f":"C65","v":0},{"$f":"D65","v":0},0,0,0,0,0,0]

{"sheet":"LP 13","index":14,"n_rows":80,"n_cols":10,"rows_kept":80,"cut":false,"hidden":false,"merged":[[38,0,39,1],[0,0,0,1],[1,0,2,1],[8,0,9,1],[19,0,20,1],[29,0,30,1],[79,0,79,1],[49,0,50,1],[56,0,57,1],[63,0,64,1],[70,0,71,1],[72,0,72,1],[73,0,73,1],[74,0,74,1],[75,0,75,1],[76,0,76,1],[77,0,77,1],[78,0,78,1]]}
["LP 13"]
[{"$f":"Auswertungsraster!B36","v":"Erfahrungswelt"},null," +++"," ++"," +"," -"," --"," ---","?","Bemerkungen"]
[]
[null,{"$f":"Auswertungsraster!C38","v":"Indikatoren"},"ja","teils","nein","?",null,null,null,"Bemerkungen"]
[{"$f":"Auswertungsraster!B39","v":"Die Lehrperson"},{"$f":"Auswertungsraster!C39","v":"bindet gehaltvolle Aufgaben/Fragen/Problem-stellungen in den Unterricht ein, die für die Schülerinnen und Schüler bedeutsam sind."}]
[null,{"$f":"Auswertungsraster!C40","v":"regt mit Aufgabenstellungen oder präsentierten Kernideen an, zentrale Kenntnisse, Fertigkeiten, Zusammenhänge und Haltungen des Fachs zu entdecken."}]
[null,{"$f":"Auswertungsraster!C41","v":"schafft im Unterricht einen Bezug zur (ausserschulischen) Lebenswelt der Schülerinnen und Schüler."}]
[null,{"$f":"Auswertungsraster!C42","v":"kann die Schülerinnen und Schüler für die\nAufgaben/Fragen/Problemstellungen motivieren."}]
[{"$f":"Auswertungsraster!B44","v":"Kompetenzaufbau"},null," +++"," ++"," +"," -"," --"," ---","?","Bemerkungen"]
[]
[null,{"$f":"Auswertungsraster!C46","v":"Indikatoren"},"ja","teils","nein","?",null,null,null,"Bemerkungen"]
[{"$f":"Auswertungsraster!B47","v":"Die Lehrperson"},{"$f":"Auswertungsraster!C47","v":"knüpft im Unterricht an das Vorwissen der Schülerinnen und Schüler an."}]
[null,{"$f":"Auswertungsraster!C48","v":"schafft herausfordernde Problemstellungen, die Schülerinnen und Schüler zum Denken und Handeln anregen."}]
[null,{"$f":"Auswertungsraster!C49","v":"sorgt dafür, dass an fachlichen Inhalten personale, soziale und methodische Kompetenzen erworben werden (überfachliche Kompetenzen)."}]
[null,{"$f":"Auswertungsraster!C50","v":"klärt beim Aufbau von neuem Wissen Fragestellungen und Irritationen der Schülerinnen und Schüler."}]
[null,{"$f":"Auswertungsraster!C51","v":"sorgt für mehrfache und gezielte Übungsphasen mithilfe vielgestaltiger Übungsaufgaben."}]
[null,{"$f":"Auswertungsraster!C52","v":"schafft im Unterricht Gelegenheiten, erworbenes Wissen, bereits gelernte Prozeduren und Methoden auf neue Situationen anzuwenden (Anwendungs-/\nTransferaufgaben)."}]
[null,{"$f":"Auswertungsraster!C53","v":"verfügt über Instrumente, den Kompetenzaufbau der Schülerinnen und Schüler zu dokumentieren."}]
[null,{"$f":"Auswertungsraster!C54","v":"leitet die Schülerinnen und Schüler an, den eigenen Lernweg systematisch festzuhalten."}]
[{"$f":"Auswertungsraster!B56","v":"Instruktion und Konstruktion"},null," +++"," ++"," +"," -"," --"," ---","?","Bemerkungen"]
[]
[null,{"$f":"Auswertungsraster!C58","v":"Indikatoren"},"ja","teils","nein","?",null,null,null,"Bemerkungen"]
[{"$f":"Auswertungsraster!B59","v":"Die Lehrperson"},{"$f":"Auswertungsraster!C59","v":"setzt Phasen von Instruktion und Konstruktion zielführend ein."}]
[null,{"$f":"Auswertungsraster!C60","v":"sorgt dafür, dass sich Instruktion und Konstruktion aufeinander beziehen."}]
[null,{"$f":"Auswertungsraster!C61","v":"schafft Situationen, die den Lerndialog unter\nSchülerinnen und Schülern anregen und lassen Raum für das Lernen von und miteinander."}]
[null,{"$f":"Auswertungsraster!C62","v":"gibt den Schülerinnen und Schülern die Möglichkeit, Lern- und Verstehensprozesse individuell zu besprechen."}]
[null,{"$f":"Auswertungsraster!C63","v":"leitet die Schülerinnen und Schüler zu weiterführenden Überlegungen an."}]
[null,{"$f":"Auswertungsraster!C64","v":"unterstützt das Verstehen der Schülerinnen und Schüler."}]
[null,{"$f":"Auswertungsraster!C65","v":"nutzt Klassenarbeitsphasen zur Systematisierung und Zusammenfassung des erarbeiteten Wissens und Könnens."}]
[{"$f":"Auswertungsraster!B67","v":"Transparenz der Lern- und Leistungserwartungen"},null," +++"," ++"," +"," -"," --"," ---","?","Bemerkungen"]
[]
[null,{"$f":"Auswertungsraster!C69","v":"Indikatoren"},"ja","teils","nein","?",null,null,null,"Bemerkungen"]
[{"$f":"Auswertungsraster!B70","v":"Die Lehrperson"},{"$f":"Auswertungsraster!C70","v":"orientiert sich bei der Formulierung von Lernzielen an den Kompetenzbeschreibungen des Lehrplans."}]
[null,{"$f":"Auswertungsraster!C71","v":"definiert «smarte» Lernziele (stimmig, messbar, attraktiv, realistisch, terminiert)."}]
[null,{"$f":"Auswertungsraster!C72","v":"gibt den Schülerinnen und Schülern die Kompetenz-/Lernziele rechtzeitig, schriftlich und verständlich bekannt."}]
[null,{"$f":"Auswertungsraster!C73","v":"schafft während dem Lernprozess systematisch Bezüge sowohl zu den Kompetenzzielen als auch zu den Lernzielen einzelner Etappen."}]
[null,{"$f":"Auswertungsraster!C74","v":"formuliert gegenüber den einzelnen Schülerinnen und Schülern individuell angepasste Lernziele."}]
[null,{"$f":"Auswertungsraster!C75","v":"schafft Gelegenheiten, dass Schülerinnen und Schüler eigene Lernprozesse anhand gemeinsam entwickelter Indikatoren überprüfen können."}]
[{"$f":"Auswertungsraster!B77","v":"Differenzierung"},null," +++"," ++"," +"," -"," --"," ---","?","Bemerkungen"]
[]
[null,{"$f":"Auswertungsraster!C79","v":"Indikatoren"},"ja","teils","nein","?",null,null,null,"Bemerkungen"]
[{"$f":"Auswertungsraster!B80","v":"Die Lehrperson"},{"$f":"Auswertungsraster!C80","v":"gestaltet den Unterricht so, dass die Schülerinnen und Schüler weder unter- noch überfordert sind."}]
[null,{"$f":"Auswertungsraster!C81","v":"stellt ein vielfältiges Lernangebot bereit, das sich auf eine Analyse des Lernstands der Schülerinnen und Schüler stützt."}]
[null,{"$f":"Auswertungsraster!C82","v":"reagiert auf die unterschiedlichen Lernvoraussetzungen der Schülerinnen und Schüler mit gezielten Massnahmen (z.B. Methodendifferenzierung, Tempodifferenzierung und Differenzierung der Anschauungsmittel)."}]
[null,{"$f":"Auswertungsraster!C83","v":"gestaltet Lernumgebungen/Aufgaben so, dass auf unterschiedlichen Anforderungsniveaus gearbeitet werden kann (Niveaudifferenzierung)."}]
[null,{"$f":"Auswertungsraster!C84","v":"schafft Möglichkeiten für Schülerinnen und Schüler zur inhaltlichen Mitbestimmung (Inhaltsdifferenzierung)."}]
[null,{"$f":"Auswertungsraster!C85","v":"stellt bewusst enge, halboffene oder offene Aufgaben, je nach Stand im Lernprozess beziehungsweise in Bezug zum Kompetenzaufbau."}]
[null,{"$f":"Auswertungsraster!C86","v":"übergibt den Schülerinnen und Schülern aufgrund ihrer Voraussetzungen Eigenverantwortung für ihre Lernziele, Lernprozesse und Lernprodukte."}]
[null,{"$f":"Auswertungsraster!C87","v":"gibt den Schülerinnen und Schülern individuelle und situative Unterstützung aufgrund gezielter Beobachtungen."}]
[{"$f":"Auswertungsraster!B89","v":"Erfolgserlebnisse"},null," +++"," ++"," +"," -"," --"," ---","?","Bemerkungen"]
[]
[null,{"$f":"Auswertungsraster!C91","v":"Indikatoren"},"ja","teils","nein","?",null,null,null,"Bemerkungen"]
[{"$f":"Auswertungsraster!B92","v":"Die Lehrperson"},{"$f":"Auswertungsraster!C92","v":"gestaltet den Unterricht so, dass Schülerinnen und Schüler Erfolgserlebnisse erfahren."}]
[null,{"$f":"Auswertungsraster!C93","v":"macht Lernerfolge den Schülerinnen und Schülern gegenüber sichtbar."}]
[null,{"$f":"Auswertungsraster!C94","v":"schafft im Unterricht Gelegenheiten, in denen Schülerinnen und Schüler das Gelernte zeigen können."}]
[null,{"$f":"Auswertungsraster!C95","v":"sorgt für die Würdigung von Lernerfolgen der Schülerinnen und Schüler."}]
[{"$f":"Auswertungsraster!B97","v":"Feedback"},null," +++"," ++"," +"," -"," --"," ---","?","Bemerkungen"]
[]
[null,{"$f":"Auswertungsraster!C99","v":"Indikatoren"},"ja","teils","nein","?",null,null,null,"Bemerkungen"]
[{"$f":"Auswertungsraster!B100","v":"Die Lehrperson"},{"$f":"Auswertungsraster!C100","v":"formuliert wertschätzende, aufbauende sowie ziel- bzw. kriterienorientierte Rückmeldungen."}]
[null,{"$f":"Auswertungsraster!C101","v":"gibt den Schülerinnen und Schülern ein individuelles Feedback zum Lernprozess und/oder Lernprodukt aufgrund von Beobachtungen und/oder formativen Beurteilungsformen."}]
[null,{"$f":"Auswertungsraster!C102","v":"gestaltet den Unterricht so, dass sich die Schülerinnen und Schüler gegenseitig konstruktive Rückmeldungen geben können (Peerfeedback)."}]
[null,{"$f":"Auswertungsraster!C103","v":"holt von den Schülerinnen und Schülern Feedback über das Lernen ein und nutzt dieses für die Weiterentwicklung des Unterrichts."}]
[{"$f":"Auswertungsraster!B105","v":"Reflexion"},null," +++"," ++"," +"," -"," --"," ---","?","Bemerkungen"]
[]
[null,{"$f":"Auswertungsraster!C107","v":"Indikatoren"},"ja","teils","nein","?",null,null,null,"Bemerkungen"]
[{"$f":"Auswertungsraster!B108","v":"Die Lehrperson"},{"$f":"Auswertungsraster!C108","v":"schafft Gelegenheiten, Sachzusammenhänge zu reflektieren."}]
[null,{"$f":"Auswertungsraster!C109","v":"regt mit differenzierten Fragestellungen zur Reflexion und Dokumentation des eigenen Lernens und Problemlösens an."}]
[null,{"$f":"Auswertungsraster!C110","v":"sorgt dafür, dass die Erkenntnisse der Reflexion für das Lernen genutzt werden."}]
[null,{"$f":"Auswertungsraster!C111","v":"vermittelt Schülerinnen und Schülern geeignete Lernstrategien."}]
["Bilanzierende Bewertung Unterricht",null," +++"," ++","+"," -"," --"," ---","?","Bemerkungen"]
[]
[{"$f":"A2","v":"Erfahrungswelt"},null,{"$f":"C3","v":0},0,0,0,0,0,0,0]
[{"$f":"A9","v":"Kompetenzaufbau"},null,{"$f":"C10","v":0},0,0,0,0,0,0,0]
[{"$f":"A20","v":"Instruktion und Konstruktion"},null,{"$f":"C21","v":0},0,0,0,0,0,0,0]
[{"$f":"A30","v":"Transparenz der Lern- und Leistungserwartungen"},null,{"$f":"C31","v":0},0,0,0,0,0,0,0]
[{"$f":"A39","v":"Differenzierung"},null,{"$f":"C40","v":0},0,0,0,0,0,0,0]
[{"$f":"A50","v":"Erfolgserlebnisse"},null,{"$f":"C51","v":0},0,0,0,0,0,0,0]
[{"$f":"A57","v":"Feedback"},null,{"$f":"C58","v":0},0,0,0,0,0,0,0]
[{"$f":"A64","v":"Reflexion"},null,{"$f":"C65","v":0},{"$f":"D65","v":0},0,0,0,0,0,0]

{"sheet":"LP 14","index":15,"n_rows":80,"n_cols":10,"rows_kept":80,"cut":false,"hidden":false,"merged":[[38,0,39,1],[0,0,0,1],[1,0,2,1],[8,0,9,1],[19,0,20,1],[29,0,30,1],[79,0,79,1],[49,0,50,1],[56,0,57,1],[63,0,64,1],[70,0,71,1],[72,0,72,1],[73,0,73,1],[74,0,74,1],[75,0,75,1],[76,0,76,1],[77,0,77,1],[78,0,78,1]]}
["LP 14"]
[{"$f":"Auswertungsraster!B36","v":"Erfahrungswelt"},null," +++"," ++"," +"," -"," --"," ---","?","Bemerkungen"]
[]
[null,{"$f":"Auswertungsraster!C38","v":"Indikatoren"},"ja","teils","nein","?",null,null,null,"Bemerkungen"]
[{"$f":"Auswertungsraster!B39","v":"Die Lehrperson"},{"$f":"Auswertungsraster!C39","v":"bindet gehaltvolle Aufgaben/Fragen/Problem-stellungen in den Unterricht ein, die für die Schülerinnen und Schüler bedeutsam sind."}]
[null,{"$f":"Auswertungsraster!C40","v":"regt mit Aufgabenstellungen oder präsentierten Kernideen an, zentrale Kenntnisse, Fertigkeiten, Zusammenhänge und Haltungen des Fachs zu entdecken."}]
[null,{"$f":"Auswertungsraster!C41","v":"schafft im Unterricht einen Bezug zur (ausserschulischen) Lebenswelt der Schülerinnen und Schüler."}]
[null,{"$f":"Auswertungsraster!C42","v":"kann die Schülerinnen und Schüler für die\nAufgaben/Fragen/Problemstellungen motivieren."}]
[{"$f":"Auswertungsraster!B44","v":"Kompetenzaufbau"},null," +++"," ++"," +"," -"," --"," ---","?","Bemerkungen"]
[]
[null,{"$f":"Auswertungsraster!C46","v":"Indikatoren"},"ja","teils","nein","?",null,null,null,"Bemerkungen"]
[{"$f":"Auswertungsraster!B47","v":"Die Lehrperson"},{"$f":"Auswertungsraster!C47","v":"knüpft im Unterricht an das Vorwissen der Schülerinnen und Schüler an."}]
[null,{"$f":"Auswertungsraster!C48","v":"schafft herausfordernde Problemstellungen, die Schülerinnen und Schüler zum Denken und Handeln anregen."}]
[null,{"$f":"Auswertungsraster!C49","v":"sorgt dafür, dass an fachlichen Inhalten personale, soziale und methodische Kompetenzen erworben werden (überfachliche Kompetenzen)."}]
[null,{"$f":"Auswertungsraster!C50","v":"klärt beim Aufbau von neuem Wissen Fragestellungen und Irritationen der Schülerinnen und Schüler."}]
[null,{"$f":"Auswertungsraster!C51","v":"sorgt für mehrfache und gezielte Übungsphasen mithilfe vielgestaltiger Übungsaufgaben."}]
[null,{"$f":"Auswertungsraster!C52","v":"schafft im Unterricht Gelegenheiten, erworbenes Wissen, bereits gelernte Prozeduren und Methoden auf neue Situationen anzuwenden (Anwendungs-/\nTransferaufgaben)."}]
[null,{"$f":"Auswertungsraster!C53","v":"verfügt über Instrumente, den Kompetenzaufbau der Schülerinnen und Schüler zu dokumentieren."}]
[null,{"$f":"Auswertungsraster!C54","v":"leitet die Schülerinnen und Schüler an, den eigenen Lernweg systematisch festzuhalten."}]
[{"$f":"Auswertungsraster!B56","v":"Instruktion und Konstruktion"},null," +++"," ++"," +"," -"," --"," ---","?","Bemerkungen"]
[]
[null,{"$f":"Auswertungsraster!C58","v":"Indikatoren"},"ja","teils","nein","?",null,null,null,"Bemerkungen"]
[{"$f":"Auswertungsraster!B59","v":"Die Lehrperson"},{"$f":"Auswertungsraster!C59","v":"setzt Phasen von Instruktion und Konstruktion zielführend ein."}]
[null,{"$f":"Auswertungsraster!C60","v":"sorgt dafür, dass sich Instruktion und Konstruktion aufeinander beziehen."}]
[null,{"$f":"Auswertungsraster!C61","v":"schafft Situationen, die den Lerndialog unter\nSchülerinnen und Schülern anregen und lassen Raum für das Lernen von und miteinander."}]
[null,{"$f":"Auswertungsraster!C62","v":"gibt den Schülerinnen und Schülern die Möglichkeit, Lern- und Verstehensprozesse individuell zu besprechen."}]
[null,{"$f":"Auswertungsraster!C63","v":"leitet die Schülerinnen und Schüler zu weiterführenden Überlegungen an."}]
[null,{"$f":"Auswertungsraster!C64","v":"unterstützt das Verstehen der Schülerinnen und Schüler."}]
[null,{"$f":"Auswertungsraster!C65","v":"nutzt Klassenarbeitsphasen zur Systematisierung und Zusammenfassung des erarbeiteten Wissens und Könnens."}]
[{"$f":"Auswertungsraster!B67","v":"Transparenz der Lern- und Leistungserwartungen"},null," +++"," ++"," +"," -"," --"," ---","?","Bemerkungen"]
[]
[null,{"$f":"Auswertungsraster!C69","v":"Indikatoren"},"ja","teils","nein","?",null,null,null,"Bemerkungen"]
[{"$f":"Auswertungsraster!B70","v":"Die Lehrperson"},{"$f":"Auswertungsraster!C70","v":"orientiert sich bei der Formulierung von Lernzielen an den Kompetenzbeschreibungen des Lehrplans."}]
[null,{"$f":"Auswertungsraster!C71","v":"definiert «smarte» Lernziele (stimmig, messbar, attraktiv, realistisch, terminiert)."}]
[null,{"$f":"Auswertungsraster!C72","v":"gibt den Schülerinnen und Schülern die Kompetenz-/Lernziele rechtzeitig, schriftlich und verständlich bekannt."}]
[null,{"$f":"Auswertungsraster!C73","v":"schafft während dem Lernprozess systematisch Bezüge sowohl zu den Kompetenzzielen als auch zu den Lernzielen einzelner Etappen."}]
[null,{"$f":"Auswertungsraster!C74","v":"formuliert gegenüber den einzelnen Schülerinnen und Schülern individuell angepasste Lernziele."}]
[null,{"$f":"Auswertungsraster!C75","v":"schafft Gelegenheiten, dass Schülerinnen und Schüler eigene Lernprozesse anhand gemeinsam entwickelter Indikatoren überprüfen können."}]
[{"$f":"Auswertungsraster!B77","v":"Differenzierung"},null," +++"," ++"," +"," -"," --"," ---","?","Bemerkungen"]
[]
[null,{"$f":"Auswertungsraster!C79","v":"Indikatoren"},"ja","teils","nein","?",null,null,null,"Bemerkungen"]
[{"$f":"Auswertungsraster!B80","v":"Die Lehrperson"},{"$f":"Auswertungsraster!C80","v":"gestaltet den Unterricht so, dass die Schülerinnen und Schüler weder unter- noch überfordert sind."}]
[null,{"$f":"Auswertungsraster!C81","v":"stellt ein vielfältiges Lernangebot bereit, das sich auf eine Analyse des Lernstands der Schülerinnen und Schüler stützt."}]
[null,{"$f":"Auswertungsraster!C82","v":"reagiert auf die unterschiedlichen Lernvoraussetzungen der Schülerinnen und Schüler mit gezielten Massnahmen (z.B. Methodendifferenzierung, Tempodifferenzierung und Differenzierung der Anschauungsmittel)."}]
[null,{"$f":"Auswertungsraster!C83","v":"gestaltet Lernumgebungen/Aufgaben so, dass auf unterschiedlichen Anforderungsniveaus gearbeitet werden kann (Niveaudifferenzierung)."}]
[null,{"$f":"Auswertungsraster!C84","v":"schafft Möglichkeiten für Schülerinnen und Schüler zur inhaltlichen Mitbestimmung (Inhaltsdifferenzierung)."}]
[null,{"$f":"Auswertungsraster!C85","v":"stellt bewusst enge, halboffene oder offene Aufgaben, je nach Stand im Lernprozess beziehungsweise in Bezug zum Kompetenzaufbau."}]
[null,{"$f":"Auswertungsraster!C86","v":"übergibt den Schülerinnen und Schülern aufgrund ihrer Voraussetzungen Eigenverantwortung für ihre Lernziele, Lernprozesse und Lernprodukte."}]
[null,{"$f":"Auswertungsraster!C87","v":"gibt den Schülerinnen und Schülern individuelle und situative Unterstützung aufgrund gezielter Beobachtungen."}]
[{"$f":"Auswertungsraster!B89","v":"Erfolgserlebnisse"},null," +++"," ++"," +"," -"," --"," ---","?","Bemerkungen"]
[]
[null,{"$f":"Auswertungsraster!C91","v":"Indikatoren"},"ja","teils","nein","?",null,null,null,"Bemerkungen"]
[{"$f":"Auswertungsraster!B92","v":"Die Lehrperson"},{"$f":"Auswertungsraster!C92","v":"gestaltet den Unterricht so, dass Schülerinnen und Schüler Erfolgserlebnisse erfahren."}]
[null,{"$f":"Auswertungsraster!C93","v":"macht Lernerfolge den Schülerinnen und Schülern gegenüber sichtbar."}]
[null,{"$f":"Auswertungsraster!C94","v":"schafft im Unterricht Gelegenheiten, in denen Schülerinnen und Schüler das Gelernte zeigen können."}]
[null,{"$f":"Auswertungsraster!C95","v":"sorgt für die Würdigung von Lernerfolgen der Schülerinnen und Schüler."}]
[{"$f":"Auswertungsraster!B97","v":"Feedback"},null," +++"," ++"," +"," -"," --"," ---","?","Bemerkungen"]
[]
[null,{"$f":"Auswertungsraster!C99","v":"Indikatoren"},"ja","teils","nein","?",null,null,null,"Bemerkungen"]
[{"$f":"Auswertungsraster!B100","v":"Die Lehrperson"},{"$f":"Auswertungsraster!C100","v":"formuliert wertschätzende, aufbauende sowie ziel- bzw. kriterienorientierte Rückmeldungen."}]
[null,{"$f":"Auswertungsraster!C101","v":"gibt den Schülerinnen und Schülern ein individuelles Feedback zum Lernprozess und/oder Lernprodukt aufgrund von Beobachtungen und/oder formativen Beurteilungsformen."}]
[null,{"$f":"Auswertungsraster!C102","v":"gestaltet den Unterricht so, dass sich die Schülerinnen und Schüler gegenseitig konstruktive Rückmeldungen geben können (Peerfeedback)."}]
[null,{"$f":"Auswertungsraster!C103","v":"holt von den Schülerinnen und Schülern Feedback über das Lernen ein und nutzt dieses für die Weiterentwicklung des Unterrichts."}]
[{"$f":"Auswertungsraster!B105","v":"Reflexion"},null," +++"," ++"," +"," -"," --"," ---","?","Bemerkungen"]
[]
[null,{"$f":"Auswertungsraster!C107","v":"Indikatoren"},"ja","teils","nein","?",null,null,null,"Bemerkungen"]
[{"$f":"Auswertungsraster!B108","v":"Die Lehrperson"},{"$f":"Auswertungsraster!C108","v":"schafft Gelegenheiten, Sachzusammenhänge zu reflektieren."}]
[null,{"$f":"Auswertungsraster!C109","v":"regt mit differenzierten Fragestellungen zur Reflexion und Dokumentation des eigenen Lernens und Problemlösens an."}]
[null,{"$f":"Auswertungsraster!C110","v":"sorgt dafür, dass die Erkenntnisse der Reflexion für das Lernen genutzt werden."}]
[null,{"$f":"Auswertungsraster!C111","v":"vermittelt Schülerinnen und Schülern geeignete Lernstrategien."}]
["Bilanzierende Bewertung Unterricht",null," +++"," ++","+"," -"," --"," ---","?","Bemerkungen"]
[]
[{"$f":"A2","v":"Erfahrungswelt"},null,{"$f":"C3","v":0},0,0,0,0,0,0,0]
[{"$f":"A9","v":"Kompetenzaufbau"},null,{"$f":"C10","v":0},0,0,0,0,0,0,0]
[{"$f":"A20","v":"Instruktion und Konstruktion"},null,{"$f":"C21","v":0},0,0,0,0,0,0,0]
[{"$f":"A30","v":"Transparenz der Lern- und Leistungserwartungen"},null,{"$f":"C31","v":0},0,0,0,0,0,0,0]
[{"$f":"A39","v":"Differenzierung"},null,{"$f":"C40","v":0},0,0,0,0,0,0,0]
[{"$f":"A50","v":"Erfolgserlebnisse"},null,{"$f":"C51","v":0},0,0,0,0,0,0,0]
[{"$f":"A57","v":"Feedback"},null,{"$f":"C58","v":0},0,0,0,0,0,0,0]
[{"$f":"A64","v":"Reflexion"},null,{"$f":"C65","v":0},{"$f":"D65","v":0},0,0,0,0,0,0]

{"sheet":"LP 15","index":16,"n_rows":80,"n_cols":10,"rows_kept":80,"cut":false,"hidden":false,"merged":[[38,0,39,1],[0,0,0,1],[1,0,2,1],[8,0,9,1],[19,0,20,1],[29,0,30,1],[79,0,79,1],[49,0,50,1],[56,0,57,1],[63,0,64,1],[70,0,71,1],[72,0,72,1],[73,0,73,1],[74,0,74,1],[75,0,75,1],[76,0,76,1],[77,0,77,1],[78,0,78,1]]}
["LP 15"]
[{"$f":"Auswertungsraster!B36","v":"Erfahrungswelt"},null," +++"," ++"," +"," -"," --"," ---","?","Bemerkungen"]
[]
[null,{"$f":"Auswertungsraster!C38","v":"Indikatoren"},"ja","teils","nein","?",null,null,null,"Bemerkungen"]
[{"$f":"Auswertungsraster!B39","v":"Die Lehrperson"},{"$f":"Auswertungsraster!C39","v":"bindet gehaltvolle Aufgaben/Fragen/Problem-stellungen in den Unterricht ein, die für die Schülerinnen und Schüler bedeutsam sind."}]
[null,{"$f":"Auswertungsraster!C40","v":"regt mit Aufgabenstellungen oder präsentierten Kernideen an, zentrale Kenntnisse, Fertigkeiten, Zusammenhänge und Haltungen des Fachs zu entdecken."}]
[null,{"$f":"Auswertungsraster!C41","v":"schafft im Unterricht einen Bezug zur (ausserschulischen) Lebenswelt der Schülerinnen und Schüler."}]
[null,{"$f":"Auswertungsraster!C42","v":"kann die Schülerinnen und Schüler für die\nAufgaben/Fragen/Problemstellungen motivieren."}]
[{"$f":"Auswertungsraster!B44","v":"Kompetenzaufbau"},null," +++"," ++"," +"," -"," --"," ---","?","Bemerkungen"]
[]
[null,{"$f":"Auswertungsraster!C46","v":"Indikatoren"},"ja","teils","nein","?",null,null,null,"Bemerkungen"]
[{"$f":"Auswertungsraster!B47","v":"Die Lehrperson"},{"$f":"Auswertungsraster!C47","v":"knüpft im Unterricht an das Vorwissen der Schülerinnen und Schüler an."}]
[null,{"$f":"Auswertungsraster!C48","v":"schafft herausfordernde Problemstellungen, die Schülerinnen und Schüler zum Denken und Handeln anregen."}]
[null,{"$f":"Auswertungsraster!C49","v":"sorgt dafür, dass an fachlichen Inhalten personale, soziale und methodische Kompetenzen erworben werden (überfachliche Kompetenzen)."}]
[null,{"$f":"Auswertungsraster!C50","v":"klärt beim Aufbau von neuem Wissen Fragestellungen und Irritationen der Schülerinnen und Schüler."}]
[null,{"$f":"Auswertungsraster!C51","v":"sorgt für mehrfache und gezielte Übungsphasen mithilfe vielgestaltiger Übungsaufgaben."}]
[null,{"$f":"Auswertungsraster!C52","v":"schafft im Unterricht Gelegenheiten, erworbenes Wissen, bereits gelernte Prozeduren und Methoden auf neue Situationen anzuwenden (Anwendungs-/\nTransferaufgaben)."}]
[null,{"$f":"Auswertungsraster!C53","v":"verfügt über Instrumente, den Kompetenzaufbau der Schülerinnen und Schüler zu dokumentieren."}]
[null,{"$f":"Auswertungsraster!C54","v":"leitet die Schülerinnen und Schüler an, den eigenen Lernweg systematisch festzuhalten."}]
[{"$f":"Auswertungsraster!B56","v":"Instruktion und Konstruktion"},null," +++"," ++"," +"," -"," --"," ---","?","Bemerkungen"]
[]
[null,{"$f":"Auswertungsraster!C58","v":"Indikatoren"},"ja","teils","nein","?",null,null,null,"Bemerkungen"]
[{"$f":"Auswertungsraster!B59","v":"Die Lehrperson"},{"$f":"Auswertungsraster!C59","v":"setzt Phasen von Instruktion und Konstruktion zielführend ein."}]
[null,{"$f":"Auswertungsraster!C60","v":"sorgt dafür, dass sich Instruktion und Konstruktion aufeinander beziehen."}]
[null,{"$f":"Auswertungsraster!C61","v":"schafft Situationen, die den Lerndialog unter\nSchülerinnen und Schülern anregen und lassen Raum für das Lernen von und miteinander."}]
[null,{"$f":"Auswertungsraster!C62","v":"gibt den Schülerinnen und Schülern die Möglichkeit, Lern- und Verstehensprozesse individuell zu besprechen."}]
[null,{"$f":"Auswertungsraster!C63","v":"leitet die Schülerinnen und Schüler zu weiterführenden Überlegungen an."}]
[null,{"$f":"Auswertungsraster!C64","v":"unterstützt das Verstehen der Schülerinnen und Schüler."}]
[null,{"$f":"Auswertungsraster!C65","v":"nutzt Klassenarbeitsphasen zur Systematisierung und Zusammenfassung des erarbeiteten Wissens und Könnens."}]
[{"$f":"Auswertungsraster!B67","v":"Transparenz der Lern- und Leistungserwartungen"},null," +++"," ++"," +"," -"," --"," ---","?","Bemerkungen"]
[]
[null,{"$f":"Auswertungsraster!C69","v":"Indikatoren"},"ja","teils","nein","?",null,null,null,"Bemerkungen"]
[{"$f":"Auswertungsraster!B70","v":"Die Lehrperson"},{"$f":"Auswertungsraster!C70","v":"orientiert sich bei der Formulierung von Lernzielen an den Kompetenzbeschreibungen des Lehrplans."}]
[null,{"$f":"Auswertungsraster!C71","v":"definiert «smarte» Lernziele (stimmig, messbar, attraktiv, realistisch, terminiert)."}]
[null,{"$f":"Auswertungsraster!C72","v":"gibt den Schülerinnen und Schülern die Kompetenz-/Lernziele rechtzeitig, schriftlich und verständlich bekannt."}]
[null,{"$f":"Auswertungsraster!C73","v":"schafft während dem Lernprozess systematisch Bezüge sowohl zu den Kompetenzzielen als auch zu den Lernzielen einzelner Etappen."}]
[null,{"$f":"Auswertungsraster!C74","v":"formuliert gegenüber den einzelnen Schülerinnen und Schülern individuell angepasste Lernziele."}]
[null,{"$f":"Auswertungsraster!C75","v":"schafft Gelegenheiten, dass Schülerinnen und Schüler eigene Lernprozesse anhand gemeinsam entwickelter Indikatoren überprüfen können."}]
[{"$f":"Auswertungsraster!B77","v":"Differenzierung"},null," +++"," ++"," +"," -"," --"," ---","?","Bemerkungen"]
[]
[null,{"$f":"Auswertungsraster!C79","v":"Indikatoren"},"ja","teils","nein","?",null,null,null,"Bemerkungen"]
[{"$f":"Auswertungsraster!B80","v":"Die Lehrperson"},{"$f":"Auswertungsraster!C80","v":"gestaltet den Unterricht so, dass die Schülerinnen und Schüler weder unter- noch überfordert sind."}]
[null,{"$f":"Auswertungsraster!C81","v":"stellt ein vielfältiges Lernangebot bereit, das sich auf eine Analyse des Lernstands der Schülerinnen und Schüler stützt."}]
[null,{"$f":"Auswertungsraster!C82","v":"reagiert auf die unterschiedlichen Lernvoraussetzungen der Schülerinnen und Schüler mit gezielten Massnahmen (z.B. Methodendifferenzierung, Tempodifferenzierung und Differenzierung der Anschauungsmittel)."}]
[null,{"$f":"Auswertungsraster!C83","v":"gestaltet Lernumgebungen/Aufgaben so, dass auf unterschiedlichen Anforderungsniveaus gearbeitet werden kann (Niveaudifferenzierung)."}]
[null,{"$f":"Auswertungsraster!C84","v":"schafft Möglichkeiten für Schülerinnen und Schüler zur inhaltlichen Mitbestimmung (Inhaltsdifferenzierung)."}]
[null,{"$f":"Auswertungsraster!C85","v":"stellt bewusst enge, halboffene oder offene Aufgaben, je nach Stand im Lernprozess beziehungsweise in Bezug zum Kompetenzaufbau."}]
[null,{"$f":"Auswertungsraster!C86","v":"übergibt den Schülerinnen und Schülern aufgrund ihrer Voraussetzungen Eigenverantwortung für ihre Lernziele, Lernprozesse und Lernprodukte."}]
[null,{"$f":"Auswertungsraster!C87","v":"gibt den Schülerinnen und Schülern individuelle und situative Unterstützung aufgrund gezielter Beobachtungen."}]
[{"$f":"Auswertungsraster!B89","v":"Erfolgserlebnisse"},null," +++"," ++"," +"," -"," --"," ---","?","Bemerkungen"]
[]
[null,{"$f":"Auswertungsraster!C91","v":"Indikatoren"},"ja","teils","nein","?",null,null,null,"Bemerkungen"]
[{"$f":"Auswertungsraster!B92","v":"Die Lehrperson"},{"$f":"Auswertungsraster!C92","v":"gestaltet den Unterricht so, dass Schülerinnen und Schüler Erfolgserlebnisse erfahren."}]
[null,{"$f":"Auswertungsraster!C93","v":"macht Lernerfolge den Schülerinnen und Schülern gegenüber sichtbar."}]
[null,{"$f":"Auswertungsraster!C94","v":"schafft im Unterricht Gelegenheiten, in denen Schülerinnen und Schüler das Gelernte zeigen können."}]
[null,{"$f":"Auswertungsraster!C95","v":"sorgt für die Würdigung von Lernerfolgen der Schülerinnen und Schüler."}]
[{"$f":"Auswertungsraster!B97","v":"Feedback"},null," +++"," ++"," +"," -"," --"," ---","?","Bemerkungen"]
[]
[null,{"$f":"Auswertungsraster!C99","v":"Indikatoren"},"ja","teils","nein","?",null,null,null,"Bemerkungen"]
[{"$f":"Auswertungsraster!B100","v":"Die Lehrperson"},{"$f":"Auswertungsraster!C100","v":"formuliert wertschätzende, aufbauende sowie ziel- bzw. kriterienorientierte Rückmeldungen."}]
[null,{"$f":"Auswertungsraster!C101","v":"gibt den Schülerinnen und Schülern ein individuelles Feedback zum Lernprozess und/oder Lernprodukt aufgrund von Beobachtungen und/oder formativen Beurteilungsformen."}]
[null,{"$f":"Auswertungsraster!C102","v":"gestaltet den Unterricht so, dass sich die Schülerinnen und Schüler gegenseitig konstruktive Rückmeldungen geben können (Peerfeedback)."}]
[null,{"$f":"Auswertungsraster!C103","v":"holt von den Schülerinnen und Schülern Feedback über das Lernen ein und nutzt dieses für die Weiterentwicklung des Unterrichts."}]
[{"$f":"Auswertungsraster!B105","v":"Reflexion"},null," +++"," ++"," +"," -"," --"," ---","?","Bemerkungen"]
[]
[null,{"$f":"Auswertungsraster!C107","v":"Indikatoren"},"ja","teils","nein","?",null,null,null,"Bemerkungen"]
[{"$f":"Auswertungsraster!B108","v":"Die Lehrperson"},{"$f":"Auswertungsraster!C108","v":"schafft Gelegenheiten, Sachzusammenhänge zu reflektieren."}]
[null,{"$f":"Auswertungsraster!C109","v":"regt mit differenzierten Fragestellungen zur Reflexion und Dokumentation des eigenen Lernens und Problemlösens an."}]
[null,{"$f":"Auswertungsraster!C110","v":"sorgt dafür, dass die Erkenntnisse der Reflexion für das Lernen genutzt werden."}]
[null,{"$f":"Auswertungsraster!C111","v":"vermittelt Schülerinnen und Schülern geeignete Lernstrategien."}]
["Bilanzierende Bewertung Unterricht",null," +++"," ++","+"," -"," --"," ---","?","Bemerkungen"]
[]
[{"$f":"A2","v":"Erfahrungswelt"},null,{"$f":"C3","v":0},0,0,0,0,0,0,0]
[{"$f":"A9","v":"Kompetenzaufbau"},null,{"$f":"C10","v":0},0,0,0,0,0,0,0]
[{"$f":"A20","v":"Instruktion und Konstruktion"},null,{"$f":"C21","v":0},0,0,0,0,0,0,0]
[{"$f":"A30","v":"Transparenz der Lern- und Leistungserwartungen"},null,{"$f":"C31","v":0},0,0,0,0,0,0,0]
[{"$f":"A39","v":"Differenzierung"},null,{"$f":"C40","v":0},0,0,0,0,0,0,0]
[{"$f":"A50","v":"Erfolgserlebnisse"},null,{"$f":"C51","v":0},0,0,0,0,0,0,0]
[{"$f":"A57","v":"Feedback"},null,{"$f":"C58","v":0},0,0,0,0,0,0,0]
[{"$f":"A64","v":"Reflexion"},null,{"$f":"C65","v":0},{"$f":"D65","v":0},0,0,0,0,0,0]